Workbook

Sheet Instructions
A1: Project Name: | C1: Reclaim Model - Overview of Program
B2: Back River Project | C2: All users are urged to read the Reclaim Model User Manual - Scroll down for overview description of program.
C3: Important! Reclaim 7.0 works better with no other excel files open.
C4: If other excel files are open ignore run time error and proceed
A5: Reclaim Menu | C5: The default Excel menu bar has an additional tab labelled "Add-Ins" that provides options specific to the Reclaim Model.
B6: Clear | C6: This option deletes all input data, deletes any duplicated elements and blanks out the project name. It also allows for segregation into land costs vs water costs if required.
B7: Duplicate | C7: This option Duplicates components of the project. E.g. if there is more than one Open Pit, use duplicate to add a second Open Pit. Quantities for the new Open Pit are erased, but the Activities and Cost Codes are carried over from the original Open Pit. The new Open Pit subtotal is added to the Summary page.
B8: Unit Costs | C8: This option opens a window of unit costs to provide easy reference. NOTE: the unit cost table has a filter in the 'UNITS' column. You can select to only see a particular unit (eg km) or multiple units (km and m3) or all units.
B9: Print All | C9: This option prints the Summary Worksheet, Unit Cost Worksheet, and the individual component worksheets having non-zero balances. Individual worksheets can be printed directly using standard printing methods, such as Ctl - P.
B10: Quit | C10: Select Quit to exit the program
B11: Help | C11: Redirects user to Instructions worksheet.
A13: WorkSheets
B14: Summary | C14: This worksheet contains a cumulative summary of costs for each component of the project. Associated costs such as engineering and project management are added as a percentage of the component costs.
B15: Components | C15: Costs are derived for individual closure and reclamation activities by multiplying a "quantity" of activity by a "unit cost". An activity can be edited, added, or deleted from worksheet. However, care should be taken not to modify cells that are defined and used elsewhere in the program.
C16: Do not change the content or column width of the first column of each component worksheet.
B17: Unit Costs | C17: This worksheet contains a look up table with costs for typical work associated with each closure and reclamation activity
A19: Limitations | C19: The Reclaim Program will NOT work if the worksheets are changed such that the following requirements are not met. Please review the following prior to modifiying worksheets.
B20: WorkSheet Names | C20: The names of the worksheets must not be changed.
B21: Defined Names | C21: Certain cells have defined names, which must not be changed. Where the cell is named, the name will appear in the "Name Box" to the left of the formula bar.
B22: First line of data | C22: The first line of data for any component worksheet starts on line 4. Do not change the first line of a component worksheet, ie the component name.
B23: Cell A1 | C23: Cell A1 on the component sheet MUST always contain the count of that component for the duplicate function to operate. DO NOT CHANGE.
B24: Adding Lines | C24: You can add lines to components and the unit cost table, as long as they are not the last lines. The last line might fall outside the named ranges. You can check the size of the named range by selecting the name from the drop down box at the top left of the sheet. Usually this box has a cell reference, or a name.
B25: Printing | C25: A component will only be printed if its sub-total is greater than zero. In addition, a component and the summary sheet cannot be printed if there is an error. Printing has been set to print 1 page per component.
A27: Conditions of Use | C27: The Reclamation Cost Estimating Model was prepared to serve as a guide for Government Agencies, mining companies, and others to estimate the cost of mine reclamation. This model is not intended to replace reclamation planning or to be used to determine the activities required to reclaim a site or to dictate how much should be spent on reclamation.
C29: Reclaim was prepared by Brodie Consulting Ltd. on behalf of AANDC. AANDC and Brodie Consulting Ltd. are not responsible for the completeness or accuracy of any reclamation estimate made using this model. The user agrees to check and take responsibility for all aspects of any cost estimate made using this model.
A31: The following table provides guidance as to whether water management and treatment is considered short term or long term. Short term closure activities
A32: may be costed within a component (eg 'Open Pit' or 'Rock Pile') or 'Water Management'. Long term or post-closure water treatment is costed in 'Water Treatment'.
D33: Short Term/ Capital Ex. | E33: Long term/ NPV
A34: Open Pit | C34: flood pit - install/operate pumping system | D34: x
C35: construct diversion ditches | D35: x
C36: treat 1st filling | D36: x
C37: install pump/decant system | D37: x
C38: passive/biological treatment | D38: x
C39: overflow treatment | E39: x
A40: Rock Pile/Heap Leach Facility | C40: construct diversion ditches | D40: x
C41: install groundwater collection system | D41: x
C42: install toe seepage collection system | D42: x
C43: collect and treat groundwater | E43: x
C44: collect and treat seepage (ARD/ML) | E44: x
C45: install passive treatment system | D45: x
C46: operate and maintain passive treatment system | E46: x
C47: operate pump and detoxify heap leach pile (cyanide destruction) | D47: x
A48: Tailings Facility | C48: construct diversion ditches | D48: x
C49: pump supernatant (to pit, U/G) | D49: x
C50: treat supernatant | D50: x
C51: install toe seepage collection system | D51: x
C52: collect and treat seepage (ARD/ML) | E52: x
C53: install passive treatment system | D53: x
C54: operate and maintain passive treatment system | E54: x
A55: U/G Mine | C55: accelerate flooding | D55: x
C56: install seepage collection system | D56: x
C57: install dewatering/pumping system | D57: x
C58: operate seepage/dewatering system (ARD/ML) | E58: x
A59: Water Management | C59: refill lakes
C60: redirect creeks/streams | D60: x
C61: stabilize water management ponds | D61: x
C62: stabilize/close sediment ponds | D62: x
C63: fresh water supply - breach embankment | D63: x
C64: fresh water supply - remove piping system | D64: x
C65: construct water treatment plant | D65: x
C66: construct sludge pond | D66: x
C67: water control in reclamation quarry | D67: x
C68: operate/maintain water treatment plant | E68: x

Sheet Summary
B1: SUMMARY OF COSTS | M1: STAGING
J2: Approximate Timing as proposed in Type A Water Licence
J3: Y-3 | K3: Y-2 | L3: Y-1 | M3: Y1 | N3: Y-1 | O3: Y1 | P3: Y2 | Q3: Y4 | R3: Y4 & Y5
A4: CAPITAL COSTS | B4: COMPONENT NAME | D4: COST | F4: LAND LIABILITY | H4: TOTAL LIABILITY | J4: Initial Infrastructure | K4: Umwelt OP | L4: TSF | M4: Llama OP | N4: Llama UG | O4: Umwelt UG | P4: Goose Main OP | Q4: Goose Main UG | R4: Echo OP & UG | S4: Rationale
A5: OPEN PIT | B5: =IF(ISBLANK('Open Pit'!$C$1),"",'Open Pit'!$C$1) -> Umwelt | D5: =Pit1Total -> 50424.88759 | F5: =Pit1LandTotal -> 0 | H5: =Pit1WaterTotal -> 50424.88749 | K5: =H5 -> 50424.88749 | S5: The Umwelt Open Pit closure costs tie directly to commencement of Umwelt development.
B6: =IF(ISBLANK('Open Pit'!$N$1),"",'Open Pit'!$N$1) -> Llama | D6: ='Open Pit'!$S$63 -> 26176.6001 | F6: ='Open Pit'!$U$63 -> 0 | H6: ='Open Pit'!$V$63 -> 26176.6 | M6: =H6 -> 26176.6 | S6: The Llama Open Pit closure costs tie directly to commencement of Llama development.
B7: =IF(ISBLANK('Open Pit'!$Y$1),"",'Open Pit'!$Y$1) -> Echo | D7: ='Open Pit'!$AD$63 -> 25934.3126 | F7: ='Open Pit'!$AF$63 -> 0 | H7: ='Open Pit'!$AG$63 -> 25934.3125 | R7: =H7 -> 25934.3125 | S7: The Echo Open Pit closure costs tie directly to commencement of Echo development.
B8: =IF(ISBLANK('Open Pit'!$AJ$1),"",'Open Pit'!$AJ$1) -> Goose Main | D8: ='Open Pit'!$AO$63 -> 84849.58135 | F8: ='Open Pit'!$AQ$63 -> 0 | H8: ='Open Pit'!$AR$63 -> 84849.58125 | P8: =H8 -> 84849.58125 | S8: The Goose Main Open Pit closure costs tie directly to commencement of Goose Main development.
A9: QUARRY (under OPEN PIT TAB estimate) | B9: =IF(ISBLANK('Open Pit'!$AU$1),"",'Open Pit'!$AU$1) -> Airstrip Quarry | D9: ='Open Pit'!$AZ$63 -> 3800.0001 | F9: ='Open Pit'!$BB$63 -> 0 | H9: ='Open Pit'!$BC$63 -> 3800 | J9: =H9 -> 3800 | S9: The Airstrip Quarry closure costs tie directly to commencement of Initial Infastructure Development
A10: UNDERGROUND MINE | B10: =IF(ISBLANK('UG Mine'!$C$1),"",'UG Mine'!$C$1) -> Umwelt | D10: =UG1Total -> 320806.5401 | F10: =UG1LandTotal -> 0 | H10: =UG1WaterTotal -> 320806.54 | O10: =H10 -> 320806.54 | S10: The Umwelt Underground closure costs tie directly to commencement of Umwelt development.
B11: =IF(ISBLANK('UG Mine'!$N$1),"",'UG Mine'!$N$1) -> Llama | D11: ='UG Mine'!$S$42 -> 103655.6001 | F11: ='UG Mine'!$U$42 -> 0 | H11: ='UG Mine'!$V$42 -> 103655.6 | N11: =H11 -> 103655.6 | S11: The Llama Underground closure costs tie directly to commencement of Llama development.
B12: =IF(ISBLANK('UG Mine'!$Y$1),"",'UG Mine'!$Y$1) -> Goose Main | D12: ='UG Mine'!$AD$42 -> 284414.653 | F12: ='UG Mine'!$AF$42 -> 0 | H12: ='UG Mine'!$AG$42 -> 284414.6529 | Q12: =H12 -> 284414.6529 | S12: The Goose Main Underground closure costs tie directly to commencement of Goose Main development.
B13: =IF(ISBLANK('UG Mine'!$AJ$1),"",'UG Mine'!$AJ$1) -> Echo | D13: ='UG Mine'!$AO$42 -> 96205.6001 | F13: ='UG Mine'!$AQ$42 -> 0 | H13: ='UG Mine'!$AR$42 -> 96205.6 | R13: =H13 -> 96205.6 | S13: The Echo Underground closure costs tie directly to commencement of Echo development.
A14: TAILINGS FACILITIES | B14: =IF(ISBLANK(Tailings!$C$1),"",Tailings!$C$1) -> TSF | D14: =Tailings1Total -> 344568.9001 | F14: =Tailings1LandTotal -> 0 | H14: =Tailings1WaterTotal -> 344568.9 | L14: =H14 -> 344568.9 | S14: The TSF closure costs tie directly to commencement of TSF development.
A15: ROCK PILE | B15: =IF(ISBLANK('Rock Pile'!$C$1),"",'Rock Pile'!$C$1) -> Umwelt, Llama, Echo and TSF | D15: =RP1Total -> 16800000 | F15: =RP1LandTotal -> 0 | H15: =D15 -> 16800000 | K15: =$H$15*0.2 -> 3360000 | L15: =$H$15*0.59 -> 9912000 | M15: =$H$15*0.19 -> 3192000 | R15: =$H$15*0.02 -> 336000 | S15: Split determined by WRSA Disturbance Footprint (ICRP Table B-012): Umwelt (20%), Llama (19%), TSF (59%), Echo (2%). Timing tied directly to commencement of Open Pit development; exception is Goose Main portion tied directly with TSF development.
A16: BUILDINGS AND EQUIPMENT | B16: =IF(ISBLANK('Bldgs & Equip'!$C$1),"",'Bldgs & Equip'!$C$1) ->  | D16: =Bldg1Total -> 2069430.617 | F16: =Bldg1LandTotal -> 0 | H16: =Bldg1WaterTotal -> 2069430.617 | J16: =$H$16*0.8 -> 1655544.493 | K16: =$H$16*0.05 -> 103471.5308 | M16: =$H$16*0.05 -> 103471.5308 | P16: 103471.5308 | R16: =$H$16*0.05 -> 103471.5308 | S16: Building and Equipment costs tie to construction activities in each area. 80% of the total is estimated in the Initial Infrastructure with 5% in Umwelt, Llama, Echo, and Goose Main.
A17: CHEMICALS AND CONTAMINATED SOIL MANAGEMENT | B17: =IF(ISBLANK(Chemicals!$C$1),"",Chemicals!$C$1) ->  | D17: =Chem1Total -> 1393130 | F17: =Chem1LandTotal -> 0 | H17: =Chem1WaterTotal -> 1393130 | J17: =$H$17*0.6 -> 835878 | K17: =$H$17*0.1 -> 139313 | M17: =$H$17*0.1 -> 139313 | P17: 139313 | R17: 139313 | S17: Chemical and Contaminated Soil Management costs tie to construction activities in each area. 60% of the total is estimated in the Initial Infrastructure with 10% in Umwelt, Llama, Echo, and Goose Main.
A18: SURFACE AND GROUNDWATER MANAGEMENT | B18: =IF(ISBLANK('Water Treatment'!$C$1),"",'Water Treatment'!$C$1) ->  | D18: =Water1Total -> 346699.3285 | F18: - | H18: =Water1Total -> 346699.3285 | J18: ='Water Management'!K77 -> 50964.47719 | K18: ='Water Management'!L77 -> 112720.3771 | L18: ='Water Management'!M77 -> 21400 | M18: ='Water Management'!N77 -> 7962.536434 | N18: ='Water Management'!O77 -> 13000 | P18: ='Water Management'!Q77 -> 693.5 | R18: ='Water Management'!S77 -> 139958.4377 | S18: Surface and Groundwater Management costs tie to construction of individual infrastructure components.
A19: INTERIM CARE AND MAINTENANCE | B19: =IF(ISBLANK(ICM!$C$1),"",ICM!$C$1) ->  | D19: =ICMTotal -> 952618.8 | F19: - | H19: =ICMTotal -> 952618.8 | J19: =H19*0.6 -> 571571.28 | K19: =$H$19*0.08 -> 76209.504 | L19: =$H$19*0.08 -> 76209.504 | M19: 76209.504 | P19: 76209.504 | R19: 76209.504 | S19: Interim Care and Maintenance costs tie to construction activities in each area. 60% of the total is estimated in the Initial Infrastructure with 8% in TSF, Umwelt, Llama, Echo, and Goose Main.
B20: SUBTOTAL: Capital Costs | D20: =SUM(D5:D19) -> 22902715.42 | F20: =SUM(F5:F19) -> 0 | H20: =SUM(H5:H19) -> 22902715.42 | J20: =SUM(J5:J19) -> 3117758.251 | K20: =SUM(K5:K19) -> 3842139.299 | L20: 10354178.4 | M20: 3545133.171 | N20: 116655.6 | O20: 320806.54 | P20: 404537.1161 | Q20: 284414.6529 | R20: 917092.385 | S20: =SUM(J20:R20) -> 22902715.42
B21: PERCENT OF SUBTOTAL | F21: =IF(F20<0.01,0,F20/D20) -> 0 | H21: =IF(H20<0.01,0,H20/D20) -> 0.9999999999 | J21: =J20/$H$20 -> 0.1361305065 | K21: =K20/$H$20 -> 0.1677591163 | L21: 0.4520939205 | M21: 0.1547909541 | N21: 0.005093527028 | O21: 0.01400735826 | P21: 0.01766328178 | Q21: 0.0124183813 | R21: 0.04004295422
A23: INDIRECT COSTS | D23: COST | F23: LAND LIABILITY | H23: TOTAL LIABILITY
A24: MOBILIZATION/DEMOBILIZATION | B24: =IF(ISBLANK(Mobilization!$C$1),"",Mobilization!$C$1) ->  | D24: =MobTotal -> 4244387.833 | F24: =D24*$F$21 -> 0 | H24: =D24*$H$21 -> 4244387.833 | J24: =$H$24*J21 -> 577790.6656 | K24: =$H$24*K21 -> 712034.7521 | L24: 1918861.936 | M24: 656992.8423 | N24: 21618.90415 | O24: 59452.66097 | P24: 74969.8183 | Q24: 52708.4265 | R24: 169957.8277 | S24: Mobilization Costs are a direct proportion of the Direct Cost percentages.
A25: POST-CLOSURE MONITORING AND MAINTENANCE | B25: =IF(ISBLANK(PostClosure!$K$1),"",PostClosure!$K$1) ->  | D25: =PC1Total -> 7568243.195 | F25: =D25*$F$21 -> 0 | H25: =D25*$H$21 -> 7568243.195 | J25: =($H$25-6000000)*J21 -> 213485.7405 | K25: =($H$25-6000000)*K21+6000000*0.21 -> 1523087.093 | L25: =($H$25-6000000)*L21 -> 708993.2143 | M25: =($H$25-6000000)*M21+6000000*0.09 -> 782749.8604 | N25: =($H$25-6000000)*N21+6000000*0.06 -> 367987.8891 | O25: =($H$25-6000000)*O21+6000000*0.27 -> 1641966.944 | P25: =($H$25-6000000)*P21+6000000*0.26 -> 1587700.321 | Q25: =($H$25-6000000)*Q21+6000000*0.07 -> 439475.042 | R25: =($H$25-6000000)*R21+6000000*(0.01+0.03) -> 302797.0905 | S25: Distribution of Water Treatment ($6M) split based on ore volumes by deposit (Ore MP Table 5.3-1): Umwet OP (21%), Llama OP (9%), Goose Main OP (26%), Echo OP (1%), Umwelt UG (27%), Llama UG (6%), Goose Main UG (7%), Echo UG (3%); remainder of costs based on Direct Cost percentages.
A26: ENGINEERING | B26: 0.1 | D26: =B26*$D$20 -> 2290271.542 | F26: =+$F$21*D26 -> 0 | H26: =+$H$21*D26 -> 2290271.542 | J26: =$H$26*J21 -> 311775.8251 | K26: =$H$26*K21 -> 384213.9299 | L26: 1035417.84 | M26: 354513.3171 | N26: 11665.56 | O26: 32080.654 | P26: 40453.71161 | Q26: 28441.46529 | R26: 91709.2385 | S26: Engineering costs are a direct proportion (10%) of the Direct Costs percentages.
A27: PROJECT MANAGEMENT | B27: 0.05 | D27: 1145135.771 | F27: 0 | H27: 1145135.771 | J27: =$H$27*J21 -> 155887.9125 | K27: =$H$27*K21 -> 192106.965 | L27: 517708.9202 | M27: 177256.6586 | N27: 5832.78 | O27: 16040.327 | P27: 20226.8558 | Q27: 14220.73264 | R27: 45854.61925 | S27: Project Management costs are a direct proportion (5%) of the Direct Cost percentages.
A28: HEALTH AND SAFETY PLANS/MONITORING & QA/QC | B28: 0.01 | D28: 229027.1542 | F28: 0 | H28: 229027.1542 | J28: =$H$28*J21 -> 31177.58251 | K28: =$H$28*K21 -> 38421.39299 | L28: 103541.784 | M28: 35451.33171 | N28: 1166.556 | O28: 3208.0654 | P28: 4045.371161 | Q28: 2844.146529 | R28: 9170.92385 | S28: Health and Safety Plans/Monitoring & QA/QC costs are a direct proportion (1%) of the Direct Cost percentages.
A29: BONDING/INSURANCE | B29: 0.01 | D29: 229027.1542 | F29: 0 | H29: 229027.1542 | J29: =$H$29*J21 -> 31177.58251 | K29: =$H$29*K21 -> 38421.39299 | L29: 103541.784 | M29: 35451.33171 | N29: 1166.556 | O29: 3208.0654 | P29: 4045.371161 | Q29: 2844.146529 | R29: 9170.92385 | S29: Bonding/Insurance costs are a direct proportion (1%) of the subtotal capital costs.
A30: CONTINGENCY | B30: 0.2 | D30: 4580543.084 | F30: 0 | H30: 4580543.084 | J30: =$H$30*J21 -> 623551.6501 | K30: =$H$30*K21 -> 768427.8599 | L30: 2070835.681 | M30: 709026.6343 | N30: 23331.12 | O30: 64161.308 | P30: 80907.42322 | Q30: 56882.93058 | R30: 183418.477 | S30: Contingency costs are a direct proportion (20%) of the subtotal capital costs.
A31: MARKET PRICE FACTOR ADJUSTMENT | B31: 0 | D31: 0 | F31: 0 | H31: 0 | J31: =$H$31*J21 -> 0 | K31: =$H$31*K21 -> 0 | L31: 0 | M31: 0 | N31: 0 | O31: 0 | P31: 0 | Q31: 0 | R31: 0 | S31: There are no Market Price Factor Adjustments.
B32: SUBTOTAL: Indirect Costs | D32: =SUM(D24:D31) -> 20286635.73 | F32: =SUM(F24:F31) -> 0 | H32: =SUM(H24:H31) -> 20286635.73 | J32: =SUM(J24:J31) -> 1944846.959 | K32: =SUM(K24:K31) -> 3656713.385 | L32: 6458901.159 | M32: 2751441.976 | N32: 432769.3652 | O32: 1820118.025 | P32: 1812348.873 | Q32: 597416.89 | R32: 812079.1006 | S32: =SUM(J32:R32) -> 20286635.73
A34: TOTAL COSTS | D34: =D20+D32 -> 43189351.15 | F34: =F20+F32 -> 0 | H34: =H20+H32 -> 43189351.15 | J34: =J20+J32 -> 5062605.209 | K34: =K20+K32 -> 7498852.685 | L34: 16813079.56 | M34: 6296575.147 | N34: 549424.9652 | O34: 2140924.565 | P34: 2216885.989 | Q34: 881831.5429 | R34: 1729171.486
J37: Y-3 | K37: Y-2 | L37: Y-1 | M37: Y1 | N37: Y-1 | O37: Y1 | P37: Y2 | Q37: Y4 | R37: Y4 & Y5

Sheet Open Pit
A1: 5 | B1: Open Pit Name: | C1: Umwelt | G1: Pit # | H1: 1 | K1: =H1 -> 1 | M1: Open Pit Name: | N1: Llama | R1: Pit # | S1: =H1+1 -> 2 | V1: =S1 -> 2 | X1: Open Pit Name: | Y1: Echo | AC1: Pit # | AD1: =S1+1 -> 3 | AG1: =AD1 -> 3 | AI1: Open Pit Name: | AJ1: Goose Main | AN1: Pit # | AO1: =AD1+1 -> 4 | AR1: =AO1 -> 4 | AT1: Quarry Name: | AU1: Airstrip Quarry | AY1: Quarry # | AZ1: 1 | BC1: =AZ1 -> 1 | BE1: ICRP Section | BF1: Comments
B3: ACTIVITY/MATERIAL | C3: Notes | D3: Units | E3: Quantity | F3: Cost Code | G3: Unit Cost | H3: Cost | I3: % Land | J3: Land Cost | K3: Total Cost | M3: ACTIVITY/MATERIAL | N3: Notes | O3: Units | P3: Quantity | Q3: Cost Code | R3: Unit Cost | S3: Cost | T3: % Land | U3: Land Cost | V3: Total Cost | X3: ACTIVITY/MATERIAL | Y3: Notes | Z3: Units | AA3: Quantity | AB3: Cost Code | AC3: Unit Cost | AD3: Cost | AE3: % Land | AF3: Land Cost | AG3: Total Cost | AI3: ACTIVITY/MATERIAL | AJ3: Notes | AK3: Units | AL3: Quantity | AM3: Cost Code | AN3: Unit Cost | AO3: Cost | AP3: % Land | AQ3: Land Cost | AR3: Total Cost | AT3: ACTIVITY/MATERIAL | AU3: Notes | AV3: Units | AW3: Quantity | AX3: Cost Code | AY3: Unit Cost | AZ3: Cost | BA3: % Land | BB3: Land Cost | BC3: Total Cost
B4: CONTROL ACCESS | M4: CONTROL ACCESS | X4: CONTROL ACCESS | AI4: CONTROL ACCESS | AT4: CONTROL ACCESS
B5: Fence | D5: m | F5: =NA() ->  | G5: =IF(ISNA(F5),0,INDEX(IF(UPPER(RIGHT(F5,1))=Low,UnitCostLow, IF(UPPER(RIGHT(F5,1))=High,UnitCostHigh,UnitCostSpecified)),MATCH(UPPER(LEFT(F5,LEN(F5)-1)),CostCode,0))) -> 0 | H5: =G5*E5 -> 0 | J5: =H5*I5 -> 0 | K5: =H5*(1-I5) -> 0 | M5: Fence | O5: m | Q5: =NA() ->  | R5: =IF(ISNA(Q5),0,INDEX(IF(UPPER(RIGHT(Q5,1))=Low,UnitCostLow, IF(UPPER(RIGHT(Q5,1))=High,UnitCostHigh,UnitCostSpecified)),MATCH(UPPER(LEFT(Q5,LEN(Q5)-1)),CostCode,0))) -> 0 | S5: =R5*P5 -> 0 | U5: =S5*T5 -> 0 | V5: =S5*(1-T5) -> 0 | X5: Fence | Z5: m | AB5: =NA() ->  | AC5: =IF(ISNA(AB5),0,INDEX(IF(UPPER(RIGHT(AB5,1))=Low,UnitCostLow, IF(UPPER(RIGHT(AB5,1))=High,UnitCostHigh,UnitCostSpecified)),MATCH(UPPER(LEFT(AB5,LEN(AB5)-1)),CostCode,0))) -> 0 | AD5: =AC5*AA5 -> 0 | AF5: =AD5*AE5 -> 0 | AG5: =AD5*(1-AE5) -> 0 | AI5: Fence | AK5: m | AM5: =NA() ->  | AN5: =IF(ISNA(AM5),0,INDEX(IF(UPPER(RIGHT(AM5,1))=Low,UnitCostLow, IF(UPPER(RIGHT(AM5,1))=High,UnitCostHigh,UnitCostSpecified)),MATCH(UPPER(LEFT(AM5,LEN(AM5)-1)),CostCode,0))) -> 0 | AO5: =AN5*AL5 -> 0 | AQ5: =AO5*AP5 -> 0 | AR5: =AO5*(1-AP5) -> 0 | AT5: Fence | AV5: m | AX5: =NA() ->  | AY5: =IF(ISNA(AX5),0,INDEX(IF(UPPER(RIGHT(AX5,1))=Low,UnitCostLow, IF(UPPER(RIGHT(AX5,1))=High,UnitCostHigh,UnitCostSpecified)),MATCH(UPPER(LEFT(AX5,LEN(AX5)-1)),CostCode,0))) -> 0 | AZ5: =AY5*AW5 -> 0 | BB5: =AZ5*BA5 -> 0 | BC5: =AZ5*(1-BA5) -> 0
B6: Signs | C6: Assumed | D6: each | E6: 4 | F6: Sabina | G6: 75 | H6: =G6*E6 -> 300 | J6: =H6*I6 -> 0 | K6: =H6*(1-I6) -> 300 | M6: Signs | N6: Assumed | O6: each | P6: 4 | Q6: Sabina | R6: 75 | S6: =R6*P6 -> 300 | U6: 0 | V6: 300 | X6: Signs | Y6: Assumed | Z6: each | AA6: 4 | AB6: Sabina | AC6: 75 | AD6: =AC6*AA6 -> 300 | AF6: 0 | AG6: 300 | AI6: Signs | AJ6: Assumed | AK6: each | AL6: 4 | AM6: Sabina | AN6: 75 | AO6: =AN6*AL6 -> 300 | AQ6: 0 | AR6: 300 | AT6: Signs | AV6: each | AX6: =NA() ->  | AY6: =IF(ISNA(AX6),0,INDEX(IF(UPPER(RIGHT(AX6,1))=Low,UnitCostLow, IF(UPPER(RIGHT(AX6,1))=High,UnitCostHigh,UnitCostSpecified)),MATCH(UPPER(LEFT(AX6,LEN(AX6)-1)),CostCode,0))) -> 0 | AZ6: =AY6*AW6 -> 0 | BB6: =AZ6*BA6 -> 0 | BC6: =AZ6*(1-BA6) -> 0
B7: Berm at crest | C7: Estimated for continous berm with 1m diameter boulders, no spacing between boulders - 0.52 m3/m - assumed 50 % done during Operations | D7: m3 | E7: =ROUNDUP('SBB Comp. Est.'!F7*0.52*0.5,0)*1.05 -> 447.3 | F7: RR1H | G7: 17.75 | H7: =G7*E7 -> 7939.575 | J7: 0 | K7: 7939.575 | M7: Berm at crest | N7: Estimated for berm with 1m diameter boulders, no spacing between boulders - 0.52 m3/m; berm needed only where pit edge will not abute the final flooded lake footprint. | O7: m3 | P7: =ROUNDUP('SBB Comp. Est.'!F10*0.52,0)*1.05 -> 218.4 | Q7: RR1H | R7: 17.75 | S7: =R7*P7 -> 3876.6 | U7: 0 | V7: 3876.6 | X7: Berm at crest | Y7: Estimated for continous berm with 1m diameter boulders, no spacing between boulders - 0.52 m3/m - assumed 50 % done during Operations | Z7: m3 | AA7: =ROUNDUP('SBB Comp. Est.'!F8*0.52*0.5,0)*1.05 -> 204.75 | AB7: RR1H | AC7: 17.75 | AD7: =AC7*AA7 -> 3634.3125 | AF7: 0 | AG7: 3634.3125 | AI7: Berm at crest | AJ7: Estimated for continous berm with 1m diameter boulders, no spacing between boulders - 0.52 m3/m - assumed 50 % done during Operations | AK7: m3 | AL7: =ROUNDUP('SBB Comp. Est.'!F9*0.52*0.5,0)*1.05 -> 518.7 | AM7: RR1H | AN7: 17.75 | AO7: =AN7*AL7 -> 9206.925 | AQ7: 0 | AR7: 9206.925 | AT7: Berm at crest | AV7: m3 | AX7: RB1H | AY7: =IF(ISNA(AX7),0,INDEX(IF(UPPER(RIGHT(AX7,1))=Low,UnitCostLow, IF(UPPER(RIGHT(AX7,1))=High,UnitCostHigh,UnitCostSpecified)),MATCH(UPPER(LEFT(AX7,LEN(AX7)-1)),CostCode,0))) -> 17.05 | AZ7: =AY7*AW7 -> 0 | BB7: 0 | BC7: 0 | BE7: Section 5.2.1.4 for pits
B8: Block roads | C8: Temporary gate installation to allow water monitoring. It includes decommissioning of gate when no longer required. Exposed area after gate has been decommissioned will be blocked with boulders (exposed area along with block of roads with boulders included in berm cost above) | D8: allow | E8: 1 | F8: Sabina | G8: 5000 | H8: =G8*E8 -> 5000 | J8: 0 | K8: 5000 | M8: Block roads | N8: Temporary gate installation to allow water monitoring. It includes decommissioning of gate when no longer required. Exposed area after gate has been decommissioned will be blocked with boulders (exposed area along with block of roads with boulders included in berm cost above) | O8: allow | P8: 1 | Q8: Sabina | R8: 5000 | S8: =R8*P8 -> 5000 | U8: 0 | V8: 5000 | X8: Block roads | Y8: Temporary gate installation to allow water monitoring. It includes decommissioning of gate when no longer required. Exposed area after gate has been decommissioned will be blocked with boulders (exposed area along with block of roads with boulders included in berm cost above) | Z8: allow | AA8: 1 | AB8: Sabina | AC8: 5000 | AD8: =AC8*AA8 -> 5000 | AF8: 0 | AG8: 5000 | AI8: Block roads | AJ8: Temporary gate installation to allow water monitoring. It includes decommissioning of gate when no longer required. Exposed area after gate has been decommissioned will be blocked with boulders (exposed area along with block of roads with boulders included in berm cost above) | AK8: allow | AL8: 1 | AM8: Sabina | AN8: 5000 | AO8: =AN8*AL8 -> 5000 | AQ8: 0 | AR8: 5000 | AT8: Block roads | AV8: allow | AX8: =NA() ->  | AY8: 0 | AZ8: =AY8*AW8 -> 0 | BB8: 0 | BC8: 0
B9: Other | F9: =NA() ->  | G9: =IF(ISNA(F9),0,INDEX(IF(UPPER(RIGHT(F9,1))=Low,UnitCostLow, IF(UPPER(RIGHT(F9,1))=High,UnitCostHigh,UnitCostSpecified)),MATCH(UPPER(LEFT(F9,LEN(F9)-1)),CostCode,0))) -> 0 | H9: =G9*E9 -> 0 | J9: =H9*I9 -> 0 | K9: =H9*(1-I9) -> 0 | M9: Other | Q9: =NA() ->  | R9: =IF(ISNA(Q9),0,INDEX(IF(UPPER(RIGHT(Q9,1))=Low,UnitCostLow, IF(UPPER(RIGHT(Q9,1))=High,UnitCostHigh,UnitCostSpecified)),MATCH(UPPER(LEFT(Q9,LEN(Q9)-1)),CostCode,0))) -> 0 | S9: =R9*P9 -> 0 | U9: =S9*T9 -> 0 | V9: =S9*(1-T9) -> 0 | X9: Other | AB9: =NA() ->  | AC9: =IF(ISNA(AB9),0,INDEX(IF(UPPER(RIGHT(AB9,1))=Low,UnitCostLow, IF(UPPER(RIGHT(AB9,1))=High,UnitCostHigh,UnitCostSpecified)),MATCH(UPPER(LEFT(AB9,LEN(AB9)-1)),CostCode,0))) -> 0 | AD9: =AC9*AA9 -> 0 | AF9: =AD9*AE9 -> 0 | AG9: =AD9*(1-AE9) -> 0 | AI9: Other | AM9: =NA() ->  | AN9: =IF(ISNA(AM9),0,INDEX(IF(UPPER(RIGHT(AM9,1))=Low,UnitCostLow, IF(UPPER(RIGHT(AM9,1))=High,UnitCostHigh,UnitCostSpecified)),MATCH(UPPER(LEFT(AM9,LEN(AM9)-1)),CostCode,0))) -> 0 | AO9: =AN9*AL9 -> 0 | AQ9: =AO9*AP9 -> 0 | AR9: =AO9*(1-AP9) -> 0 | AT9: Other | AX9: =NA() ->  | AY9: =IF(ISNA(AX9),0,INDEX(IF(UPPER(RIGHT(AX9,1))=Low,UnitCostLow, IF(UPPER(RIGHT(AX9,1))=High,UnitCostHigh,UnitCostSpecified)),MATCH(UPPER(LEFT(AX9,LEN(AX9)-1)),CostCode,0))) -> 0 | AZ9: =AY9*AW9 -> 0 | BB9: =AZ9*BA9 -> 0 | BC9: =AZ9*(1-BA9) -> 0
B10: STABILITY STUDY | M10: STABILITY STUDY | X10: STABILITY STUDY | AI10: STABILITY STUDY | AT10: STABILITY STUDY
B11: Conduct stability and setback study | D11: allow | E11: 1 | F11: Sabina | G11: 17000 | H11: =G11*E11 -> 17000 | J11: =H11*I11 -> 0 | K11: =H11*(1-I11) -> 17000 | M11: Conduct stability and setback study | O11: allow | P11: 1 | Q11: Sabina | R11: 17000 | S11: =R11*P11 -> 17000 | U11: =S11*T11 -> 0 | V11: =S11*(1-T11) -> 17000 | X11: Conduct stability and setback study | Z11: allow | AA11: 1 | AB11: Sabina | AC11: 17000 | AD11: =AC11*AA11 -> 17000 | AF11: =AD11*AE11 -> 0 | AG11: =AD11*(1-AE11) -> 17000 | AI11: Conduct stability and setback study | AK11: allow | AL11: 1 | AM11: Sabina | AN11: 17000 | AO11: =AN11*AL11 -> 17000 | AQ11: =AO11*AP11 -> 0 | AR11: =AO11*(1-AP11) -> 17000 | AT11: Conduct stability and setback study | AU11: Not required for quarry | AV11: allow | AX11: =NA() ->  | AY11: =IF(ISNA(AX11),0,INDEX(IF(UPPER(RIGHT(AX11,1))=Low,UnitCostLow, IF(UPPER(RIGHT(AX11,1))=High,UnitCostHigh,UnitCostSpecified)),MATCH(UPPER(LEFT(AX11,LEN(AX11)-1)),CostCode,0))) -> 0 | AZ11: =AY11*AW11 -> 0 | BB11: =AZ11*BA11 -> 0 | BC11: =AZ11*(1-BA11) -> 0
B12: STABILIZE SLOPES | M12: STABILIZE SLOPES | X12: STABILIZE SLOPES | AI12: STABILIZE SLOPES | AT12: STABILIZE SLOPES
B13: Off-load crest, soil A | D13: m3 | F13: =NA() ->  | G13: 0 | H13: =G13*E13 -> 0 | J13: 0 | K13: 0 | M13: Off-load crest, soil A | O13: m3 | Q13: =NA() ->  | R13: =IF(ISNA(Q13),0,INDEX(IF(UPPER(RIGHT(Q13,1))=Low,UnitCostLow, IF(UPPER(RIGHT(Q13,1))=High,UnitCostHigh,UnitCostSpecified)),MATCH(UPPER(LEFT(Q13,LEN(Q13)-1)),CostCode,0))) -> 0 | S13: =R13*P13 -> 0 | U13: =S13*T13 -> 0 | V13: =S13*(1-T13) -> 0 | X13: Off-load crest, soil A | Z13: m3 | AB13: =NA() ->  | AC13: =IF(ISNA(AB13),0,INDEX(IF(UPPER(RIGHT(AB13,1))=Low,UnitCostLow, IF(UPPER(RIGHT(AB13,1))=High,UnitCostHigh,UnitCostSpecified)),MATCH(UPPER(LEFT(AB13,LEN(AB13)-1)),CostCode,0))) -> 0 | AD13: =AC13*AA13 -> 0 | AF13: =AD13*AE13 -> 0 | AG13: =AD13*(1-AE13) -> 0 | AI13: Off-load crest, soil A | AK13: m3 | AM13: =NA() ->  | AN13: =IF(ISNA(AM13),0,INDEX(IF(UPPER(RIGHT(AM13,1))=Low,UnitCostLow, IF(UPPER(RIGHT(AM13,1))=High,UnitCostHigh,UnitCostSpecified)),MATCH(UPPER(LEFT(AM13,LEN(AM13)-1)),CostCode,0))) -> 0 | AO13: =AN13*AL13 -> 0 | AQ13: =AO13*AP13 -> 0 | AR13: =AO13*(1-AP13) -> 0 | AT13: Off-load crest, soil A | AV13: m3 | AX13: =NA() ->  | AY13: =IF(ISNA(AX13),0,INDEX(IF(UPPER(RIGHT(AX13,1))=Low,UnitCostLow, IF(UPPER(RIGHT(AX13,1))=High,UnitCostHigh,UnitCostSpecified)),MATCH(UPPER(LEFT(AX13,LEN(AX13)-1)),CostCode,0))) -> 0 | AZ13: =AY13*AW13 -> 0 | BB13: =AZ13*BA13 -> 0 | BC13: =AZ13*(1-BA13) -> 0
B14: Off-load crest, soil B | D14: m3 | F14: =NA() ->  | G14: 0 | H14: 0 | J14: 0 | K14: 0 | M14: Off-load crest, soil B | O14: m3 | Q14: =NA() ->  | R14: 0 | S14: 0 | U14: 0 | V14: 0 | X14: Off-load crest, soil B | Z14: m3 | AB14: =NA() ->  | AC14: 0 | AD14: 0 | AF14: 0 | AG14: 0 | AI14: Off-load crest, soil B | AK14: m3 | AM14: =NA() ->  | AN14: 0 | AO14: 0 | AQ14: 0 | AR14: 0 | AT14: Off-load crest, soil B | AV14: m3 | AX14: =NA() ->  | AY14: 0 | AZ14: 0 | BB14: 0 | BC14: 0
B15: Doze/trim overburden at crest | D15: m3 | F15: =NA() ->  | G15: 0 | H15: 0 | J15: 0 | K15: 0 | M15: Doze/trim overburden at crest | O15: m3 | Q15: =NA() ->  | R15: 0 | S15: 0 | U15: 0 | V15: 0 | X15: Doze/trim overburden at crest | Z15: m3 | AB15: =NA() ->  | AC15: 0 | AD15: 0 | AF15: 0 | AG15: 0 | AI15: Doze/trim overburden at crest | AK15: m3 | AM15: =NA() ->  | AN15: 0 | AO15: 0 | AQ15: 0 | AR15: 0 | AT15: Doze/trim overburden at crest | AV15: m3 | AX15: =NA() ->  | AY15: 0 | AZ15: 0 | BB15: 0 | BC15: 0
B16: Drill & blast pit crest | D16: m3 | F16: =NA() ->  | G16: 0 | H16: 0 | J16: 0 | K16: 0 | M16: Drill & blast pit crest | O16: m3 | Q16: =NA() ->  | R16: 0 | S16: 0 | U16: 0 | V16: 0 | X16: Drill & blast pit crest | Z16: m3 | AB16: =NA() ->  | AC16: 0 | AD16: 0 | AF16: 0 | AG16: 0 | AI16: Drill & blast pit crest | AK16: m3 | AM16: =NA() ->  | AN16: 0 | AO16: 0 | AQ16: 0 | AR16: 0 | AT16: Drill & blast pit crest | AV16: m3 | AX16: =NA() ->  | AY16: 0 | AZ16: 0 | BB16: 0 | BC16: 0
B17: Buttress slope | D17: m3 | F17: =NA() ->  | G17: 0 | H17: 0 | J17: 0 | K17: 0 | M17: Buttress slope | O17: m3 | Q17: =NA() ->  | R17: 0 | S17: 0 | U17: 0 | V17: 0 | X17: Buttress slope | Z17: m3 | AB17: =NA() ->  | AC17: 0 | AD17: 0 | AF17: 0 | AG17: 0 | AI17: Buttress slope | AK17: m3 | AM17: =NA() ->  | AN17: 0 | AO17: 0 | AQ17: 0 | AR17: 0 | AT17: Buttress slope | AV17: m3 | AX17: =NA() ->  | AY17: 0 | AZ17: 0 | BB17: 0 | BC17: 0
B18: Other | F18: =NA() ->  | G18: 0 | H18: 0 | J18: 0 | K18: 0 | M18: Other | Q18: =NA() ->  | R18: 0 | S18: 0 | U18: 0 | V18: 0 | X18: Other | AB18: =NA() ->  | AC18: 0 | AD18: 0 | AF18: 0 | AG18: 0 | AI18: Other | AM18: =NA() ->  | AN18: 0 | AO18: 0 | AQ18: 0 | AR18: 0 | AT18: Other | AU18: Backhoe to pull down loose rock on bedrock backslope - assumed | AV18: hrs | AW18: 20 | AX18: exc-sL | AY18: 190 | AZ18: 3800 | BB18: 0 | BC18: 3800
B19: COVER/CONTOUR SLOPES | M19: COVER/CONTOUR SLOPES | X19: COVER/CONTOUR SLOPES | AI19: COVER/CONTOUR SLOPES | AT19: COVER/CONTOUR SLOPES
B20: Place fill, soil A | D20: m3 | F20: =NA() ->  | G20: 0 | H20: =G20*E20 -> 0 | J20: 0 | K20: 0 | M20: Place fill, soil A | O20: m3 | Q20: =NA() ->  | R20: =IF(ISNA(Q20),0,INDEX(IF(UPPER(RIGHT(Q20,1))=Low,UnitCostLow, IF(UPPER(RIGHT(Q20,1))=High,UnitCostHigh,UnitCostSpecified)),MATCH(UPPER(LEFT(Q20,LEN(Q20)-1)),CostCode,0))) -> 0 | S20: =R20*P20 -> 0 | U20: =S20*T20 -> 0 | V20: =S20*(1-T20) -> 0 | X20: Place fill, soil A | Z20: m3 | AB20: =NA() ->  | AC20: =IF(ISNA(AB20),0,INDEX(IF(UPPER(RIGHT(AB20,1))=Low,UnitCostLow, IF(UPPER(RIGHT(AB20,1))=High,UnitCostHigh,UnitCostSpecified)),MATCH(UPPER(LEFT(AB20,LEN(AB20)-1)),CostCode,0))) -> 0 | AD20: =AC20*AA20 -> 0 | AF20: =AD20*AE20 -> 0 | AG20: =AD20*(1-AE20) -> 0 | AI20: Place fill, soil A | AK20: m3 | AM20: =NA() ->  | AN20: =IF(ISNA(AM20),0,INDEX(IF(UPPER(RIGHT(AM20,1))=Low,UnitCostLow, IF(UPPER(RIGHT(AM20,1))=High,UnitCostHigh,UnitCostSpecified)),MATCH(UPPER(LEFT(AM20,LEN(AM20)-1)),CostCode,0))) -> 0 | AO20: =AN20*AL20 -> 0 | AQ20: =AO20*AP20 -> 0 | AR20: =AO20*(1-AP20) -> 0 | AT20: Place fill, soil A | AV20: m3 | AX20: =NA() ->  | AY20: =IF(ISNA(AX20),0,INDEX(IF(UPPER(RIGHT(AX20,1))=Low,UnitCostLow, IF(UPPER(RIGHT(AX20,1))=High,UnitCostHigh,UnitCostSpecified)),MATCH(UPPER(LEFT(AX20,LEN(AX20)-1)),CostCode,0))) -> 0 | AZ20: =AY20*AW20 -> 0 | BB20: =AZ20*BA20 -> 0 | BC20: =AZ20*(1-BA20) -> 0
B21: Place fill, soil B | D21: m3 | F21: =NA() ->  | G21: 0 | H21: 0 | J21: 0 | K21: 0 | M21: Place fill, soil B | O21: m3 | Q21: =NA() ->  | R21: 0 | S21: 0 | U21: 0 | V21: 0 | X21: Place fill, soil B | Z21: m3 | AB21: =NA() ->  | AC21: 0 | AD21: 0 | AF21: 0 | AG21: 0 | AI21: Place fill, soil B | AK21: m3 | AM21: =NA() ->  | AN21: 0 | AO21: 0 | AQ21: 0 | AR21: 0 | AT21: Place fill, soil B | AV21: m3 | AX21: =NA() ->  | AY21: 0 | AZ21: 0 | BB21: 0 | BC21: 0
B22: Rip rap | D22: m3 | F22: =NA() ->  | G22: 0 | H22: 0 | J22: 0 | K22: 0 | M22: Rip rap | O22: m3 | Q22: =NA() ->  | R22: 0 | S22: 0 | U22: 0 | V22: 0 | X22: Rip rap | Z22: m3 | AB22: =NA() ->  | AC22: 0 | AD22: 0 | AF22: 0 | AG22: 0 | AI22: Rip rap | AK22: m3 | AM22: =NA() ->  | AN22: 0 | AO22: 0 | AQ22: 0 | AR22: 0 | AT22: Rip rap | AV22: m3 | AX22: =NA() ->  | AY22: 0 | AZ22: 0 | BB22: 0 | BC22: 0
B23: Vegetate slopes | D23: ha | F23: =NA() ->  | G23: 0 | H23: 0 | J23: 0 | K23: 0 | M23: Vegetate slopes | O23: ha | Q23: =NA() ->  | R23: 0 | S23: 0 | U23: 0 | V23: 0 | X23: Vegetate slopes | Z23: ha | AB23: =NA() ->  | AC23: 0 | AD23: 0 | AF23: 0 | AG23: 0 | AI23: Vegetate slopes | AK23: ha | AM23: =NA() ->  | AN23: 0 | AO23: 0 | AQ23: 0 | AR23: 0 | AT23: Vegetate slopes | AU23: Allow to revegetate naturally | AV23: ha | AX23: =NA() ->  | AY23: 0 | AZ23: 0 | BB23: 0 | BC23: 0
B24: Vegetate pit floor | D24: ha | F24: =NA() ->  | G24: 0 | H24: 0 | J24: 0 | K24: 0 | M24: Vegetate pit floor | O24: ha | Q24: =NA() ->  | R24: 0 | S24: 0 | U24: 0 | V24: 0 | X24: Vegetate pit floor | Z24: ha | AB24: =NA() ->  | AC24: 0 | AD24: 0 | AF24: 0 | AG24: 0 | AI24: Vegetate pit floor | AK24: ha | AM24: =NA() ->  | AN24: 0 | AO24: 0 | AQ24: 0 | AR24: 0 | AT24: Vegetate pit floor | AV24: ha | AX24: =NA() ->  | AY24: 0 | AZ24: 0 | BB24: 0 | BC24: 0
B25: Other | F25: =NA() ->  | G25: 0 | H25: 0 | J25: 0 | K25: 0 | M25: Other | Q25: =NA() ->  | R25: 0 | S25: 0 | U25: 0 | V25: 0 | X25: Other | AB25: =NA() ->  | AC25: 0 | AD25: 0 | AF25: 0 | AG25: 0 | AI25: Other | AM25: =NA() ->  | AN25: 0 | AO25: 0 | AQ25: 0 | AR25: 0 | AT25: Other | AX25: =NA() ->  | AY25: 0 | AZ25: 0 | BB25: 0 | BC25: 0
B26: CONSTRUCT DIVERSION DITCHES | M26: CONSTRUCT DIVERSION DITCHES | X26: CONSTRUCT DIVERSION DITCHES | AI26: CONSTRUCT DIVERSION DITCHES | AT26: CONSTRUCT DIVERSION DITCHES
B27: Excavate ditches -soil | D27: m3 | F27: =NA() ->  | G27: =IF(ISNA(F27),0,INDEX(IF(UPPER(RIGHT(F27,1))=Low,UnitCostLow, IF(UPPER(RIGHT(F27,1))=High,UnitCostHigh,UnitCostSpecified)),MATCH(UPPER(LEFT(F27,LEN(F27)-1)),CostCode,0))) -> 0 | H27: =G27*E27 -> 0 | J27: =H27*I27 -> 0 | K27: =H27*(1-I27) -> 0 | M27: Excavate ditches -soil | O27: m3 | Q27: =NA() ->  | R27: =IF(ISNA(Q27),0,INDEX(IF(UPPER(RIGHT(Q27,1))=Low,UnitCostLow, IF(UPPER(RIGHT(Q27,1))=High,UnitCostHigh,UnitCostSpecified)),MATCH(UPPER(LEFT(Q27,LEN(Q27)-1)),CostCode,0))) -> 0 | S27: =R27*P27 -> 0 | U27: =S27*T27 -> 0 | V27: =S27*(1-T27) -> 0 | X27: Excavate ditches -soil | Z27: m3 | AB27: =NA() ->  | AC27: =IF(ISNA(AB27),0,INDEX(IF(UPPER(RIGHT(AB27,1))=Low,UnitCostLow, IF(UPPER(RIGHT(AB27,1))=High,UnitCostHigh,UnitCostSpecified)),MATCH(UPPER(LEFT(AB27,LEN(AB27)-1)),CostCode,0))) -> 0 | AD27: =AC27*AA27 -> 0 | AF27: =AD27*AE27 -> 0 | AG27: =AD27*(1-AE27) -> 0 | AI27: Excavate ditches -soil | AK27: m3 | AM27: =NA() ->  | AN27: =IF(ISNA(AM27),0,INDEX(IF(UPPER(RIGHT(AM27,1))=Low,UnitCostLow, IF(UPPER(RIGHT(AM27,1))=High,UnitCostHigh,UnitCostSpecified)),MATCH(UPPER(LEFT(AM27,LEN(AM27)-1)),CostCode,0))) -> 0 | AO27: =AN27*AL27 -> 0 | AQ27: =AO27*AP27 -> 0 | AR27: =AO27*(1-AP27) -> 0 | AT27: Excavate ditches -soil | AV27: m3 | AX27: =NA() ->  | AY27: =IF(ISNA(AX27),0,INDEX(IF(UPPER(RIGHT(AX27,1))=Low,UnitCostLow, IF(UPPER(RIGHT(AX27,1))=High,UnitCostHigh,UnitCostSpecified)),MATCH(UPPER(LEFT(AX27,LEN(AX27)-1)),CostCode,0))) -> 0 | AZ27: =AY27*AW27 -> 0 | BB27: =AZ27*BA27 -> 0 | BC27: =AZ27*(1-BA27) -> 0 | BE27: Section 5.2.1.5 for pits
B28: Excavate ditches -rock | D28: m3 | F28: =NA() ->  | G28: =IF(ISNA(F28),0,INDEX(IF(UPPER(RIGHT(F28,1))=Low,UnitCostLow, IF(UPPER(RIGHT(F28,1))=High,UnitCostHigh,UnitCostSpecified)),MATCH(UPPER(LEFT(F28,LEN(F28)-1)),CostCode,0))) -> 0 | H28: =G28*E28 -> 0 | J28: 0 | K28: 0 | M28: Excavate ditches -rock | O28: m3 | Q28: =NA() ->  | R28: =IF(ISNA(Q28),0,INDEX(IF(UPPER(RIGHT(Q28,1))=Low,UnitCostLow, IF(UPPER(RIGHT(Q28,1))=High,UnitCostHigh,UnitCostSpecified)),MATCH(UPPER(LEFT(Q28,LEN(Q28)-1)),CostCode,0))) -> 0 | S28: =R28*P28 -> 0 | U28: 0 | V28: 0 | X28: Excavate ditches -rock | Z28: m3 | AB28: =NA() ->  | AC28: =IF(ISNA(AB28),0,INDEX(IF(UPPER(RIGHT(AB28,1))=Low,UnitCostLow, IF(UPPER(RIGHT(AB28,1))=High,UnitCostHigh,UnitCostSpecified)),MATCH(UPPER(LEFT(AB28,LEN(AB28)-1)),CostCode,0))) -> 0 | AD28: =AC28*AA28 -> 0 | AF28: 0 | AG28: 0 | AI28: Excavate ditches -rock | AK28: m3 | AM28: =NA() ->  | AN28: =IF(ISNA(AM28),0,INDEX(IF(UPPER(RIGHT(AM28,1))=Low,UnitCostLow, IF(UPPER(RIGHT(AM28,1))=High,UnitCostHigh,UnitCostSpecified)),MATCH(UPPER(LEFT(AM28,LEN(AM28)-1)),CostCode,0))) -> 0 | AO28: =AN28*AL28 -> 0 | AQ28: 0 | AR28: 0 | AT28: Excavate ditches -rock | AV28: m3 | AX28: =NA() ->  | AY28: =IF(ISNA(AX28),0,INDEX(IF(UPPER(RIGHT(AX28,1))=Low,UnitCostLow, IF(UPPER(RIGHT(AX28,1))=High,UnitCostHigh,UnitCostSpecified)),MATCH(UPPER(LEFT(AX28,LEN(AX28)-1)),CostCode,0))) -> 0 | AZ28: =AY28*AW28 -> 0 | BB28: 0 | BC28: 0
B29: Rip rap in channel base | D29: m3 | F29: =NA() ->  | G29: =IF(ISNA(F29),0,INDEX(IF(UPPER(RIGHT(F29,1))=Low,UnitCostLow, IF(UPPER(RIGHT(F29,1))=High,UnitCostHigh,UnitCostSpecified)),MATCH(UPPER(LEFT(F29,LEN(F29)-1)),CostCode,0))) -> 0 | H29: =G29*E29 -> 0 | J29: 0 | K29: 0 | M29: Rip rap in channel base | O29: m3 | Q29: =NA() ->  | R29: =IF(ISNA(Q29),0,INDEX(IF(UPPER(RIGHT(Q29,1))=Low,UnitCostLow, IF(UPPER(RIGHT(Q29,1))=High,UnitCostHigh,UnitCostSpecified)),MATCH(UPPER(LEFT(Q29,LEN(Q29)-1)),CostCode,0))) -> 0 | S29: =R29*P29 -> 0 | U29: 0 | V29: 0 | X29: Rip rap in channel base | Z29: m3 | AB29: =NA() ->  | AC29: =IF(ISNA(AB29),0,INDEX(IF(UPPER(RIGHT(AB29,1))=Low,UnitCostLow, IF(UPPER(RIGHT(AB29,1))=High,UnitCostHigh,UnitCostSpecified)),MATCH(UPPER(LEFT(AB29,LEN(AB29)-1)),CostCode,0))) -> 0 | AD29: =AC29*AA29 -> 0 | AF29: 0 | AG29: 0 | AI29: Rip rap in channel base | AK29: m3 | AM29: =NA() ->  | AN29: =IF(ISNA(AM29),0,INDEX(IF(UPPER(RIGHT(AM29,1))=Low,UnitCostLow, IF(UPPER(RIGHT(AM29,1))=High,UnitCostHigh,UnitCostSpecified)),MATCH(UPPER(LEFT(AM29,LEN(AM29)-1)),CostCode,0))) -> 0 | AO29: =AN29*AL29 -> 0 | AQ29: 0 | AR29: 0 | AT29: Rip rap in channel base | AV29: m3 | AX29: =NA() ->  | AY29: =IF(ISNA(AX29),0,INDEX(IF(UPPER(RIGHT(AX29,1))=Low,UnitCostLow, IF(UPPER(RIGHT(AX29,1))=High,UnitCostHigh,UnitCostSpecified)),MATCH(UPPER(LEFT(AX29,LEN(AX29)-1)),CostCode,0))) -> 0 | AZ29: =AY29*AW29 -> 0 | BB29: 0 | BC29: 0
B30: CONSTRUCT SPILLWAY | M30: CONSTRUCT SPILLWAY | X30: CONSTRUCT SPILLWAY | AI30: CONSTRUCT SPILLWAY | AT30: CONSTRUCT SPILLWAY
B31: Excavate channel | C31: 200 m long, 6 m wide and 1 m deep | D31: m3 | E31: ='SBB Comp. Est.'!F17 -> 1200 | F31: SB1L | G31: 4.3 | H31: =G31*E31 -> 5160 | J31: 0 | K31: 5160 | M31: Excavate channel | N31: Spillway not required; will follow natural drainage to Umwelt Lake. | O31: m3 | Q31: =NA() ->  | R31: =IF(ISNA(Q31),0,INDEX(IF(UPPER(RIGHT(Q31,1))=Low,UnitCostLow, IF(UPPER(RIGHT(Q31,1))=High,UnitCostHigh,UnitCostSpecified)),MATCH(UPPER(LEFT(Q31,LEN(Q31)-1)),CostCode,0))) -> 0 | S31: =R31*P31 -> 0 | U31: =S31*T31 -> 0 | V31: =S31*(1-T31) -> 0 | X31: Excavate channel | Y31: Spillway not required; will follow natural drainage to Goose Lake. | Z31: m3 | AB31: =NA() ->  | AC31: =IF(ISNA(AB31),0,INDEX(IF(UPPER(RIGHT(AB31,1))=Low,UnitCostLow, IF(UPPER(RIGHT(AB31,1))=High,UnitCostHigh,UnitCostSpecified)),MATCH(UPPER(LEFT(AB31,LEN(AB31)-1)),CostCode,0))) -> 0 | AD31: =AC31*AA31 -> 0 | AF31: =AD31*AE31 -> 0 | AG31: =AD31*(1-AE31) -> 0 | AI31: Excavate channel | AJ31: 100 m long, 6 m wide and 1 m deep | AK31: m3 | AL31: ='SBB Comp. Est.'!F20 -> 600 | AM31: SB1L | AN31: =IF(ISNA(AM31),0,INDEX(IF(UPPER(RIGHT(AM31,1))=Low,UnitCostLow, IF(UPPER(RIGHT(AM31,1))=High,UnitCostHigh,UnitCostSpecified)),MATCH(UPPER(LEFT(AM31,LEN(AM31)-1)),CostCode,0))) -> 4.3 | AO31: =AN31*AL31 -> 2580 | AQ31: =AO31*AP31 -> 0 | AR31: =AO31*(1-AP31) -> 2580 | AT31: Excavate channel | AU31: Not required. Quarry base will be graded for sheet drainage. | AV31: m3 | AX31: SB1L | AY31: =IF(ISNA(AX31),0,INDEX(IF(UPPER(RIGHT(AX31,1))=Low,UnitCostLow, IF(UPPER(RIGHT(AX31,1))=High,UnitCostHigh,UnitCostSpecified)),MATCH(UPPER(LEFT(AX31,LEN(AX31)-1)),CostCode,0))) -> 4.3 | AZ31: =AY31*AW31 -> 0 | BB31: =AZ31*BA31 -> 0 | BC31: =AZ31*(1-BA31) -> 0 | BE31: Section 5.2.1.5 for pits
B32: Concrete | D32: m3 | F32: =NA() ->  | G32: 0 | H32: =G32*E32 -> 0 | J32: 0 | K32: 0 | M32: Concrete | O32: m3 | Q32: =NA() ->  | R32: 0 | S32: =R32*P32 -> 0 | U32: 0 | V32: 0 | X32: Concrete | Z32: m3 | AB32: =NA() ->  | AC32: 0 | AD32: =AC32*AA32 -> 0 | AF32: 0 | AG32: 0 | AI32: Concrete | AK32: m3 | AM32: =NA() ->  | AN32: 0 | AO32: =AN32*AL32 -> 0 | AQ32: 0 | AR32: 0 | AT32: Concrete | AV32: m3 | AX32: =NA() ->  | AY32: 0 | AZ32: =AY32*AW32 -> 0 | BB32: 0 | BC32: 0
B33: Rip rap | D33: m3 | E33: 400 | F33: RR1H | G33: 17.75 | H33: =G33*E33 -> 7100 | J33: 0 | K33: 7100 | M33: Rip rap | O33: m3 | Q33: =NA() ->  | R33: 0 | S33: =R33*P33 -> 0 | U33: 0 | V33: 0 | X33: Rip rap | Z33: m3 | AB33: =NA() ->  | AC33: 0 | AD33: =AC33*AA33 -> 0 | AF33: 0 | AG33: 0 | AI33: Rip rap | AK33: m3 | AL33: 200 | AM33: RR1H | AN33: 17.75 | AO33: =AN33*AL33 -> 3550 | AQ33: 0 | AR33: 3550 | AT33: Rip rap | AV33: m3 | AX33: RR1L | AY33: 13.5 | AZ33: =AY33*AW33 -> 0 | BB33: 0 | BC33: 0
B34: Other | C34: Geotextile | D34: m2 | E34: =((SQRT(1^2+2^2))*2+6)*200*1.1 -> 2303.86991 | F34: GSTL | G34: 3.44 | H34: =G34*E34 -> 7925.312491 | J34: 0 | K34: 7925.312491 | M34: Other | Q34: =NA() ->  | R34: 0 | S34: =R34*P34 -> 0 | U34: 0 | V34: 0 | X34: Other | AB34: =NA() ->  | AC34: 0 | AD34: =AC34*AA34 -> 0 | AF34: 0 | AG34: 0 | AI34: Other | AJ34: Geotextile | AK34: m2 | AL34: =((SQRT(1^2+2^2))*2+6)*100*1.1 -> 1151.934955 | AM34: GSTL | AN34: 3.44 | AO34: =AN34*AL34 -> 3962.656245 | AQ34: 0 | AR34: 3962.656245 | AT34: Other | AV34: m2 | AX34: GSTL | AY34: 3.44 | AZ34: =AY34*AW34 -> 0 | BB34: 0 | BC34: 0
B35: RECLAIM QUARRIES | M35: RECLAIM QUARRIES | X35: RECLAIM QUARRIES | AI35: RECLAIM QUARRIES | AT35: RECLAIM QUARRIES | BE35: See Section 5.2.10.5 for quarry
B36: Contour slopes | D36: m3 | F36: =NA() ->  | G36: =IF(ISNA(F36),0,INDEX(IF(UPPER(RIGHT(F36,1))=Low,UnitCostLow, IF(UPPER(RIGHT(F36,1))=High,UnitCostHigh,UnitCostSpecified)),MATCH(UPPER(LEFT(F36,LEN(F36)-1)),CostCode,0))) -> 0 | H36: =G36*E36 -> 0 | J36: =H36*I36 -> 0 | K36: =H36*(1-I36) -> 0 | M36: Contour slopes | O36: m3 | Q36: =NA() ->  | R36: =IF(ISNA(Q36),0,INDEX(IF(UPPER(RIGHT(Q36,1))=Low,UnitCostLow, IF(UPPER(RIGHT(Q36,1))=High,UnitCostHigh,UnitCostSpecified)),MATCH(UPPER(LEFT(Q36,LEN(Q36)-1)),CostCode,0))) -> 0 | S36: =R36*P36 -> 0 | U36: =S36*T36 -> 0 | V36: =S36*(1-T36) -> 0 | X36: Contour slopes | Z36: m3 | AB36: =NA() ->  | AC36: =IF(ISNA(AB36),0,INDEX(IF(UPPER(RIGHT(AB36,1))=Low,UnitCostLow, IF(UPPER(RIGHT(AB36,1))=High,UnitCostHigh,UnitCostSpecified)),MATCH(UPPER(LEFT(AB36,LEN(AB36)-1)),CostCode,0))) -> 0 | AD36: =AC36*AA36 -> 0 | AF36: =AD36*AE36 -> 0 | AG36: =AD36*(1-AE36) -> 0 | AI36: Contour slopes | AK36: m3 | AM36: =NA() ->  | AN36: =IF(ISNA(AM36),0,INDEX(IF(UPPER(RIGHT(AM36,1))=Low,UnitCostLow, IF(UPPER(RIGHT(AM36,1))=High,UnitCostHigh,UnitCostSpecified)),MATCH(UPPER(LEFT(AM36,LEN(AM36)-1)),CostCode,0))) -> 0 | AO36: =AN36*AL36 -> 0 | AQ36: =AO36*AP36 -> 0 | AR36: =AO36*(1-AP36) -> 0 | AT36: Contour slopes | AU36: Quarry will not be flooded - development will occur below water level and the areas will be contoured to drain positively | AV36: m3 | AX36: =NA() ->  | AY36: =IF(ISNA(AX36),0,INDEX(IF(UPPER(RIGHT(AX36,1))=Low,UnitCostLow, IF(UPPER(RIGHT(AX36,1))=High,UnitCostHigh,UnitCostSpecified)),MATCH(UPPER(LEFT(AX36,LEN(AX36)-1)),CostCode,0))) -> 0 | AZ36: =AY36*AW36 -> 0 | BB36: =AZ36*BA36 -> 0 | BC36: =AZ36*(1-BA36) -> 0
B37: Place overburden | D37: m3 | F37: =NA() ->  | G37: =IF(ISNA(F37),0,INDEX(IF(UPPER(RIGHT(F37,1))=Low,UnitCostLow, IF(UPPER(RIGHT(F37,1))=High,UnitCostHigh,UnitCostSpecified)),MATCH(UPPER(LEFT(F37,LEN(F37)-1)),CostCode,0))) -> 0 | H37: =G37*E37 -> 0 | J37: =H37*I37 -> 0 | K37: =H37*(1-I37) -> 0 | M37: Place overburden | O37: m3 | Q37: =NA() ->  | R37: =IF(ISNA(Q37),0,INDEX(IF(UPPER(RIGHT(Q37,1))=Low,UnitCostLow, IF(UPPER(RIGHT(Q37,1))=High,UnitCostHigh,UnitCostSpecified)),MATCH(UPPER(LEFT(Q37,LEN(Q37)-1)),CostCode,0))) -> 0 | S37: =R37*P37 -> 0 | U37: =S37*T37 -> 0 | V37: =S37*(1-T37) -> 0 | X37: Place overburden | Z37: m3 | AB37: =NA() ->  | AC37: =IF(ISNA(AB37),0,INDEX(IF(UPPER(RIGHT(AB37,1))=Low,UnitCostLow, IF(UPPER(RIGHT(AB37,1))=High,UnitCostHigh,UnitCostSpecified)),MATCH(UPPER(LEFT(AB37,LEN(AB37)-1)),CostCode,0))) -> 0 | AD37: =AC37*AA37 -> 0 | AF37: =AD37*AE37 -> 0 | AG37: =AD37*(1-AE37) -> 0 | AI37: Place overburden | AK37: m3 | AM37: =NA() ->  | AN37: =IF(ISNA(AM37),0,INDEX(IF(UPPER(RIGHT(AM37,1))=Low,UnitCostLow, IF(UPPER(RIGHT(AM37,1))=High,UnitCostHigh,UnitCostSpecified)),MATCH(UPPER(LEFT(AM37,LEN(AM37)-1)),CostCode,0))) -> 0 | AO37: =AN37*AL37 -> 0 | AQ37: =AO37*AP37 -> 0 | AR37: =AO37*(1-AP37) -> 0 | AT37: Place overburden | AV37: m3 | AX37: =NA() ->  | AY37: =IF(ISNA(AX37),0,INDEX(IF(UPPER(RIGHT(AX37,1))=Low,UnitCostLow, IF(UPPER(RIGHT(AX37,1))=High,UnitCostHigh,UnitCostSpecified)),MATCH(UPPER(LEFT(AX37,LEN(AX37)-1)),CostCode,0))) -> 0 | AZ37: =AY37*AW37 -> 0 | BB37: =AZ37*BA37 -> 0 | BC37: =AZ37*(1-BA37) -> 0
B38: Vegetate | D38: m3 | F38: =NA() ->  | G38: =IF(ISNA(F38),0,INDEX(IF(UPPER(RIGHT(F38,1))=Low,UnitCostLow, IF(UPPER(RIGHT(F38,1))=High,UnitCostHigh,UnitCostSpecified)),MATCH(UPPER(LEFT(F38,LEN(F38)-1)),CostCode,0))) -> 0 | H38: =G38*E38 -> 0 | J38: =H38*I38 -> 0 | K38: =H38*(1-I38) -> 0 | M38: Vegetate | O38: m3 | Q38: =NA() ->  | R38: =IF(ISNA(Q38),0,INDEX(IF(UPPER(RIGHT(Q38,1))=Low,UnitCostLow, IF(UPPER(RIGHT(Q38,1))=High,UnitCostHigh,UnitCostSpecified)),MATCH(UPPER(LEFT(Q38,LEN(Q38)-1)),CostCode,0))) -> 0 | S38: =R38*P38 -> 0 | U38: =S38*T38 -> 0 | V38: =S38*(1-T38) -> 0 | X38: Vegetate | Z38: m3 | AB38: =NA() ->  | AC38: =IF(ISNA(AB38),0,INDEX(IF(UPPER(RIGHT(AB38,1))=Low,UnitCostLow, IF(UPPER(RIGHT(AB38,1))=High,UnitCostHigh,UnitCostSpecified)),MATCH(UPPER(LEFT(AB38,LEN(AB38)-1)),CostCode,0))) -> 0 | AD38: =AC38*AA38 -> 0 | AF38: =AD38*AE38 -> 0 | AG38: =AD38*(1-AE38) -> 0 | AI38: Vegetate | AK38: m3 | AM38: =NA() ->  | AN38: =IF(ISNA(AM38),0,INDEX(IF(UPPER(RIGHT(AM38,1))=Low,UnitCostLow, IF(UPPER(RIGHT(AM38,1))=High,UnitCostHigh,UnitCostSpecified)),MATCH(UPPER(LEFT(AM38,LEN(AM38)-1)),CostCode,0))) -> 0 | AO38: =AN38*AL38 -> 0 | AQ38: =AO38*AP38 -> 0 | AR38: =AO38*(1-AP38) -> 0 | AT38: Vegetate | AV38: m3 | AX38: =NA() ->  | AY38: =IF(ISNA(AX38),0,INDEX(IF(UPPER(RIGHT(AX38,1))=Low,UnitCostLow, IF(UPPER(RIGHT(AX38,1))=High,UnitCostHigh,UnitCostSpecified)),MATCH(UPPER(LEFT(AX38,LEN(AX38)-1)),CostCode,0))) -> 0 | AZ38: =AY38*AW38 -> 0 | BB38: =AZ38*BA38 -> 0 | BC38: =AZ38*(1-BA38) -> 0
B39: FLOOD PIT-Capital | M39: FLOOD PIT-Captital | X39: FLOOD PIT-Captital | AI39: FLOOD PIT-Captital | AT39: FLOOD PIT-Capital
B40: Remove stationary equipment (sump pumps) and Pipeline | C40: Umwelt TF will be used to store tailings in Years 2 to 6 and it will then passively flood with site runoff and direct precipitation through the remainder of Operations and into the Closure Phase. Pipelines/pumps will be relocated for use in the other active pits (Llama Pit and Goose Main Pit) and removed to closure landfill once they are no longer needed. Dispose of fuel in diesel day tank and oil from pump and landfill cleaned pump. Remove of pumps and pipelines will occur during Operations. | D40: m | F40: =NA() ->  | G40: =IF(ISNA(F40),0,INDEX(IF(UPPER(RIGHT(F40,1))=Low,UnitCostLow, IF(UPPER(RIGHT(F40,1))=High,UnitCostHigh,UnitCostSpecified)),MATCH(UPPER(LEFT(F40,LEN(F40)-1)),CostCode,0))) -> 0 | H40: =G40*E40 -> 0 | J40: =H40*I40 -> 0 | K40: =H40*(1-I40) -> 0 | M40: Remove stationary equipment (sump pumps) and Pipeline | N40: In Year 6, the exhausted Llama Pit will be converted to a water reservoir. Water from the Saline Water Pond will be pumped into Llama Reservoir between Year 4 and Year 9. The Llama Reservoir will continue to passively flood with site runoff and direct precipitation through the remainder of Operations and into the Closure Phase. Pipelines/pumps will be relocated for use in the other active pits (Goose Main Pit and Echo Pit) and removed to closure landfill once they are no longer needed. Dispose of fuel in diesel day tank and oil from pump and landfill cleaned pump. Remove of pumps and pipelines will occur during Operations. | O40: m | Q40: =NA() ->  | R40: =IF(ISNA(Q40),0,INDEX(IF(UPPER(RIGHT(Q40,1))=Low,UnitCostLow, IF(UPPER(RIGHT(Q40,1))=High,UnitCostHigh,UnitCostSpecified)),MATCH(UPPER(LEFT(Q40,LEN(Q40)-1)),CostCode,0))) -> 0 | S40: =R40*P40 -> 0 | U40: =S40*T40 -> 0 | V40: =S40*(1-T40) -> 0 | X40: Remove stationary equipment (sump pumps) and Pipeline | Y40: Once mining of the Echo Pit concludes in Year 5, dewatering will continue until Year 9 (i.e., the end of Echo U/G mining) as the two mines will be connected. Starting in Year 10, Echo Pit will passively flood with site runoff and direct precipitation through the remainder of Operations and into the Closure Phase. Pipelines/pumps will be removed to closure landfill. Dispose of fuel in diesel day tank and oil from pump and landfill cleaned pump. Remove of pumps and pipeline will occur during Operations. | Z40: m | AB40: =NA() ->  | AC40: =IF(ISNA(AB40),0,INDEX(IF(UPPER(RIGHT(AB40,1))=Low,UnitCostLow, IF(UPPER(RIGHT(AB40,1))=High,UnitCostHigh,UnitCostSpecified)),MATCH(UPPER(LEFT(AB40,LEN(AB40)-1)),CostCode,0))) -> 0 | AD40: =AC40*AA40 -> 0 | AF40: =AD40*AE40 -> 0 | AG40: =AD40*(1-AE40) -> 0 | AI40: Remove stationary equipment (sump pumps) and Pipeline | AJ40: At closure, pump will be at top of TF and pipeline leads to WTP. Remove pipeline to closure landfill; dispose of fuel in diesel day tank and oil from pump and landfill cleaned pump. | AK40: m | AL40: ='SBB Comp. Est.'!F14 -> 4325 | AM40: Sabina | AN40: ='SBB Comp. Est.'!W14 -> 10 | AO40: =AN40*AL40 -> 43250 | AQ40: =AO40*AP40 -> 0 | AR40: =AO40*(1-AP40) -> 43250 | AT40: Remove stationary equipment (sump pumps) and Pipeline | AV40: m | AX40: =NA() ->  | AY40: =IF(ISNA(AX40),0,INDEX(IF(UPPER(RIGHT(AX40,1))=Low,UnitCostLow, IF(UPPER(RIGHT(AX40,1))=High,UnitCostHigh,UnitCostSpecified)),MATCH(UPPER(LEFT(AX40,LEN(AX40)-1)),CostCode,0))) -> 0 | AZ40: =AY40*AW40 -> 0 | BB40: =AZ40*BA40 -> 0 | BC40: =AZ40*(1-BA40) -> 0 | BE40: Various Sections for pits - 6.2.1 for example
B41: Remove dewatering pipeline | D41: m | F41: =NA() ->  | G41: =IF(ISNA(F41),0,INDEX(IF(UPPER(RIGHT(F41,1))=Low,UnitCostLow, IF(UPPER(RIGHT(F41,1))=High,UnitCostHigh,UnitCostSpecified)),MATCH(UPPER(LEFT(F41,LEN(F41)-1)),CostCode,0))) -> 0 | H41: =G41*E41 -> 0 | J41: =H41*I41 -> 0 | K41: =H41*(1-I41) -> 0 | M41: Remove dewatering pipeline | O41: m | Q41: =NA() ->  | R41: =IF(ISNA(Q41),0,INDEX(IF(UPPER(RIGHT(Q41,1))=Low,UnitCostLow, IF(UPPER(RIGHT(Q41,1))=High,UnitCostHigh,UnitCostSpecified)),MATCH(UPPER(LEFT(Q41,LEN(Q41)-1)),CostCode,0))) -> 0 | S41: =R41*P41 -> 0 | U41: =S41*T41 -> 0 | V41: =S41*(1-T41) -> 0 | X41: Remove dewatering pipeline | Z41: m | AB41: =NA() ->  | AC41: =IF(ISNA(AB41),0,INDEX(IF(UPPER(RIGHT(AB41,1))=Low,UnitCostLow, IF(UPPER(RIGHT(AB41,1))=High,UnitCostHigh,UnitCostSpecified)),MATCH(UPPER(LEFT(AB41,LEN(AB41)-1)),CostCode,0))) -> 0 | AD41: =AC41*AA41 -> 0 | AF41: =AD41*AE41 -> 0 | AG41: =AD41*(1-AE41) -> 0 | AI41: Remove dewatering pipeline | AK41: m | AM41: =NA() ->  | AN41: =IF(ISNA(AM41),0,INDEX(IF(UPPER(RIGHT(AM41,1))=Low,UnitCostLow, IF(UPPER(RIGHT(AM41,1))=High,UnitCostHigh,UnitCostSpecified)),MATCH(UPPER(LEFT(AM41,LEN(AM41)-1)),CostCode,0))) -> 0 | AO41: =AN41*AL41 -> 0 | AQ41: =AO41*AP41 -> 0 | AR41: =AO41*(1-AP41) -> 0 | AT41: Remove dewatering pipeline | AV41: m | AX41: =NA() ->  | AY41: =IF(ISNA(AX41),0,INDEX(IF(UPPER(RIGHT(AX41,1))=Low,UnitCostLow, IF(UPPER(RIGHT(AX41,1))=High,UnitCostHigh,UnitCostSpecified)),MATCH(UPPER(LEFT(AX41,LEN(AX41)-1)),CostCode,0))) -> 0 | AZ41: =AY41*AW41 -> 0 | BB41: =AZ41*BA41 -> 0 | BC41: =AZ41*(1-BA41) -> 0
B42: Remove power lines | D42: each | F42: =NA() ->  | G42: 0 | H42: =G42*E42 -> 0 | J42: 0 | K42: 0 | M42: Remove power lines | O42: each | Q42: =NA() ->  | R42: =IF(ISNA(Q42),0,INDEX(IF(UPPER(RIGHT(Q42,1))=Low,UnitCostLow, IF(UPPER(RIGHT(Q42,1))=High,UnitCostHigh,UnitCostSpecified)),MATCH(UPPER(LEFT(Q42,LEN(Q42)-1)),CostCode,0))) -> 0 | S42: =R42*P42 -> 0 | U42: =S42*T42 -> 0 | V42: =S42*(1-T42) -> 0 | X42: Remove power lines | Z42: each | AB42: =NA() ->  | AC42: =IF(ISNA(AB42),0,INDEX(IF(UPPER(RIGHT(AB42,1))=Low,UnitCostLow, IF(UPPER(RIGHT(AB42,1))=High,UnitCostHigh,UnitCostSpecified)),MATCH(UPPER(LEFT(AB42,LEN(AB42)-1)),CostCode,0))) -> 0 | AD42: =AC42*AA42 -> 0 | AF42: =AD42*AE42 -> 0 | AG42: =AD42*(1-AE42) -> 0 | AI42: Remove power lines | AK42: each | AM42: =NA() ->  | AN42: =IF(ISNA(AM42),0,INDEX(IF(UPPER(RIGHT(AM42,1))=Low,UnitCostLow, IF(UPPER(RIGHT(AM42,1))=High,UnitCostHigh,UnitCostSpecified)),MATCH(UPPER(LEFT(AM42,LEN(AM42)-1)),CostCode,0))) -> 0 | AO42: =AN42*AL42 -> 0 | AQ42: =AO42*AP42 -> 0 | AR42: =AO42*(1-AP42) -> 0 | AT42: Remove power lines | AV42: each | AX42: =NA() ->  | AY42: =IF(ISNA(AX42),0,INDEX(IF(UPPER(RIGHT(AX42,1))=Low,UnitCostLow, IF(UPPER(RIGHT(AX42,1))=High,UnitCostHigh,UnitCostSpecified)),MATCH(UPPER(LEFT(AX42,LEN(AX42)-1)),CostCode,0))) -> 0 | AZ42: =AY42*AW42 -> 0 | BB42: =AZ42*BA42 -> 0 | BC42: =AZ42*(1-BA42) -> 0
B43: Construct diversion ditches | D43: m3 | F43: =NA() ->  | G43: =IF(ISNA(F43),0,INDEX(IF(UPPER(RIGHT(F43,1))=Low,UnitCostLow, IF(UPPER(RIGHT(F43,1))=High,UnitCostHigh,UnitCostSpecified)),MATCH(UPPER(LEFT(F43,LEN(F43)-1)),CostCode,0))) -> 0 | H43: =G43*E43 -> 0 | J43: =H43*I43 -> 0 | K43: =H43*(1-I43) -> 0 | M43: Construct diversion ditches | O43: m3 | Q43: =NA() ->  | R43: 0 | S43: 0 | U43: 0 | V43: 0 | X43: Construct diversion ditches | Z43: m3 | AB43: =NA() ->  | AC43: 0 | AD43: 0 | AF43: 0 | AG43: 0 | AI43: Construct diversion ditches | AK43: m3 | AM43: =NA() ->  | AN43: 0 | AO43: 0 | AQ43: 0 | AR43: 0 | AT43: Construct diversion ditches | AV43: m3 | AX43: =NA() ->  | AY43: 0 | AZ43: 0 | BB43: 0 | BC43: 0
B44: -Ditch, mat'l A | D44: m3 | F44: =NA() ->  | G44: 0 | H44: =G44*E44 -> 0 | J44: 0 | K44: =+H44*(1-I44) -> 0 | M44: -Ditch, mat'l A | O44: m3 | Q44: =NA() ->  | R44: 0 | S44: =R44*P44 -> 0 | U44: 0 | V44: =+S44*(1-T44) -> 0 | X44: -Ditch, mat'l A | Z44: m3 | AB44: =NA() ->  | AC44: 0 | AD44: =AC44*AA44 -> 0 | AF44: 0 | AG44: =+AD44*(1-AE44) -> 0 | AI44: -Ditch, mat'l A | AK44: m3 | AM44: =NA() ->  | AN44: 0 | AO44: =AN44*AL44 -> 0 | AQ44: 0 | AR44: =+AO44*(1-AP44) -> 0 | AT44: -Ditch, mat'l A | AV44: m3 | AX44: =NA() ->  | AY44: 0 | AZ44: =AY44*AW44 -> 0 | BB44: 0 | BC44: =+AZ44*(1-BA44) -> 0
B45: -Ditch, mat'l B | D45: m3 | F45: =NA() ->  | G45: 0 | H45: =G45*E45 -> 0 | J45: 0 | K45: 0 | M45: -Ditch, mat'l B | O45: m3 | Q45: =NA() ->  | R45: 0 | S45: =R45*P45 -> 0 | U45: 0 | V45: 0 | X45: -Ditch, mat'l B | Z45: m3 | AB45: =NA() ->  | AC45: 0 | AD45: =AC45*AA45 -> 0 | AF45: 0 | AG45: 0 | AI45: -Ditch, mat'l B | AK45: m3 | AM45: =NA() ->  | AN45: 0 | AO45: =AN45*AL45 -> 0 | AQ45: 0 | AR45: 0 | AT45: -Ditch, mat'l B | AV45: m3 | AX45: =NA() ->  | AY45: 0 | AZ45: =AY45*AW45 -> 0 | BB45: 0 | BC45: 0
B46: Construct embankment/dam | D46: m3 | F46: =NA() ->  | G46: 0 | H46: 0 | J46: 0 | K46: 0 | M46: Construct embankment/dam | O46: m3 | Q46: =NA() ->  | R46: 0 | S46: =R46*P46 -> 0 | U46: 0 | V46: =S46*(1-T46) -> 0 | X46: Construct embankment/dam | Z46: m3 | AB46: =NA() ->  | AC46: 0 | AD46: =AC46*AA46 -> 0 | AF46: 0 | AG46: =AD46*(1-AE46) -> 0 | AI46: Construct embankment/dam | AK46: m3 | AM46: =NA() ->  | AN46: 0 | AO46: =AN46*AL46 -> 0 | AQ46: 0 | AR46: =AO46*(1-AP46) -> 0 | AT46: Construct embankment/dam | AV46: m3 | AX46: =NA() ->  | AY46: 0 | AZ46: =AY46*AW46 -> 0 | BB46: 0 | BC46: =AZ46*(1-BA46) -> 0
B47: Supply/install pump station | D47: each | F47: =NA() ->  | G47: 0 | H47: 0 | J47: 0 | K47: 0 | M47: Supply/install pump station | O47: each | Q47: =NA() ->  | R47: 0 | S47: 0 | U47: 0 | V47: 0 | X47: Supply/install pump station | Z47: each | AB47: =NA() ->  | AC47: 0 | AD47: 0 | AF47: 0 | AG47: 0 | AI47: Supply/install pump station | AK47: each | AM47: =NA() ->  | AN47: 0 | AO47: 0 | AQ47: 0 | AR47: 0 | AT47: Supply/install pump station | AV47: each | AX47: =NA() ->  | AY47: 0 | AZ47: 0 | BB47: 0 | BC47: 0
B48: Supply/install piping system | D48: m | F48: =NA() ->  | G48: =IF(ISNA(F48),0,INDEX(IF(UPPER(RIGHT(F48,1))=Low,UnitCostLow, IF(UPPER(RIGHT(F48,1))=High,UnitCostHigh,UnitCostSpecified)),MATCH(UPPER(LEFT(F48,LEN(F48)-1)),CostCode,0))) -> 0 | H48: =G48*E48 -> 0 | J48: =H48*I48 -> 0 | K48: =H48*(1-I48) -> 0 | M48: Supply/install piping system | O48: m | Q48: =NA() ->  | R48: 0 | S48: 0 | U48: 0 | V48: 0 | X48: Supply/install piping system | Z48: m | AB48: =NA() ->  | AC48: 0 | AD48: 0 | AF48: 0 | AG48: 0 | AI48: Supply/install piping system | AK48: m | AM48: =NA() ->  | AN48: 0 | AO48: 0 | AQ48: 0 | AR48: 0 | AT48: Supply/install piping system | AV48: m | AX48: =NA() ->  | AY48: 0 | AZ48: 0 | BB48: 0 | BC48: 0
B49: Remove pump post-closure | D49: each | F49: =NA() ->  | G49: =IF(ISNA(F49),0,INDEX(IF(UPPER(RIGHT(F49,1))=Low,UnitCostLow, IF(UPPER(RIGHT(F49,1))=High,UnitCostHigh,UnitCostSpecified)),MATCH(UPPER(LEFT(F49,LEN(F49)-1)),CostCode,0))) -> 0 | H49: =G49*E49 -> 0 | J49: =H49*I49 -> 0 | K49: =H49*(1-I49) -> 0 | M49: Remove pump post-closure | O49: each | Q49: =NA() ->  | R49: 0 | S49: 0 | U49: 0 | V49: 0 | X49: Remove pump post-closure | Z49: each | AB49: =NA() ->  | AC49: 0 | AD49: 0 | AF49: 0 | AG49: 0 | AI49: Remove pump post-closure | AK49: each | AM49: =NA() ->  | AN49: 0 | AO49: 0 | AQ49: 0 | AR49: 0 | AT49: Remove pump post-closure | AV49: each | AX49: =NA() ->  | AY49: 0 | AZ49: 0 | BB49: 0 | BC49: 0
B50: Remove pipeline post-closure | D50: m | F50: =NA() ->  | G50: =IF(ISNA(F50),0,INDEX(IF(UPPER(RIGHT(F50,1))=Low,UnitCostLow, IF(UPPER(RIGHT(F50,1))=High,UnitCostHigh,UnitCostSpecified)),MATCH(UPPER(LEFT(F50,LEN(F50)-1)),CostCode,0))) -> 0 | H50: =G50*E50 -> 0 | J50: =H50*I50 -> 0 | K50: =H50*(1-I50) -> 0 | M50: Remove pipeline post-closure | O50: m | Q50: =NA() ->  | R50: 0 | S50: 0 | U50: 0 | V50: 0 | X50: Remove pipeline post-closure | Z50: m | AB50: =NA() ->  | AC50: 0 | AD50: 0 | AF50: 0 | AG50: 0 | AI50: Remove pipeline post-closure | AK50: m | AM50: =NA() ->  | AN50: 0 | AO50: 0 | AQ50: 0 | AR50: 0 | AT50: Remove pipeline post-closure | AV50: m | AX50: =NA() ->  | AY50: 0 | AZ50: 0 | BB50: 0 | BC50: 0
B51: FLOOD PIT-Annual Cost | M51: FLOOD PIT-Annual Cost | X51: FLOOD PIT-Annual Cost | AI51: FLOOD PIT-Annual Cost | AT51: FLOOD PIT-Annual Cost
B52: Operate pumps (power) | D52: m3 | F52: =NA() ->  | G52: 0 | H52: 0 | J52: 0 | K52: 0 | M52: Operate pumps (power) | O52: m3 | Q52: =NA() ->  | R52: =IF(ISNA(Q52),0,INDEX(IF(UPPER(RIGHT(Q52,1))=Low,UnitCostLow, IF(UPPER(RIGHT(Q52,1))=High,UnitCostHigh,UnitCostSpecified)),MATCH(UPPER(LEFT(Q52,LEN(Q52)-1)),CostCode,0))) -> 0 | S52: =R52*P52 -> 0 | U52: =S52*T52 -> 0 | V52: =S52*(1-T52) -> 0 | X52: Operate pumps (power) | Z52: m3 | AB52: =NA() ->  | AC52: =IF(ISNA(AB52),0,INDEX(IF(UPPER(RIGHT(AB52,1))=Low,UnitCostLow, IF(UPPER(RIGHT(AB52,1))=High,UnitCostHigh,UnitCostSpecified)),MATCH(UPPER(LEFT(AB52,LEN(AB52)-1)),CostCode,0))) -> 0 | AD52: =AC52*AA52 -> 0 | AF52: =AD52*AE52 -> 0 | AG52: =AD52*(1-AE52) -> 0 | AI52: Operate pumps (power) | AK52: m3 | AM52: =NA() ->  | AN52: =IF(ISNA(AM52),0,INDEX(IF(UPPER(RIGHT(AM52,1))=Low,UnitCostLow, IF(UPPER(RIGHT(AM52,1))=High,UnitCostHigh,UnitCostSpecified)),MATCH(UPPER(LEFT(AM52,LEN(AM52)-1)),CostCode,0))) -> 0 | AO52: =AN52*AL52 -> 0 | AQ52: =AO52*AP52 -> 0 | AR52: =AO52*(1-AP52) -> 0 | AT52: Operate pumps (power) | AV52: m3 | AX52: =NA() ->  | AY52: =IF(ISNA(AX52),0,INDEX(IF(UPPER(RIGHT(AX52,1))=Low,UnitCostLow, IF(UPPER(RIGHT(AX52,1))=High,UnitCostHigh,UnitCostSpecified)),MATCH(UPPER(LEFT(AX52,LEN(AX52)-1)),CostCode,0))) -> 0 | AZ52: =AY52*AW52 -> 0 | BB52: =AZ52*BA52 -> 0 | BC52: =AZ52*(1-BA52) -> 0
B53: Maintain pump/pipeline | D53: allow | F53: =NA() ->  | G53: =IF(ISNA(F53),0,INDEX(IF(UPPER(RIGHT(F53,1))=Low,UnitCostLow, IF(UPPER(RIGHT(F53,1))=High,UnitCostHigh,UnitCostSpecified)),MATCH(UPPER(LEFT(F53,LEN(F53)-1)),CostCode,0))) -> 0 | H53: =G53*E53 -> 0 | J53: =H53*I53 -> 0 | K53: =H53*(1-I53) -> 0 | M53: Maintain pump/pipeline | O53: allow | Q53: =NA() ->  | R53: 0 | S53: 0 | U53: 0 | V53: 0 | X53: Maintain pump/pipeline | Z53: allow | AB53: =NA() ->  | AC53: 0 | AD53: 0 | AF53: 0 | AG53: 0 | AI53: Maintain pump/pipeline | AK53: allow | AM53: =NA() ->  | AN53: 0 | AO53: 0 | AQ53: 0 | AR53: 0 | AT53: Maintain pump/pipeline | AV53: allow | AX53: =NA() ->  | AY53: 0 | AZ53: 0 | BB53: 0 | BC53: 0
B54: Labour:fuel management, comissioning/decom | D54: $/h | F54: =NA() ->  | G54: =IF(ISNA(F54),0,INDEX(IF(UPPER(RIGHT(F54,1))=Low,UnitCostLow, IF(UPPER(RIGHT(F54,1))=High,UnitCostHigh,UnitCostSpecified)),MATCH(UPPER(LEFT(F54,LEN(F54)-1)),CostCode,0))) -> 0 | H54: =G54*E54 -> 0 | J54: =H54*I54 -> 0 | K54: =H54*(1-I54) -> 0 | M54: Labour:fuel management, comissioning/decom | O54: $/h | Q54: =NA() ->  | R54: 0 | S54: 0 | U54: 0 | V54: 0 | X54: Labour:fuel management, comissioning/decom | Z54: $/h | AB54: =NA() ->  | AC54: 0 | AD54: 0 | AF54: 0 | AG54: 0 | AI54: Labour:fuel management, comissioning/decom | AK54: $/h | AM54: =NA() ->  | AN54: 0 | AO54: 0 | AQ54: 0 | AR54: 0 | AT54: Labour:fuel management, comissioning/decom | AV54: $/h | AX54: =NA() ->  | AY54: 0 | AZ54: 0 | BB54: 0 | BC54: 0
B55: Chemical addition, _____ kg/m3 of water | D55: tonne | F55: =NA() ->  | G55: 0 | H55: 0 | J55: 0 | K55: 0 | M55: Chemical addition, _____ kg/m3 of water | O55: tonne | Q55: =NA() ->  | R55: 0 | S55: 0 | U55: 0 | V55: 0 | X55: Chemical addition, _____ kg/m3 of water | Z55: tonne | AB55: =NA() ->  | AC55: 0 | AD55: 0 | AF55: 0 | AG55: 0 | AI55: Chemical addition, _____ kg/m3 of water | AK55: tonne | AM55: =NA() ->  | AN55: 0 | AO55: 0 | AQ55: 0 | AR55: 0 | AT55: Chemical addition, _____ kg/m3 of water | AV55: tonne | AX55: =NA() ->  | AY55: 0 | AZ55: 0 | BB55: 0 | BC55: 0
B56: Chemicals, purchase and shipping | D56: tonne | F56: =NA() ->  | G56: 0 | H56: 0 | J56: 0 | K56: 0 | M56: Chemicals, purchase and shipping | O56: tonne | Q56: =NA() ->  | R56: 0 | S56: 0 | U56: 0 | V56: 0 | X56: Chemicals, purchase and shipping | Z56: tonne | AB56: =NA() ->  | AC56: 0 | AD56: 0 | AF56: 0 | AG56: 0 | AI56: Chemicals, purchase and shipping | AK56: tonne | AM56: =NA() ->  | AN56: 0 | AO56: 0 | AQ56: 0 | AR56: 0 | AT56: Chemicals, purchase and shipping | AV56: tonne | AX56: =NA() ->  | AY56: 0 | AZ56: 0 | BB56: 0 | BC56: 0
B57: Passive/biological additives | D57: $/ha | F57: =NA() ->  | G57: =IF(ISNA(F57),0,INDEX(IF(UPPER(RIGHT(F57,1))=Low,UnitCostLow, IF(UPPER(RIGHT(F57,1))=High,UnitCostHigh,UnitCostSpecified)),MATCH(UPPER(LEFT(F57,LEN(F57)-1)),CostCode,0))) -> 0 | H57: =G57*E57 -> 0 | J57: =H57*I57 -> 0 | K57: =H57*(1-I57) -> 0 | M57: Passive/biological additives | O57: $/ha | Q57: =NA() ->  | R57: =IF(ISNA(Q57),0,INDEX(IF(UPPER(RIGHT(Q57,1))=Low,UnitCostLow, IF(UPPER(RIGHT(Q57,1))=High,UnitCostHigh,UnitCostSpecified)),MATCH(UPPER(LEFT(Q57,LEN(Q57)-1)),CostCode,0))) -> 0 | S57: =R57*P57 -> 0 | U57: =S57*T57 -> 0 | V57: =S57*(1-T57) -> 0 | X57: Passive/biological additives | Z57: $/ha | AB57: =NA() ->  | AC57: =IF(ISNA(AB57),0,INDEX(IF(UPPER(RIGHT(AB57,1))=Low,UnitCostLow, IF(UPPER(RIGHT(AB57,1))=High,UnitCostHigh,UnitCostSpecified)),MATCH(UPPER(LEFT(AB57,LEN(AB57)-1)),CostCode,0))) -> 0 | AD57: =AC57*AA57 -> 0 | AF57: =AD57*AE57 -> 0 | AG57: =AD57*(1-AE57) -> 0 | AI57: Passive/biological additives | AK57: $/ha | AM57: =NA() ->  | AN57: =IF(ISNA(AM57),0,INDEX(IF(UPPER(RIGHT(AM57,1))=Low,UnitCostLow, IF(UPPER(RIGHT(AM57,1))=High,UnitCostHigh,UnitCostSpecified)),MATCH(UPPER(LEFT(AM57,LEN(AM57)-1)),CostCode,0))) -> 0 | AO57: =AN57*AL57 -> 0 | AQ57: =AO57*AP57 -> 0 | AR57: =AO57*(1-AP57) -> 0 | AT57: Passive/biological additives | AV57: $/ha | AX57: =NA() ->  | AY57: =IF(ISNA(AX57),0,INDEX(IF(UPPER(RIGHT(AX57,1))=Low,UnitCostLow, IF(UPPER(RIGHT(AX57,1))=High,UnitCostHigh,UnitCostSpecified)),MATCH(UPPER(LEFT(AX57,LEN(AX57)-1)),CostCode,0))) -> 0 | AZ57: =AY57*AW57 -> 0 | BB57: =AZ57*BA57 -> 0 | BC57: =AZ57*(1-BA57) -> 0
B58: Passive additives purchase and shipping | D58: tonne | F58: =NA() ->  | G58: =IF(ISNA(F58),0,INDEX(IF(UPPER(RIGHT(F58,1))=Low,UnitCostLow, IF(UPPER(RIGHT(F58,1))=High,UnitCostHigh,UnitCostSpecified)),MATCH(UPPER(LEFT(F58,LEN(F58)-1)),CostCode,0))) -> 0 | H58: =G58*E58 -> 0 | J58: =H58*I58 -> 0 | K58: =H58*(1-I58) -> 0 | M58: Passive additives purchase and shipping | O58: tonne | Q58: =NA() ->  | R58: =IF(ISNA(Q58),0,INDEX(IF(UPPER(RIGHT(Q58,1))=Low,UnitCostLow, IF(UPPER(RIGHT(Q58,1))=High,UnitCostHigh,UnitCostSpecified)),MATCH(UPPER(LEFT(Q58,LEN(Q58)-1)),CostCode,0))) -> 0 | S58: =R58*P58 -> 0 | U58: =S58*T58 -> 0 | V58: =S58*(1-T58) -> 0 | X58: Passive additives purchase and shipping | Z58: tonne | AB58: =NA() ->  | AC58: =IF(ISNA(AB58),0,INDEX(IF(UPPER(RIGHT(AB58,1))=Low,UnitCostLow, IF(UPPER(RIGHT(AB58,1))=High,UnitCostHigh,UnitCostSpecified)),MATCH(UPPER(LEFT(AB58,LEN(AB58)-1)),CostCode,0))) -> 0 | AD58: =AC58*AA58 -> 0 | AF58: =AD58*AE58 -> 0 | AG58: =AD58*(1-AE58) -> 0 | AI58: Passive additives purchase and shipping | AK58: tonne | AM58: =NA() ->  | AN58: =IF(ISNA(AM58),0,INDEX(IF(UPPER(RIGHT(AM58,1))=Low,UnitCostLow, IF(UPPER(RIGHT(AM58,1))=High,UnitCostHigh,UnitCostSpecified)),MATCH(UPPER(LEFT(AM58,LEN(AM58)-1)),CostCode,0))) -> 0 | AO58: =AN58*AL58 -> 0 | AQ58: =AO58*AP58 -> 0 | AR58: =AO58*(1-AP58) -> 0 | AT58: Passive additives purchase and shipping | AV58: tonne | AX58: =NA() ->  | AY58: =IF(ISNA(AX58),0,INDEX(IF(UPPER(RIGHT(AX58,1))=Low,UnitCostLow, IF(UPPER(RIGHT(AX58,1))=High,UnitCostHigh,UnitCostSpecified)),MATCH(UPPER(LEFT(AX58,LEN(AX58)-1)),CostCode,0))) -> 0 | AZ58: =AY58*AW58 -> 0 | BB58: =AZ58*BA58 -> 0 | BC58: =AZ58*(1-BA58) -> 0
B59: Other | F59: =NA() ->  | G59: 0 | H59: 0 | J59: =H59*I59 -> 0 | K59: 0 | M59: Other | Q59: =NA() ->  | R59: =IF(ISNA(Q59),0,INDEX(IF(UPPER(RIGHT(Q59,1))=Low,UnitCostLow, IF(UPPER(RIGHT(Q59,1))=High,UnitCostHigh,UnitCostSpecified)),MATCH(UPPER(LEFT(Q59,LEN(Q59)-1)),CostCode,0))) -> 0 | S59: =R59*P59 -> 0 | U59: =S59*T59 -> 0 | V59: =S59*(1-T59) -> 0 | X59: Other | AB59: =NA() ->  | AC59: =IF(ISNA(AB59),0,INDEX(IF(UPPER(RIGHT(AB59,1))=Low,UnitCostLow, IF(UPPER(RIGHT(AB59,1))=High,UnitCostHigh,UnitCostSpecified)),MATCH(UPPER(LEFT(AB59,LEN(AB59)-1)),CostCode,0))) -> 0 | AD59: =AC59*AA59 -> 0 | AF59: =AD59*AE59 -> 0 | AG59: =AD59*(1-AE59) -> 0 | AI59: Other | AM59: =NA() ->  | AN59: =IF(ISNA(AM59),0,INDEX(IF(UPPER(RIGHT(AM59,1))=Low,UnitCostLow, IF(UPPER(RIGHT(AM59,1))=High,UnitCostHigh,UnitCostSpecified)),MATCH(UPPER(LEFT(AM59,LEN(AM59)-1)),CostCode,0))) -> 0 | AO59: =AN59*AL59 -> 0 | AQ59: =AO59*AP59 -> 0 | AR59: =AO59*(1-AP59) -> 0 | AT59: Other | AX59: =NA() ->  | AY59: =IF(ISNA(AX59),0,INDEX(IF(UPPER(RIGHT(AX59,1))=Low,UnitCostLow, IF(UPPER(RIGHT(AX59,1))=High,UnitCostHigh,UnitCostSpecified)),MATCH(UPPER(LEFT(AX59,LEN(AX59)-1)),CostCode,0))) -> 0 | AZ59: =AY59*AW59 -> 0 | BB59: =AZ59*BA59 -> 0 | BC59: =AZ59*(1-BA59) -> 0
G60: Annual pumping costs | H60: =SUM(H52:H59)+0.0001 -> 0.0001 | R60: Annual pumping costs | S60: =SUM(S52:S59)+0.0001 -> 0.0001 | AC60: Annual pumping costs | AD60: =SUM(AD52:AD59)+0.0001 -> 0.0001 | AN60: Annual pumping costs | AO60: =SUM(AO52:AO59)+0.0001 -> 0.0001 | AY60: Annual pumping costs | AZ60: =SUM(AZ52:AZ59)+0.0001 -> 0.0001
B61: Number of years of pump flooding | C61: passive pit flooding | D61: years | E61: 0 | M61: Number of years of pump flooding | N61: passive pit flooding | O61: years | P61: 0 | X61: Number of years of pump flooding | Y61: passive pit flooding | Z61: years | AA61: 0 | AI61: Number of years of pump flooding | AJ61: passive pit flooding | AK61: years | AL61: 0 | AT61: Number of years of pump flooding | AU61: No flooding | AV61: years | AW61: 0
G62: Total pumping costs | H62: =H60*E61 -> 0 | J62: =H62*I62 -> 0 | K62: =H62*(1-I62) -> 0 | R62: Total pumping costs | S62: =S60*P61 -> 0 | U62: =S62*T62 -> 0 | V62: =S62*(1-T62) -> 0 | AC62: Total pumping costs | AD62: =AD60*AA61 -> 0 | AF62: =AD62*AE62 -> 0 | AG62: =AD62*(1-AE62) -> 0 | AN62: Total pumping costs | AO62: =AO60*AL61 -> 0 | AQ62: =AO62*AP62 -> 0 | AR62: =AO62*(1-AP62) -> 0 | AY62: Total pumping costs | AZ62: =AZ60*AW61 -> 0 | BB62: =AZ62*BA62 -> 0 | BC62: =AZ62*(1-BA62) -> 0
G63: Total | H63: =SUM(H5:H50)+H62+0.0001 -> 50424.88759 | J63: =SUM(J5:J50)+J62 -> 0 | K63: =SUM(K5:K50)+K62 -> 50424.88749 | R63: Total | S63: =SUM(S5:S50)+S62+0.0001 -> 26176.6001 | U63: =SUM(U5:U50)+U62 -> 0 | V63: =SUM(V5:V50)+V62 -> 26176.6 | AC63: Total | AD63: =SUM(AD5:AD50)+AD62+0.0001 -> 25934.3126 | AF63: =SUM(AF5:AF50)+AF62 -> 0 | AG63: =SUM(AG5:AG50)+AG62 -> 25934.3125 | AN63: Total | AO63: =SUM(AO5:AO50)+AO62+0.0001 -> 84849.58135 | AQ63: =SUM(AQ5:AQ50)+AQ62 -> 0 | AR63: =SUM(AR5:AR50)+AR62 -> 84849.58125 | AY63: Total | AZ63: =SUM(AZ5:AZ50)+AZ62+0.0001 -> 3800.0001 | BB63: =SUM(BB5:BB50)+BB62 -> 0 | BC63: =SUM(BC5:BC50)+BC62 -> 3800
G64: % of Total | J64: =J63/H63 -> 0 | K64: =K63/H63 -> 0.999999998 | R64: % of Total | U64: =U63/S63 -> 0 | V64: =V63/S63 -> 0.9999999962 | AC64: % of Total | AF64: =AF63/AD63 -> 0 | AG64: =AG63/AD63 -> 0.9999999961 | AN64: % of Total | AQ64: =AQ63/AO63 -> 0 | AR64: =AR63/AO63 -> 0.9999999988 | AY64: % of Total | BB64: =BB63/AZ63 -> 0 | BC64: =BC63/AZ63 -> 0.9999999737

Sheet UG Mine
A1: 4 | B1: Underground Mine Name | C1: Umwelt | G1: UG Mine # | H1: 1 | K1: =H1 -> 1 | M1: Underground Mine Name | N1: Llama | R1: UG Mine # | S1: =H1+1 -> 2 | V1: =S1 -> 2 | X1: Underground Mine Name | Y1: Goose Main | AC1: UG Mine # | AD1: =S1+1 -> 3 | AG1: =AD1 -> 3 | AI1: Underground Mine Name | AJ1: Echo | AN1: UG Mine # | AO1: =AD1+1 -> 4 | AR1: =AO1 -> 4
B3: ACTIVITY/MATERIAL | C3: Notes | D3: Unit | E3: Qty | F3: Cost Code | G3: Unit Cost | H3: Cost | I3: % Land | J3: Land Cost | K3: Total Cost | M3: ACTIVITY/MATERIAL | N3: Notes | O3: Unit | P3: Qty | Q3: Cost Code | R3: Unit Cost | S3: Cost | T3: % Land | U3: Land Cost | V3: Total Cost | X3: ACTIVITY/MATERIAL | Y3: Notes | Z3: Unit | AA3: Qty | AB3: Cost Code | AC3: Unit Cost | AD3: Cost | AE3: % Land | AF3: Land Cost | AG3: Total Cost | AI3: ACTIVITY/MATERIAL | AJ3: Notes | AK3: Unit | AL3: Qty | AM3: Cost Code | AN3: Unit Cost | AO3: Cost | AP3: % Land | AQ3: Land Cost | AR3: Total Cost
B4: CONTROL ACCESS | M4: CONTROL ACCESS | X4: CONTROL ACCESS | AI4: CONTROL ACCESS
B5: Fence | D5: m | F5: =NA() ->  | G5: =IF(ISNA(F5),0,INDEX(IF(UPPER(RIGHT(F5,1))=Low,UnitCostLow, IF(UPPER(RIGHT(F5,1))=High,UnitCostHigh,UnitCostSpecified)),MATCH(UPPER(LEFT(F5,LEN(F5)-1)),CostCode,0))) -> 0 | H5: =G5*E5 -> 0 | J5: =H5*I5 -> 0 | K5: =H5*(1-I5) -> 0 | M5: Fence | O5: m | Q5: =NA() ->  | R5: =IF(ISNA(Q5),0,INDEX(IF(UPPER(RIGHT(Q5,1))=Low,UnitCostLow, IF(UPPER(RIGHT(Q5,1))=High,UnitCostHigh,UnitCostSpecified)),MATCH(UPPER(LEFT(Q5,LEN(Q5)-1)),CostCode,0))) -> 0 | S5: =R5*P5 -> 0 | U5: =S5*T5 -> 0 | V5: =S5*(1-T5) -> 0 | X5: Fence | Z5: m | AB5: =NA() ->  | AC5: =IF(ISNA(AB5),0,INDEX(IF(UPPER(RIGHT(AB5,1))=Low,UnitCostLow, IF(UPPER(RIGHT(AB5,1))=High,UnitCostHigh,UnitCostSpecified)),MATCH(UPPER(LEFT(AB5,LEN(AB5)-1)),CostCode,0))) -> 0 | AD5: =AC5*AA5 -> 0 | AF5: =AD5*AE5 -> 0 | AG5: =AD5*(1-AE5) -> 0 | AI5: Fence | AK5: m | AM5: =NA() ->  | AN5: =IF(ISNA(AM5),0,INDEX(IF(UPPER(RIGHT(AM5,1))=Low,UnitCostLow, IF(UPPER(RIGHT(AM5,1))=High,UnitCostHigh,UnitCostSpecified)),MATCH(UPPER(LEFT(AM5,LEN(AM5)-1)),CostCode,0))) -> 0 | AO5: =AN5*AL5 -> 0 | AQ5: =AO5*AP5 -> 0 | AR5: =AO5*(1-AP5) -> 0
B6: Signs | D6: each | F6: =NA() ->  | G6: 0 | H6: 0 | J6: =H6*I6 -> 0 | K6: 0 | M6: Signs | O6: each | Q6: =NA() ->  | R6: 0 | S6: 0 | U6: =S6*T6 -> 0 | V6: =S6*(1-T6) -> 0 | X6: Signs | Z6: each | AB6: =NA() ->  | AC6: 0 | AD6: 0 | AF6: =AD6*AE6 -> 0 | AG6: =AD6*(1-AE6) -> 0 | AI6: Signs | AK6: each | AM6: =NA() ->  | AN6: 0 | AO6: 0 | AQ6: =AO6*AP6 -> 0 | AR6: =AO6*(1-AP6) -> 0
B7: Block roads | D7: m3 | F7: =NA() ->  | G7: 0 | H7: =G7*E7 -> 0 | J7: 0 | K7: 0 | M7: Block roads | O7: m3 | Q7: =NA() ->  | R7: 0 | S7: =R7*P7 -> 0 | U7: 0 | V7: 0 | X7: Block roads | Z7: m3 | AB7: =NA() ->  | AC7: 0 | AD7: =AC7*AA7 -> 0 | AF7: 0 | AG7: 0 | AI7: Block roads | AK7: m3 | AM7: =NA() ->  | AN7: 0 | AO7: =AN7*AL7 -> 0 | AQ7: 0 | AR7: 0
B8: Berm | D8: m3 | F8: =NA() ->  | G8: 0 | H8: 0 | J8: 0 | K8: 0 | M8: Berm | O8: m3 | Q8: =NA() ->  | R8: 0 | S8: =R8*P8 -> 0 | U8: 0 | V8: 0 | X8: Berm | Z8: m3 | AB8: =NA() ->  | AC8: 0 | AD8: =AC8*AA8 -> 0 | AF8: 0 | AG8: 0 | AI8: Berm | AK8: m3 | AM8: =NA() ->  | AN8: 0 | AO8: =AN8*AL8 -> 0 | AQ8: 0 | AR8: 0
B9: Backfill Portal (NPAG waste rock plug) | C9: At least 5 m deep into 5x4.5m portal and slope at least 2:1 outside of portal | D9: m3 | E9: ='SBB Comp. Est.'!F38 -> 150 | F9: PORL | G9: 18.8 | H9: 2820 | J9: =H9*I9 -> 0 | K9: 2820 | M9: Backfill Portal (NPAG waste rock plug) | N9: At least 5 m deep into 5x4.5m portal and slope at least 2:1 outside of portal | O9: m3 | P9: ='SBB Comp. Est.'!F40 -> 150 | Q9: PORL | R9: 18.8 | S9: 2820 | U9: =S9*T9 -> 0 | V9: =S9*(1-T9) -> 2820 | X9: Backfill Portal (NPAG waste rock plug) | Y9: At least 5 m deep into 5x4.5m portal and slope at least 2:1 outside of portal | Z9: m3 | AA9: ='SBB Comp. Est.'!F42 -> 150 | AB9: PORL | AC9: 18.8 | AD9: 2820 | AF9: =AD9*AE9 -> 0 | AG9: =AD9*(1-AE9) -> 2820 | AI9: Backfill Portal (NPAG waste rock plug) | AJ9: At least 5 m deep into 5x4.5m portal and slope at least 2:1 outside of portal | AK9: m3 | AL9: ='SBB Comp. Est.'!F44 -> 150 | AM9: PORL | AN9: 18.8 | AO9: 2820 | AQ9: =AO9*AP9 -> 0 | AR9: =AO9*(1-AP9) -> 2820
B10: Backfill portal #2 | D10: m3 | F10: =NA() ->  | G10: 0 | H10: 0 | J10: 0 | K10: 0 | M10: Backfill portal #2 | O10: m3 | Q10: =NA() ->  | R10: =IF(ISNA(Q10),0,INDEX(IF(UPPER(RIGHT(Q10,1))=Low,UnitCostLow, IF(UPPER(RIGHT(Q10,1))=High,UnitCostHigh,UnitCostSpecified)),MATCH(UPPER(LEFT(Q10,LEN(Q10)-1)),CostCode,0))) -> 0 | S10: 0 | U10: =S10*T10 -> 0 | V10: =S10*(1-T10) -> 0 | X10: Backfill portal #2 | Z10: m3 | AB10: =NA() ->  | AC10: =IF(ISNA(AB10),0,INDEX(IF(UPPER(RIGHT(AB10,1))=Low,UnitCostLow, IF(UPPER(RIGHT(AB10,1))=High,UnitCostHigh,UnitCostSpecified)),MATCH(UPPER(LEFT(AB10,LEN(AB10)-1)),CostCode,0))) -> 0 | AD10: 0 | AF10: =AD10*AE10 -> 0 | AG10: =AD10*(1-AE10) -> 0 | AI10: Backfill portal #2 | AK10: m3 | AM10: =NA() ->  | AN10: =IF(ISNA(AM10),0,INDEX(IF(UPPER(RIGHT(AM10,1))=Low,UnitCostLow, IF(UPPER(RIGHT(AM10,1))=High,UnitCostHigh,UnitCostSpecified)),MATCH(UPPER(LEFT(AM10,LEN(AM10)-1)),CostCode,0))) -> 0 | AO10: 0 | AQ10: =AO10*AP10 -> 0 | AR10: =AO10*(1-AP10) -> 0
B11: Cap raise # 1 | C11: Concrete plug over 4m-dia. vent raise | D11: m3 | E11: 28.3 | F11: SRH | G11: 2132 | H11: 60335.6 | J11: 0 | K11: 60335.6 | M11: Cap raise # 1 | N11: Concrete plug over 4m-dia. vent raise | O11: LS | P11: 28.3 | Q11: SRH | R11: 2132 | S11: 60335.6 | U11: 0 | V11: 60335.6 | X11: Cap raise # 1 | Y11: Concrete plug over 4m-dia. vent raise | Z11: LS | AA11: 28.3 | AB11: SRH | AC11: 2132 | AD11: 60335.6 | AF11: 0 | AG11: 60335.6 | AI11: Cap raise # 1 | AJ11: Concrete plug over 4m-dia. vent raise | AK11: LS | AL11: 28.3 | AM11: SRH | AN11: 2132 | AO11: 60335.6 | AQ11: 0 | AR11: 60335.6
B12: Cap raise #2 | C12: Concrete plug over 4m-dia. vent raise | D12: m3 | E12: 28.3 | F12: SRH | G12: =IF(ISNA(F12),0,INDEX(IF(UPPER(RIGHT(F12,1))=Low,UnitCostLow, IF(UPPER(RIGHT(F12,1))=High,UnitCostHigh,UnitCostSpecified)),MATCH(UPPER(LEFT(F12,LEN(F12)-1)),CostCode,0))) -> 2132 | H12: =G12*E12 -> 60335.6 | J12: =H12*I12 -> 0 | K12: =H12*(1-I12) -> 60335.6 | M12: Cap raise #2 | O12: m3 | Q12: =NA() ->  | R12: =IF(ISNA(Q12),0,INDEX(IF(UPPER(RIGHT(Q12,1))=Low,UnitCostLow, IF(UPPER(RIGHT(Q12,1))=High,UnitCostHigh,UnitCostSpecified)),MATCH(UPPER(LEFT(Q12,LEN(Q12)-1)),CostCode,0))) -> 0 | S12: 0 | U12: 0 | V12: 0 | X12: Cap raise #2 | Z12: m3 | AB12: =NA() ->  | AC12: =IF(ISNA(AB12),0,INDEX(IF(UPPER(RIGHT(AB12,1))=Low,UnitCostLow, IF(UPPER(RIGHT(AB12,1))=High,UnitCostHigh,UnitCostSpecified)),MATCH(UPPER(LEFT(AB12,LEN(AB12)-1)),CostCode,0))) -> 0 | AD12: 0 | AF12: 0 | AG12: 0 | AI12: Cap raise #2 | AK12: m3 | AM12: =NA() ->  | AN12: =IF(ISNA(AM12),0,INDEX(IF(UPPER(RIGHT(AM12,1))=Low,UnitCostLow, IF(UPPER(RIGHT(AM12,1))=High,UnitCostHigh,UnitCostSpecified)),MATCH(UPPER(LEFT(AM12,LEN(AM12)-1)),CostCode,0))) -> 0 | AO12: 0 | AQ12: 0 | AR12: 0
B13: Cap shaft #1 | C13: Concrete plug over 4m-dia. fresh air vent | D13: m3 | E13: 28.3 | F13: SRH | G13: 2132 | H13: 60335.6 | J13: 0 | K13: 60335.6 | M13: Cap shaft #1 | O13: m3 | Q13: =NA() ->  | R13: 0 | S13: 0 | U13: 0 | V13: 0 | X13: Cap shaft #1 | Z13: m3 | AB13: =NA() ->  | AC13: 0 | AD13: 0 | AF13: 0 | AG13: 0 | AI13: Cap shaft #1 | AK13: m3 | AM13: =NA() ->  | AN13: 0 | AO13: 0 | AQ13: 0 | AR13: 0
B14: Cap shaft #2 | D14: m3 | F14: =NA() ->  | G14: 0 | H14: 0 | J14: 0 | K14: 0 | M14: Cap shaft #2 | O14: m3 | Q14: =NA() ->  | R14: 0 | S14: 0 | U14: 0 | V14: 0 | X14: Cap shaft #2 | Z14: m3 | AB14: =NA() ->  | AC14: 0 | AD14: 0 | AF14: 0 | AG14: 0 | AI14: Cap shaft #2 | AK14: m3 | AM14: =NA() ->  | AN14: 0 | AO14: 0 | AQ14: 0 | AR14: 0
B15: Backfill adits | D15: m3 | F15: =NA() ->  | G15: 0 | H15: 0 | J15: =H15*I15 -> 0 | K15: 0 | M15: Backfill adits | O15: m3 | Q15: =NA() ->  | R15: 0 | S15: 0 | U15: =S15*T15 -> 0 | V15: =S15*(1-T15) -> 0 | X15: Backfill adits | Z15: m3 | AB15: =NA() ->  | AC15: 0 | AD15: 0 | AF15: =AD15*AE15 -> 0 | AG15: =AD15*(1-AE15) -> 0 | AI15: Backfill adits | AK15: m3 | AM15: =NA() ->  | AN15: 0 | AO15: 0 | AQ15: =AO15*AP15 -> 0 | AR15: =AO15*(1-AP15) -> 0
B16: Backfill open stope | D16: m3 | F16: =NA() ->  | G16: 0 | H16: 0 | J16: 0 | K16: 0 | M16: Backfill open stope | O16: m3 | Q16: =NA() ->  | R16: 0 | S16: 0 | U16: =S16*T16 -> 0 | V16: =S16*(1-T16) -> 0 | X16: Backfill open stope | Z16: m3 | AB16: =NA() ->  | AC16: 0 | AD16: 0 | AF16: =AD16*AE16 -> 0 | AG16: =AD16*(1-AE16) -> 0 | AI16: Backfill open stope | AK16: m3 | AL16: ='SBB Comp. Est.'!F54 -> 3550 | AM16: Sabina | AN16: ='SBB Comp. Est.'!W54 -> 6 | AO16: 21300 | AQ16: =AO16*AP16 -> 0 | AR16: =AO16*(1-AP16) -> 21300
B17: Concrete cap over open stope | D17: m3 | F17: =NA() ->  | G17: 0 | H17: 0 | J17: 0 | K17: 0 | M17: Concrete cap over open stope | O17: m3 | Q17: =NA() ->  | R17: 0 | S17: 0 | U17: 0 | V17: 0 | X17: Concrete cap over open stope | Z17: m3 | AB17: =NA() ->  | AC17: 0 | AD17: 0 | AF17: 0 | AG17: 0 | AI17: Concrete cap over open stope | AK17: m3 | AM17: =NA() ->  | AN17: 0 | AO17: 0 | AQ17: 0 | AR17: 0
B18: Other | F18: =NA() ->  | G18: 0 | H18: 0 | J18: 0 | K18: 0 | M18: Other | X18: Other | AI18: Other | AM18: =NA() ->  | AN18: 0 | AO18: 0 | AQ18: 0 | AR18: 0
B19: REMOVE HAZARDOUS MATERIALS | M19: REMOVE HAZARDOUS MATERIALS | X19: REMOVE HAZARDOUS MATERIALS | AI19: REMOVE HAZARDOUS MATERIALS
B20: Remove hazardous materials, U/G labor | C20: Two shifts with loader, incl. operator and fuel | D20: manhour | E20: 20 | F20: load-s | G20: 175 | H20: =G20*E20 -> 3500 | J20: =H20*I20 -> 0 | K20: =H20*(1-I20) -> 3500 | M20: Remove hazardous materials, U/G labor | N20: Two shifts with loader, incl. operator and fuel | O20: manhour | P20: 20 | Q20: load-s | R20: 175 | S20: =R20*P20 -> 3500 | U20: =S20*T20 -> 0 | V20: =S20*(1-T20) -> 3500 | X20: Remove hazardous materials, U/G labor | Y20: Two shifts with loader, incl. operator and fuel | Z20: manhour | AA20: 20 | AB20: load-s | AC20: 175 | AD20: =AC20*AA20 -> 3500 | AF20: =AD20*AE20 -> 0 | AG20: =AD20*(1-AE20) -> 3500 | AI20: Remove hazardous materials, U/G labor | AJ20: One shift with loader, incl. operator and fuel | AK20: manhour | AL20: 10 | AM20: load-s | AN20: 175 | AO20: =AN20*AL20 -> 1750 | AQ20: =AO20*AP20 -> 0 | AR20: =AO20*(1-AP20) -> 1750
B21: Remove/decontam. stationary & elect. equip | D21: mandays | F21: =NA() ->  | G21: =IF(ISNA(F21),0,INDEX(IF(UPPER(RIGHT(F21,1))=Low,UnitCostLow, IF(UPPER(RIGHT(F21,1))=High,UnitCostHigh,UnitCostSpecified)),MATCH(UPPER(LEFT(F21,LEN(F21)-1)),CostCode,0))) -> 0 | H21: =G21*E21 -> 0 | J21: =H21*I21 -> 0 | K21: =H21*(1-I21) -> 0 | M21: Remove/decontam. stationary & elect. equip | O21: mandays | Q21: =NA() ->  | R21: =IF(ISNA(Q21),0,INDEX(IF(UPPER(RIGHT(Q21,1))=Low,UnitCostLow, IF(UPPER(RIGHT(Q21,1))=High,UnitCostHigh,UnitCostSpecified)),MATCH(UPPER(LEFT(Q21,LEN(Q21)-1)),CostCode,0))) -> 0 | S21: =R21*P21 -> 0 | U21: =S21*T21 -> 0 | V21: =S21*(1-T21) -> 0 | X21: Remove/decontam. stationary & elect. equip | Z21: mandays | AB21: =NA() ->  | AC21: =IF(ISNA(AB21),0,INDEX(IF(UPPER(RIGHT(AB21,1))=Low,UnitCostLow, IF(UPPER(RIGHT(AB21,1))=High,UnitCostHigh,UnitCostSpecified)),MATCH(UPPER(LEFT(AB21,LEN(AB21)-1)),CostCode,0))) -> 0 | AD21: =AC21*AA21 -> 0 | AF21: =AD21*AE21 -> 0 | AG21: =AD21*(1-AE21) -> 0 | AI21: Remove/decontam. stationary & elect. equip | AK21: mandays | AM21: =NA() ->  | AN21: =IF(ISNA(AM21),0,INDEX(IF(UPPER(RIGHT(AM21,1))=Low,UnitCostLow, IF(UPPER(RIGHT(AM21,1))=High,UnitCostHigh,UnitCostSpecified)),MATCH(UPPER(LEFT(AM21,LEN(AM21)-1)),CostCode,0))) -> 0 | AO21: =AN21*AL21 -> 0 | AQ21: =AO21*AP21 -> 0 | AR21: =AO21*(1-AP21) -> 0
B22: Remove/decontam. mobile equipment | D22: each | F22: =NA() ->  | G22: =IF(ISNA(F22),0,INDEX(IF(UPPER(RIGHT(F22,1))=Low,UnitCostLow, IF(UPPER(RIGHT(F22,1))=High,UnitCostHigh,UnitCostSpecified)),MATCH(UPPER(LEFT(F22,LEN(F22)-1)),CostCode,0))) -> 0 | H22: =G22*E22 -> 0 | J22: =H22*I22 -> 0 | K22: =H22*(1-I22) -> 0 | M22: Remove/decontam. mobile equipment | O22: each | Q22: =NA() ->  | R22: =IF(ISNA(Q22),0,INDEX(IF(UPPER(RIGHT(Q22,1))=Low,UnitCostLow, IF(UPPER(RIGHT(Q22,1))=High,UnitCostHigh,UnitCostSpecified)),MATCH(UPPER(LEFT(Q22,LEN(Q22)-1)),CostCode,0))) -> 0 | S22: =R22*P22 -> 0 | U22: =S22*T22 -> 0 | V22: =S22*(1-T22) -> 0 | X22: Remove/decontam. mobile equipment | Z22: each | AB22: =NA() ->  | AC22: =IF(ISNA(AB22),0,INDEX(IF(UPPER(RIGHT(AB22,1))=Low,UnitCostLow, IF(UPPER(RIGHT(AB22,1))=High,UnitCostHigh,UnitCostSpecified)),MATCH(UPPER(LEFT(AB22,LEN(AB22)-1)),CostCode,0))) -> 0 | AD22: =AC22*AA22 -> 0 | AF22: =AD22*AE22 -> 0 | AG22: =AD22*(1-AE22) -> 0 | AI22: Remove/decontam. mobile equipment | AK22: each | AM22: =NA() ->  | AN22: =IF(ISNA(AM22),0,INDEX(IF(UPPER(RIGHT(AM22,1))=Low,UnitCostLow, IF(UPPER(RIGHT(AM22,1))=High,UnitCostHigh,UnitCostSpecified)),MATCH(UPPER(LEFT(AM22,LEN(AM22)-1)),CostCode,0))) -> 0 | AO22: =AN22*AL22 -> 0 | AQ22: =AO22*AP22 -> 0 | AR22: =AO22*(1-AP22) -> 0
B23: Remove misc. haz. mat & explosives | C23: Dispose of up to 1 week's inventory of explosives | D23: kg | E23: 100 | F23: Sabina | G23: 50 | H23: =G23*E23 -> 5000 | J23: =H23*I23 -> 0 | K23: =H23*(1-I23) -> 5000 | M23: Remove misc. haz. mat & explosives | N23: Mining will cease before closure | O23: kg | Q23: =NA() ->  | R23: =IF(ISNA(Q23),0,INDEX(IF(UPPER(RIGHT(Q23,1))=Low,UnitCostLow, IF(UPPER(RIGHT(Q23,1))=High,UnitCostHigh,UnitCostSpecified)),MATCH(UPPER(LEFT(Q23,LEN(Q23)-1)),CostCode,0))) -> 0 | S23: =R23*P23 -> 0 | U23: =S23*T23 -> 0 | V23: =S23*(1-T23) -> 0 | X23: Remove misc. haz. mat & explosives | Y23: Mining will cease before closure | Z23: kg | AB23: =NA() ->  | AC23: =IF(ISNA(AB23),0,INDEX(IF(UPPER(RIGHT(AB23,1))=Low,UnitCostLow, IF(UPPER(RIGHT(AB23,1))=High,UnitCostHigh,UnitCostSpecified)),MATCH(UPPER(LEFT(AB23,LEN(AB23)-1)),CostCode,0))) -> 0 | AD23: =AC23*AA23 -> 0 | AF23: =AD23*AE23 -> 0 | AG23: =AD23*(1-AE23) -> 0 | AI23: Remove misc. haz. mat & explosives | AJ23: Mining will cease before closure | AK23: kg | AM23: =NA() ->  | AN23: =IF(ISNA(AM23),0,INDEX(IF(UPPER(RIGHT(AM23,1))=Low,UnitCostLow, IF(UPPER(RIGHT(AM23,1))=High,UnitCostHigh,UnitCostSpecified)),MATCH(UPPER(LEFT(AM23,LEN(AM23)-1)),CostCode,0))) -> 0 | AO23: =AN23*AL23 -> 0 | AQ23: =AO23*AP23 -> 0 | AR23: =AO23*(1-AP23) -> 0
B24: Decommission Pipeline | C24: Clean Umwelt UG to SWP pipeline, decommission and landfill | D24: m | E24: ='SBB Comp. Est.'!F27 -> 1200 | F24: Sabina | G24: ='SBB Comp. Est.'!W27 -> 10 | H24: =G24*E24 -> 12000 | J24: =H24*I24 -> 0 | K24: =H24*(1-I24) -> 12000 | M24: Decommission Pipeline | N24: Clean Llama UG to SWP pipeline, decommission and landfill | O24: m | P24: ='SBB Comp. Est.'!F36 -> 2700 | Q24: Sabina | R24: ='SBB Comp. Est.'!W36 -> 10 | S24: =R24*P24 -> 27000 | U24: =S24*T24 -> 0 | V24: =S24*(1-T24) -> 27000 | X24: Decommission WTP - Goose Lake Pipeline | Y24: In Water Management tab | Z24: m | AB24: =NA() ->  | AC24: =IF(ISNA(AB24),0,INDEX(IF(UPPER(RIGHT(AB24,1))=Low,UnitCostLow, IF(UPPER(RIGHT(AB24,1))=High,UnitCostHigh,UnitCostSpecified)),MATCH(UPPER(LEFT(AB24,LEN(AB24)-1)),CostCode,0))) -> 0 | AD24: =AC24*AA24 -> 0 | AF24: =AD24*AE24 -> 0 | AG24: =AD24*(1-AE24) -> 0 | AI24: Decommission Pipeline | AK24: m | AM24: =NA() ->  | AN24: =IF(ISNA(AM24),0,INDEX(IF(UPPER(RIGHT(AM24,1))=Low,UnitCostLow, IF(UPPER(RIGHT(AM24,1))=High,UnitCostHigh,UnitCostSpecified)),MATCH(UPPER(LEFT(AM24,LEN(AM24)-1)),CostCode,0))) -> 0 | AO24: =AN24*AL24 -> 0 | AQ24: =AO24*AP24 -> 0 | AR24: =AO24*(1-AP24) -> 0
B25: INSTALL BULKHEADS | M25: INSTALL BULKHEADS | X25: INSTALL BULKHEADS | AI25: INSTALL BULKHEADS
B26: Bulkheads to control water flow | D26: each | F26: =NA() ->  | G26: =IF(ISNA(F26),0,INDEX(IF(UPPER(RIGHT(F26,1))=Low,UnitCostLow, IF(UPPER(RIGHT(F26,1))=High,UnitCostHigh,UnitCostSpecified)),MATCH(UPPER(LEFT(F26,LEN(F26)-1)),CostCode,0))) -> 0 | H26: =G26*E26 -> 0 | J26: =H26*I26 -> 0 | K26: =H26*(1-I26) -> 0 | M26: Bulkheads to control water flow | O26: each | Q26: =NA() ->  | R26: =IF(ISNA(Q26),0,INDEX(IF(UPPER(RIGHT(Q26,1))=Low,UnitCostLow, IF(UPPER(RIGHT(Q26,1))=High,UnitCostHigh,UnitCostSpecified)),MATCH(UPPER(LEFT(Q26,LEN(Q26)-1)),CostCode,0))) -> 0 | S26: =R26*P26 -> 0 | U26: =S26*T26 -> 0 | V26: =S26*(1-T26) -> 0 | X26: Bulkheads to control water flow | Z26: each | AB26: =NA() ->  | AC26: =IF(ISNA(AB26),0,INDEX(IF(UPPER(RIGHT(AB26,1))=Low,UnitCostLow, IF(UPPER(RIGHT(AB26,1))=High,UnitCostHigh,UnitCostSpecified)),MATCH(UPPER(LEFT(AB26,LEN(AB26)-1)),CostCode,0))) -> 0 | AD26: =AC26*AA26 -> 0 | AF26: =AD26*AE26 -> 0 | AG26: =AD26*(1-AE26) -> 0 | AI26: Bulkheads to control water flow | AK26: each | AM26: =NA() ->  | AN26: =IF(ISNA(AM26),0,INDEX(IF(UPPER(RIGHT(AM26,1))=Low,UnitCostLow, IF(UPPER(RIGHT(AM26,1))=High,UnitCostHigh,UnitCostSpecified)),MATCH(UPPER(LEFT(AM26,LEN(AM26)-1)),CostCode,0))) -> 0 | AO26: =AN26*AL26 -> 0 | AQ26: =AO26*AP26 -> 0 | AR26: =AO26*(1-AP26) -> 0
B27: Grout bulkhead | D27: m3 | F27: =NA() ->  | G27: =IF(ISNA(F27),0,INDEX(IF(UPPER(RIGHT(F27,1))=Low,UnitCostLow, IF(UPPER(RIGHT(F27,1))=High,UnitCostHigh,UnitCostSpecified)),MATCH(UPPER(LEFT(F27,LEN(F27)-1)),CostCode,0))) -> 0 | H27: =G27*E27 -> 0 | J27: =H27*I27 -> 0 | K27: =H27*(1-I27) -> 0 | M27: Grout bulkhead | O27: m3 | Q27: =NA() ->  | R27: =IF(ISNA(Q27),0,INDEX(IF(UPPER(RIGHT(Q27,1))=Low,UnitCostLow, IF(UPPER(RIGHT(Q27,1))=High,UnitCostHigh,UnitCostSpecified)),MATCH(UPPER(LEFT(Q27,LEN(Q27)-1)),CostCode,0))) -> 0 | S27: =R27*P27 -> 0 | U27: =S27*T27 -> 0 | V27: =S27*(1-T27) -> 0 | X27: Grout bulkhead | Z27: m3 | AB27: =NA() ->  | AC27: =IF(ISNA(AB27),0,INDEX(IF(UPPER(RIGHT(AB27,1))=Low,UnitCostLow, IF(UPPER(RIGHT(AB27,1))=High,UnitCostHigh,UnitCostSpecified)),MATCH(UPPER(LEFT(AB27,LEN(AB27)-1)),CostCode,0))) -> 0 | AD27: =AC27*AA27 -> 0 | AF27: =AD27*AE27 -> 0 | AG27: =AD27*(1-AE27) -> 0 | AI27: Grout bulkhead | AK27: m3 | AM27: =NA() ->  | AN27: =IF(ISNA(AM27),0,INDEX(IF(UPPER(RIGHT(AM27,1))=Low,UnitCostLow, IF(UPPER(RIGHT(AM27,1))=High,UnitCostHigh,UnitCostSpecified)),MATCH(UPPER(LEFT(AM27,LEN(AM27)-1)),CostCode,0))) -> 0 | AO27: =AN27*AL27 -> 0 | AQ27: =AO27*AP27 -> 0 | AR27: =AO27*(1-AP27) -> 0
B28: FLOOD MINE | M28: FLOOD MINE | X28: FLOOD MINE | AI28: FLOOD MINE
B29: Supply/install pump | C29: UG mine is expected to be flooded in Year 10 and active flooding will take about a year, relocation of pipelines and flooding will occur as part of operations but cost is provided as a conservative approach | D29: each | F29: =NA() ->  | G29: =IF(ISNA(F29),0,INDEX(IF(UPPER(RIGHT(F29,1))=Low,UnitCostLow, IF(UPPER(RIGHT(F29,1))=High,UnitCostHigh,UnitCostSpecified)),MATCH(UPPER(LEFT(F29,LEN(F29)-1)),CostCode,0))) -> 0 | H29: =G29*E29 -> 0 | J29: 0 | K29: =H29*(1-I29) -> 0 | M29: Supply/install pump | N29: UG mine is expected to be flooded in Year 5 and active flooding will take about a year, relocation of pipelines and flooding will occur as part of operations | O29: each | Q29: =NA() ->  | R29: =IF(ISNA(Q29),0,INDEX(IF(UPPER(RIGHT(Q29,1))=Low,UnitCostLow, IF(UPPER(RIGHT(Q29,1))=High,UnitCostHigh,UnitCostSpecified)),MATCH(UPPER(LEFT(Q29,LEN(Q29)-1)),CostCode,0))) -> 0 | S29: =R29*P29 -> 0 | U29: =S29*T29 -> 0 | V29: =S29*(1-T29) -> 0 | X29: Supply/install pump | Y29: UG mine is expected to be flooded in Year 10 and active flooding will take about a year, relocation of pipelines and flooding will occur as progressive reclamation but cost is provided as a conservative approach | Z29: each | AB29: =NA() ->  | AC29: =IF(ISNA(AB29),0,INDEX(IF(UPPER(RIGHT(AB29,1))=Low,UnitCostLow, IF(UPPER(RIGHT(AB29,1))=High,UnitCostHigh,UnitCostSpecified)),MATCH(UPPER(LEFT(AB29,LEN(AB29)-1)),CostCode,0))) -> 0 | AD29: =AC29*AA29 -> 0 | AF29: =AD29*AE29 -> 0 | AG29: =AD29*(1-AE29) -> 0 | AI29: Supply/install pump | AJ29: Passive flooding of Echo UG in Year 10, complete flooding is expected to occur within a few months. | AK29: each | AM29: =NA() ->  | AN29: =IF(ISNA(AM29),0,INDEX(IF(UPPER(RIGHT(AM29,1))=Low,UnitCostLow, IF(UPPER(RIGHT(AM29,1))=High,UnitCostHigh,UnitCostSpecified)),MATCH(UPPER(LEFT(AM29,LEN(AM29)-1)),CostCode,0))) -> 0 | AO29: =AN29*AL29 -> 0 | AQ29: =AO29*AP29 -> 0 | AR29: =AO29*(1-AP29) -> 0
B30: Relocate Pipeline | C30: Move SWP-Llama UG pipeline discharge to Umwelt UG | D30: m | E30: ='SBB Comp. Est.'!F25 -> 800 | F30: Sabina | G30: ='SBB Comp. Est.'!W25 -> 10 | H30: =G30*E30 -> 8000 | J30: =H30*I30 -> 0 | K30: =H30*(1-I30) -> 8000 | M30: Supply/install piping system | O30: m | Q30: =NA() ->  | R30: =IF(ISNA(Q30),0,INDEX(IF(UPPER(RIGHT(Q30,1))=Low,UnitCostLow, IF(UPPER(RIGHT(Q30,1))=High,UnitCostHigh,UnitCostSpecified)),MATCH(UPPER(LEFT(Q30,LEN(Q30)-1)),CostCode,0))) -> 0 | S30: =R30*P30 -> 0 | U30: =S30*T30 -> 0 | V30: =S30*(1-T30) -> 0 | X30: Supply/install piping system | Y30: Adjust pipe line to route to Goose UG in Year 10 | Z30: m | AA30: ='SBB Comp. Est.'!F30 -> 4500 | AB30: Sabina | AC30: ='SBB Comp. Est.'!W30 -> 12.77777778 | AD30: 57500 | AF30: 0 | AG30: 57500 | AI30: Supply/install piping system | AK30: each | AM30: =NA() ->  | AN30: 0 | AO30: =AN30*AL30 -> 0 | AQ30: =AO30*AP30 -> 0 | AR30: =AO30*(1-AP30) -> 0
B31: Operate pumps to flood workings | D31: m3 | E31: ='SBB Comp. Est.'!F26 -> 763134 | F31: Sabina | G31: ='SBB Comp. Est.'!W26 -> 0.1290464584 | H31: =G31*E31 -> 98479.74 | J31: 0 | K31: =H31*(1-I31) -> 98479.74 | M31: Operate pumps to flood workings | O31: m3 | Q31: =NA() ->  | R31: =IF(ISNA(Q31),0,INDEX(IF(UPPER(RIGHT(Q31,1))=Low,UnitCostLow, IF(UPPER(RIGHT(Q31,1))=High,UnitCostHigh,UnitCostSpecified)),MATCH(UPPER(LEFT(Q31,LEN(Q31)-1)),CostCode,0))) -> 0 | S31: =R31*P31 -> 0 | U31: 0 | V31: 0 | X31: Operate pumps to flood workings | Z31: m3 | AA31: ='SBB Comp. Est.'!F31 -> 391630 | AB31: Sabina | AC31: ='SBB Comp. Est.'!W29 -> 0.1334398613 | AD31: 52259.05289 | AF31: 0 | AG31: 52259.05289 | AI31: Operate pumps to flood workings | AK31: m3 | AM31: =NA() ->  | AN31: 0 | AO31: 0 | AQ31: 0 | AR31: 0
B32: Decommission of pipeline | F32: =NA() ->  | G32: =IF(ISNA(F32),0,INDEX(IF(UPPER(RIGHT(F32,1))=Low,UnitCostLow, IF(UPPER(RIGHT(F32,1))=High,UnitCostHigh,UnitCostSpecified)),MATCH(UPPER(LEFT(F32,LEN(F32)-1)),CostCode,0))) -> 0 | H32: =G32*E32 -> 0 | J32: 0 | K32: =H32*(1-I32) -> 0 | M32: Decommission of pipelines | Q32: =NA() ->  | R32: =IF(ISNA(Q32),0,INDEX(IF(UPPER(RIGHT(Q32,1))=Low,UnitCostLow, IF(UPPER(RIGHT(Q32,1))=High,UnitCostHigh,UnitCostSpecified)),MATCH(UPPER(LEFT(Q32,LEN(Q32)-1)),CostCode,0))) -> 0 | S32: =R32*P32 -> 0 | U32: =S32*T32 -> 0 | V32: =S32*(1-T32) -> 0 | X32: Decommission SWP to Goose UG pipeline | Z32: m | AA32: ='SBB Comp. Est.'!F32 -> 10800 | AB32: Sabina | AC32: ='SBB Comp. Est.'!W32 -> 10 | AD32: 108000 | AF32: 0 | AG32: 108000 | AI32: Decommission | AM32: =NA() ->  | AN32: 0 | AO32: 0 | AQ32: 0 | AR32: 0
B33: Other | F33: =NA() ->  | G33: =IF(ISNA(F33),0,INDEX(IF(UPPER(RIGHT(F33,1))=Low,UnitCostLow, IF(UPPER(RIGHT(F33,1))=High,UnitCostHigh,UnitCostSpecified)),MATCH(UPPER(LEFT(F33,LEN(F33)-1)),CostCode,0))) -> 0 | H33: =G33*E33 -> 0 | J33: 0 | K33: =H33*(1-I33) -> 0 | M33: Other | Q33: =NA() ->  | R33: =IF(ISNA(Q33),0,INDEX(IF(UPPER(RIGHT(Q33,1))=Low,UnitCostLow, IF(UPPER(RIGHT(Q33,1))=High,UnitCostHigh,UnitCostSpecified)),MATCH(UPPER(LEFT(Q33,LEN(Q33)-1)),CostCode,0))) -> 0 | S33: =R33*P33 -> 0 | U33: 0 | V33: 0 | X33: Other | AB33: =NA() ->  | AC33: =IF(ISNA(AB33),0,INDEX(IF(UPPER(RIGHT(AB33,1))=Low,UnitCostLow, IF(UPPER(RIGHT(AB33,1))=High,UnitCostHigh,UnitCostSpecified)),MATCH(UPPER(LEFT(AB33,LEN(AB33)-1)),CostCode,0))) -> 0 | AD33: 0 | AF33: 0 | AG33: 0 | AI33: Other | AM33: =NA() ->  | AN33: 0 | AO33: =AN33*AL33 -> 0 | AQ33: 0 | AR33: 0
B34: INSTALL GROUNDWATER COLLECTION SYSTEM | M34: INSTALL GROUNDWATER COLLECTION SYSTEM | X34: INSTALL GROUNDWATER COLLECTION SYSTEM | AI34: INSTALL GROUNDWATER COLLECTION SYSTEM
B35: Excavate/install sumps | D35: m2 | F35: =NA() ->  | G35: =IF(ISNA(F35),0,INDEX(IF(UPPER(RIGHT(F35,1))=Low,UnitCostLow, IF(UPPER(RIGHT(F35,1))=High,UnitCostHigh,UnitCostSpecified)),MATCH(UPPER(LEFT(F35,LEN(F35)-1)),CostCode,0))) -> 0 | H35: =G35*E35 -> 0 | J35: =H35*I35 -> 0 | K35: =+H35*(1-I35) -> 0 | M35: Excavate/install sumps | O35: m2 | Q35: =NA() ->  | R35: =IF(ISNA(Q35),0,INDEX(IF(UPPER(RIGHT(Q35,1))=Low,UnitCostLow, IF(UPPER(RIGHT(Q35,1))=High,UnitCostHigh,UnitCostSpecified)),MATCH(UPPER(LEFT(Q35,LEN(Q35)-1)),CostCode,0))) -> 0 | S35: =R35*P35 -> 0 | U35: =S35*T35 -> 0 | V35: =+S35*(1-T35) -> 0 | X35: Excavate/install sumps | Z35: m2 | AB35: =NA() ->  | AC35: =IF(ISNA(AB35),0,INDEX(IF(UPPER(RIGHT(AB35,1))=Low,UnitCostLow, IF(UPPER(RIGHT(AB35,1))=High,UnitCostHigh,UnitCostSpecified)),MATCH(UPPER(LEFT(AB35,LEN(AB35)-1)),CostCode,0))) -> 0 | AD35: =AC35*AA35 -> 0 | AF35: =AD35*AE35 -> 0 | AG35: =+AD35*(1-AE35) -> 0 | AI35: Excavate/install sumps | AK35: m2 | AM35: =NA() ->  | AN35: =IF(ISNA(AM35),0,INDEX(IF(UPPER(RIGHT(AM35,1))=Low,UnitCostLow, IF(UPPER(RIGHT(AM35,1))=High,UnitCostHigh,UnitCostSpecified)),MATCH(UPPER(LEFT(AM35,LEN(AM35)-1)),CostCode,0))) -> 0 | AO35: =AN35*AL35 -> 0 | AQ35: =AO35*AP35 -> 0 | AR35: =+AO35*(1-AP35) -> 0
B36: Install pumping wells | D36: m3 | F36: =NA() ->  | G36: 0 | H36: 0 | J36: 0 | K36: =+H36*(1-I36) -> 0 | M36: Install pumping wells | O36: m3 | Q36: =NA() ->  | R36: 0 | S36: 0 | U36: 0 | V36: 0 | X36: Install pumping wells | Z36: m3 | AB36: =NA() ->  | AC36: 0 | AD36: 0 | AF36: 0 | AG36: 0 | AI36: Install pumping wells | AK36: m3 | AM36: =NA() ->  | AN36: 0 | AO36: 0 | AQ36: 0 | AR36: 0
B37: Install pumps/pipelines/power supply | D37: LS | F37: =NA() ->  | G37: 0 | H37: 0 | J37: 0 | K37: =+H37*(1-I37) -> 0 | M37: Install pumps/pipelines/power supply | O37: LS | Q37: =NA() ->  | R37: 0 | S37: 0 | U37: 0 | V37: 0 | X37: Install pumps/pipelines/power supply | Z37: LS | AB37: =NA() ->  | AC37: 0 | AD37: 0 | AF37: 0 | AG37: 0 | AI37: Install pumps/pipelines/power supply | AK37: LS | AM37: =NA() ->  | AN37: 0 | AO37: 0 | AQ37: 0 | AR37: 0
B38: SPECIALIZED ITEMS | M38: SPECIALIZED ITEMS | X38: SPECIALIZED ITEMS | AI38: SPECIALIZED ITEMS
B39: Install water quality monitoring pipes | D39: each | F39: =NA() ->  | G39: =IF(ISNA(F39),0,INDEX(IF(UPPER(RIGHT(F39,1))=Low,UnitCostLow, IF(UPPER(RIGHT(F39,1))=High,UnitCostHigh,UnitCostSpecified)),MATCH(UPPER(LEFT(F39,LEN(F39)-1)),CostCode,0))) -> 0 | H39: =G39*E39 -> 0 | J39: =H39*I39 -> 0 | K39: =H39*(1-I39) -> 0 | M39: Install water quality monitoring pipes | O39: each | Q39: =NA() ->  | R39: =IF(ISNA(Q39),0,INDEX(IF(UPPER(RIGHT(Q39,1))=Low,UnitCostLow, IF(UPPER(RIGHT(Q39,1))=High,UnitCostHigh,UnitCostSpecified)),MATCH(UPPER(LEFT(Q39,LEN(Q39)-1)),CostCode,0))) -> 0 | S39: =R39*P39 -> 0 | U39: =S39*T39 -> 0 | V39: =S39*(1-T39) -> 0 | X39: Install water quality monitoring pipes | Z39: each | AB39: =NA() ->  | AC39: =IF(ISNA(AB39),0,INDEX(IF(UPPER(RIGHT(AB39,1))=Low,UnitCostLow, IF(UPPER(RIGHT(AB39,1))=High,UnitCostHigh,UnitCostSpecified)),MATCH(UPPER(LEFT(AB39,LEN(AB39)-1)),CostCode,0))) -> 0 | AD39: =AC39*AA39 -> 0 | AF39: =AD39*AE39 -> 0 | AG39: =AD39*(1-AE39) -> 0 | AI39: Install water quality monitoring pipes | AK39: each | AM39: =NA() ->  | AN39: =IF(ISNA(AM39),0,INDEX(IF(UPPER(RIGHT(AM39,1))=Low,UnitCostLow, IF(UPPER(RIGHT(AM39,1))=High,UnitCostHigh,UnitCostSpecified)),MATCH(UPPER(LEFT(AM39,LEN(AM39)-1)),CostCode,0))) -> 0 | AO39: =AN39*AL39 -> 0 | AQ39: =AO39*AP39 -> 0 | AR39: =AO39*(1-AP39) -> 0
B40: Install permanent pumping system | D40: each | F40: =NA() ->  | G40: 0 | H40: =G40*E40 -> 0 | J40: =H40*I40 -> 0 | K40: =H40*(1-I40) -> 0 | M40: Install permanent pumping system | O40: each | Q40: =NA() ->  | R40: 0 | S40: =R40*P40 -> 0 | U40: =S40*T40 -> 0 | V40: 0 | X40: Install permanent pumping system | Z40: each | AB40: =NA() ->  | AC40: 0 | AD40: =AC40*AA40 -> 0 | AF40: =AD40*AE40 -> 0 | AG40: 0 | AI40: Install permanent pumping system | AK40: each | AM40: =NA() ->  | AN40: 0 | AO40: =AN40*AL40 -> 0 | AQ40: =AO40*AP40 -> 0 | AR40: 0
B41: Assess underground stability | C41: Rock mechanics inspection before closure | D41: each | E41: 1 | F41: Sabina | G41: 10000 | H41: =G41*E41 -> 10000 | J41: =H41*I41 -> 0 | K41: =H41*(1-I41) -> 10000 | M41: Assess underground stability | N41: Rock mechanics inspection before closure | O41: each | P41: 1 | Q41: Sabina | R41: 10000 | S41: =R41*P41 -> 10000 | U41: =S41*T41 -> 0 | V41: 10000 | X41: Other | AB41: =NA() ->  | AC41: =IF(ISNA(AB41),0,INDEX(IF(UPPER(RIGHT(AB41,1))=Low,UnitCostLow, IF(UPPER(RIGHT(AB41,1))=High,UnitCostHigh,UnitCostSpecified)),MATCH(UPPER(LEFT(AB41,LEN(AB41)-1)),CostCode,0))) -> 0 | AD41: =AC41*AA41 -> 0 | AF41: =AD41*AE41 -> 0 | AG41: 0 | AI41: Assess underground stability | AJ41: Rock mechanics inspection before closure | AK41: each | AL41: 1 | AM41: Sabina | AN41: 10000 | AO41: =AN41*AL41 -> 10000 | AQ41: =AO41*AP41 -> 0 | AR41: 10000
G42: Total | H42: =SUM(H5:H41)+0.0001 -> 320806.5401 | J42: =SUM(J5:J41) -> 0 | K42: =SUM(K5:K41) -> 320806.54 | R42: Total | S42: =SUM(S5:S41)+0.0001 -> 103655.6001 | U42: =SUM(U5:U41) -> 0 | V42: =SUM(V5:V41) -> 103655.6 | AC42: Total | AD42: =SUM(AD5:AD41)+0.0001 -> 284414.653 | AF42: =SUM(AF5:AF41) -> 0 | AG42: =SUM(AG5:AG41) -> 284414.6529 | AN42: Total | AO42: =SUM(AO5:AO41)+0.0001 -> 96205.6001 | AQ42: =SUM(AQ5:AQ41) -> 0 | AR42: =SUM(AR5:AR41) -> 96205.6
G43: % of Total | J43: =J42/H42 -> 0 | K43: =K42/H42 -> 0.9999999997 | R43: % of Total | U43: =U42/S42 -> 0 | V43: =V42/S42 -> 0.999999999 | AC43: % of Total | AF43: =AF42/AD42 -> 0 | AG43: =AG42/AD42 -> 0.9999999996 | AN43: % of Total | AQ43: =AQ42/AO42 -> 0 | AR43: =AR42/AO42 -> 0.999999999

Sheet Tailings
A1: 1 | B1: Tailings Impoundment Name: | C1: TSF | G1: Pond # | H1: 1
B3: ACTIVITY/MATERIAL | C3: Notes | D3: Units | E3: Quantity | F3: Cost Code | G3: Unit Cost | H3: Cost | I3: % Land | J3: Land Cost | K3: Total Cost
B4: CONTROL ACCESS
B5: Fence | D5: m | F5: =NA() ->  | G5: =IF(ISNA(F5),0,INDEX(IF(UPPER(RIGHT(F5,1))=Low,UnitCostLow, IF(UPPER(RIGHT(F5,1))=High,UnitCostHigh,UnitCostSpecified)),MATCH(UPPER(LEFT(F5,LEN(F5)-1)),CostCode,0))) -> 0 | H5: =G5*E5 -> 0 | J5: =H5*I5 -> 0 | K5: =+H5*(1-I5) -> 0
B6: Signs | D6: each | F6: =NA() ->  | G6: 0 | H6: 0 | J6: =H6*I6 -> 0 | K6: =+H6*(1-I6) -> 0
B7: Berm | D7: m3 | F7: =NA() ->  | G7: 0 | H7: 0 | J7: 0 | K7: 0
B8: Block roads | D8: m3 | F8: =NA() ->  | G8: 0 | H8: 0 | J8: 0 | K8: 0
B9: Other | F9: =NA() ->  | G9: 0 | H9: 0 | J9: 0 | K9: 0
B10: STABILIZE EMBANKMENT(S)
B11: Toe buttress, drainage layer | D11: m3 | F11: =NA() ->  | G11: 0 | H11: =G11*E11 -> 0 | J11: 0 | K11: 0
B12: Toe buttress, bulk fill | D12: m3 | F12: =NA() ->  | G12: 0 | H12: 0 | J12: 0 | K12: 0
B13: Rip rap | D13: m3 | F13: =NA() ->  | G13: 0 | H13: 0 | J13: 0 | K13: 0
B14: Vegetate | D14: ha | F14: =NA() ->  | G14: 0 | H14: 0 | J14: 0 | K14: 0
B15: Raise crest | D15: m3 | F15: =NA() ->  | G15: 0 | H15: 0 | J15: 0 | K15: 0
B16: Flatten slopes | D16: m3 | F16: =NA() ->  | G16: 0 | H16: 0 | J16: 0 | K16: 0
B17: Other | F17: =NA() ->  | G17: 0 | H17: 0 | J17: 0 | K17: 0
B18: COVER TAILINGS
B19: Grade/shape tailings surface | D19: m3 | F19: =NA() ->  | G19: =IF(ISNA(F19),0,INDEX(IF(UPPER(RIGHT(F19,1))=Low,UnitCostLow, IF(UPPER(RIGHT(F19,1))=High,UnitCostHigh,UnitCostSpecified)),MATCH(UPPER(LEFT(F19,LEN(F19)-1)),CostCode,0))) -> 0 | H19: =G19*E19 -> 0 | J19: =H19*I19 -> 0 | K19: =+H19*(1-I19) -> 0
B20: Liner bedding | D20: m3 | F20: =NA() ->  | G20: =IF(ISNA(F20),0,INDEX(IF(UPPER(RIGHT(F20,1))=Low,UnitCostLow, IF(UPPER(RIGHT(F20,1))=High,UnitCostHigh,UnitCostSpecified)),MATCH(UPPER(LEFT(F20,LEN(F20)-1)),CostCode,0))) -> 0 | H20: =G20*E20 -> 0 | J20: =H20*I20 -> 0 | K20: =+H20*(1-I20) -> 0
B21: Subgrade preparation - compact | D21: m2 | F21: =NA() ->  | G21: =IF(ISNA(F21),0,INDEX(IF(UPPER(RIGHT(F21,1))=Low,UnitCostLow, IF(UPPER(RIGHT(F21,1))=High,UnitCostHigh,UnitCostSpecified)),MATCH(UPPER(LEFT(F21,LEN(F21)-1)),CostCode,0))) -> 0 | H21: =G21*E21 -> 0 | J21: =H21*I21 -> 0 | K21: =+H21*(1-I21) -> 0
B22: Supply geotextile/geosynthetic | D22: m2 | F22: =NA() ->  | G22: =IF(ISNA(F22),0,INDEX(IF(UPPER(RIGHT(F22,1))=Low,UnitCostLow, IF(UPPER(RIGHT(F22,1))=High,UnitCostHigh,UnitCostSpecified)),MATCH(UPPER(LEFT(F22,LEN(F22)-1)),CostCode,0))) -> 0 | H22: 0 | J22: 0 | K22: 0
B23: Install geotextile/geosynthetic | D23: m2 | F23: =NA() ->  | G23: =IF(ISNA(F23),0,INDEX(IF(UPPER(RIGHT(F23,1))=Low,UnitCostLow, IF(UPPER(RIGHT(F23,1))=High,UnitCostHigh,UnitCostSpecified)),MATCH(UPPER(LEFT(F23,LEN(F23)-1)),CostCode,0))) -> 0 | H23: =G23*E23 -> 0 | J23: =H23*I23 -> 0 | K23: =+H23*(1-I23) -> 0
B24: Soil cover | D24: m3 | F24: =NA() ->  | G24: =IF(ISNA(F24),0,INDEX(IF(UPPER(RIGHT(F24,1))=Low,UnitCostLow, IF(UPPER(RIGHT(F24,1))=High,UnitCostHigh,UnitCostSpecified)),MATCH(UPPER(LEFT(F24,LEN(F24)-1)),CostCode,0))) -> 0 | H24: 0 | J24: 0 | K24: 0
B25: Rock cover | C25: Included in the quantity for waste rock pile cover (5m of NPAG). See Rock Pile tab. | D25: m3 | F25: =NA() ->  | G25: =IF(ISNA(F25),0,INDEX(IF(UPPER(RIGHT(F25,1))=Low,UnitCostLow, IF(UPPER(RIGHT(F25,1))=High,UnitCostHigh,UnitCostSpecified)),MATCH(UPPER(LEFT(F25,LEN(F25)-1)),CostCode,0))) -> 0 | H25: =G25*E25 -> 0 | J25: =H25*I25 -> 0 | K25: =+H25*(1-I25) -> 0
B26: TSF WRSA Pond Sediment Removal | C26: assumed 0.5 m of sediments in pond basin (26 ha) to be removed and placed in TSF WRSA | D26: m3 | E26: 13000 | F26: SBTH | G26: 3.7 | H26: =G26*E26 -> 48100 | J26: =H26*I26 -> 0 | K26: =+H26*(1-I26) -> 48100
B27: Vegetate | C27: TSF WRSA Pond | D27: m2 | E27: 20 | F27: VHFL | G27: 4000 | H27: 80000 | J27: 0 | K27: 80000
B28: Other | F28: =NA() ->  | G28: 0 | H28: =G28*E28 -> 0 | J28: =H28*I28 -> 0 | K28: =+H28*(1-I28) -> 0
B29: BURY PAG ROCK
B30: Relocate PAG rock | D30: m3 | F30: =NA() ->  | G30: 0 | H30: =G30*E30 -> 0 | J30: 0 | K30: 0
B31: Place cover over PAG rock | D31: m3 | F31: =NA() ->  | G31: 0 | H31: =G31*E31 -> 0 | J31: 0 | K31: 0
B32: Raise crest of dam | D32: m3 | F32: =NA() ->  | G32: 0 | H32: =G32*E32 -> 0 | J32: 0 | K32: 0
B33: Other | F33: =NA() ->  | G33: 0 | H33: =G33*E33 -> 0 | J33: 0 | K33: 0
B34: STABILIZE DECANT SYSTEM
B35: Excavate and replace | D35: m3 | F35: =NA() ->  | G35: =IF(ISNA(F35),0,INDEX(IF(UPPER(RIGHT(F35,1))=Low,UnitCostLow, IF(UPPER(RIGHT(F35,1))=High,UnitCostHigh,UnitCostSpecified)),MATCH(UPPER(LEFT(F35,LEN(F35)-1)),CostCode,0))) -> 0 | H35: =G35*E35 -> 0 | J35: =H35*I35 -> 0 | K35: =+H35*(1-I35) -> 0
B36: Plug/backfill with concrete or clay | D36: m3 | F36: =NA() ->  | G36: =IF(ISNA(F36),0,INDEX(IF(UPPER(RIGHT(F36,1))=Low,UnitCostLow, IF(UPPER(RIGHT(F36,1))=High,UnitCostHigh,UnitCostSpecified)),MATCH(UPPER(LEFT(F36,LEN(F36)-1)),CostCode,0))) -> 0 | H36: =G36*E36 -> 0 | J36: =H36*I36 -> 0 | K36: =+H36*(1-I36) -> 0
B37: Other | F37: =NA() ->  | G37: =IF(ISNA(F37),0,INDEX(IF(UPPER(RIGHT(F37,1))=Low,UnitCostLow, IF(UPPER(RIGHT(F37,1))=High,UnitCostHigh,UnitCostSpecified)),MATCH(UPPER(LEFT(F37,LEN(F37)-1)),CostCode,0))) -> 0 | H37: =G37*E37 -> 0 | J37: =H37*I37 -> 0 | K37: =+H37*(1-I37) -> 0
B38: REMOVE TAILINGS DISCHARGE
B39: Cyclones | D39: m3 | F39: =NA() ->  | G39: =IF(ISNA(F39),0,INDEX(IF(UPPER(RIGHT(F39,1))=Low,UnitCostLow, IF(UPPER(RIGHT(F39,1))=High,UnitCostHigh,UnitCostSpecified)),MATCH(UPPER(LEFT(F39,LEN(F39)-1)),CostCode,0))) -> 0 | H39: =G39*E39 -> 0 | J39: =H39*I39 -> 0 | K39: =+H39*(1-I39) -> 0
B40: Pipe | D40: m3 | F40: =NA() ->  | G40: =IF(ISNA(F40),0,INDEX(IF(UPPER(RIGHT(F40,1))=Low,UnitCostLow, IF(UPPER(RIGHT(F40,1))=High,UnitCostHigh,UnitCostSpecified)),MATCH(UPPER(LEFT(F40,LEN(F40)-1)),CostCode,0))) -> 0 | H40: =G40*E40 -> 0 | J40: =H40*I40 -> 0 | K40: =+H40*(1-I40) -> 0
B41: Remove reclaim barge | D41: allow | F41: =NA() ->  | G41: =IF(ISNA(F41),0,INDEX(IF(UPPER(RIGHT(F41,1))=Low,UnitCostLow, IF(UPPER(RIGHT(F41,1))=High,UnitCostHigh,UnitCostSpecified)),MATCH(UPPER(LEFT(F41,LEN(F41)-1)),CostCode,0))) -> 0 | H41: =G41*E41 -> 0 | J41: =H41*I41 -> 0 | K41: =+H41*(1-I41) -> 0
B42: CONSTRUCT DIVERSION DITCHES
B43: Excavate ditches -soil | D43: m3 | F43: =NA() ->  | G43: =IF(ISNA(F43),0,INDEX(IF(UPPER(RIGHT(F43,1))=Low,UnitCostLow, IF(UPPER(RIGHT(F43,1))=High,UnitCostHigh,UnitCostSpecified)),MATCH(UPPER(LEFT(F43,LEN(F43)-1)),CostCode,0))) -> 0 | H43: =G43*E43 -> 0 | J43: =H43*I43 -> 0 | K43: =+H43*(1-I43) -> 0
B44: Excavate ditches -rock | D44: m3 | F44: =NA() ->  | G44: =IF(ISNA(F44),0,INDEX(IF(UPPER(RIGHT(F44,1))=Low,UnitCostLow, IF(UPPER(RIGHT(F44,1))=High,UnitCostHigh,UnitCostSpecified)),MATCH(UPPER(LEFT(F44,LEN(F44)-1)),CostCode,0))) -> 0 | H44: =G44*E44 -> 0 | J44: 0 | K44: 0
B45: Rip rap in channel base (liner) | D45: m2 | F45: =NA() ->  | G45: =IF(ISNA(F45),0,INDEX(IF(UPPER(RIGHT(F45,1))=Low,UnitCostLow, IF(UPPER(RIGHT(F45,1))=High,UnitCostHigh,UnitCostSpecified)),MATCH(UPPER(LEFT(F45,LEN(F45)-1)),CostCode,0))) -> 0 | H45: =G45*E45 -> 0 | J45: 0 | K45: 0
B46: FLOOD TAILINGS
B47: Doze tailings to final contour | D47: m3 | F47: =NA() ->  | G47: 0 | H47: =G47*E47 -> 0 | J47: 0 | K47: 0
B48: Raise crest of dam | D48: m3 | F48: =NA() ->  | G48: 0 | H48: =G48*E48 -> 0 | J48: 0 | K48: 0
B49: Other | F49: =NA() ->  | G49: 0 | H49: =G49*E49 -> 0 | J49: 0 | K49: 0
B50: UPGRADE SPILLWAY
B51: Excavate channel on TSF | C51: Breach west end of dam to existing drainage reporting to Goose Main Pit; 100 m channel. | D51: m3 | E51: ='SBB Comp. Est.'!F82 -> 11000 | F51: Sabina | G51: ='SBB Comp. Est.'!W82 -> 7.3 | H51: =G51*E51 -> 80300 | J51: 0 | K51: 80300
B52: Excavate channel, soil | D52: m3 | F52: =NA() ->  | G52: 0 | H52: =G52*E52 -> 0 | J52: 0 | K52: 0
B53: Concrete | D53: m3 | F53: =NA() ->  | G53: 0 | H53: =G53*E53 -> 0 | J53: 0 | K53: 0
B54: Rip rap | D54: m3 | E54: 7000 | F54: RR1H | G54: =IF(ISNA(F54),0,INDEX(IF(UPPER(RIGHT(F54,1))=Low,UnitCostLow, IF(UPPER(RIGHT(F54,1))=High,UnitCostHigh,UnitCostSpecified)),MATCH(UPPER(LEFT(F54,LEN(F54)-1)),CostCode,0))) -> 17.75 | H54: =G54*E54 -> 124250 | J54: =H54*I54 -> 0 | K54: =+H54*(1-I54) -> 124250
B55: Other | C55: Geotextile | D55: m2 | E55: 2860 | F55: GSTL | G55: 3.44 | H55: =G55*E55 -> 9838.4 | J55: 0 | K55: 9838.4
B56: CONSTRUCT SEEPAGE COLLECTION POND
B57: Excavate seepage collection pond | D57: m3 | F57: =NA() ->  | G57: =IF(ISNA(F57),0,INDEX(IF(UPPER(RIGHT(F57,1))=Low,UnitCostLow, IF(UPPER(RIGHT(F57,1))=High,UnitCostHigh,UnitCostSpecified)),MATCH(UPPER(LEFT(F57,LEN(F57)-1)),CostCode,0))) -> 0 | H57: =G57*E57 -> 0 | J57: =H57*I57 -> 0 | K57: =+H57*(1-I57) -> 0
B58: Doze & spread excavated material | D58: m3 | F58: =NA() ->  | G58: 0 | H58: 0 | J58: 0 | K58: 0
B59: Vegetate spread material | D59: ha | F59: =NA() ->  | G59: 0 | H59: 0 | J59: 0 | K59: 0
B60: Bedding layer | D60: m3 | F60: =NA() ->  | G60: 0 | H60: 0 | J60: 0 | K60: 0
B61: Supply geomembrane | D61: m2 | F61: =NA() ->  | G61: 0 | H61: 0 | J61: 0 | K61: 0
B62: Install geomembrane | D62: m2 | F62: =NA() ->  | G62: 0 | H62: 0 | J62: 0 | K62: 0
B63: Erosion protection layer | D63: m3 | F63: =NA() ->  | G63: 0 | H63: 0 | J63: 0 | K63: 0
B64: Breach seepage diversion berm | D64: m3 | E64: ='SBB Comp. Est.'!F83 -> 285 | F64: Sabina | G64: ='SBB Comp. Est.'!W83 -> 7.3 | H64: =G64*E64 -> 2080.5 | J64: =H64*I64 -> 0 | K64: =+H64*(1-I64) -> 2080.5
B65: INSTALL GROUNDWATER COLLECTION SYSTEM
B66: Excavate/install sumps | D66: m3 | F66: =NA() ->  | G66: =IF(ISNA(F66),0,INDEX(IF(UPPER(RIGHT(F66,1))=Low,UnitCostLow, IF(UPPER(RIGHT(F66,1))=High,UnitCostHigh,UnitCostSpecified)),MATCH(UPPER(LEFT(F66,LEN(F66)-1)),CostCode,0))) -> 0 | H66: =G66*E66 -> 0 | J66: =H66*I66 -> 0 | K66: =+H66*(1-I66) -> 0
B67: Install pumping wells | D67: m3 | F67: =NA() ->  | G67: 0 | H67: 0 | J67: 0 | K67: 0
B68: Install pumps/pipelines/power supply | D68: LS | F68: =NA() ->  | G68: 0 | H68: 0 | J68: 0 | K68: 0
B69: SPECIALIZED ITEMS
B70: Install permanent instrumentation, supply & technican | D70: each | F70: =NA() ->  | G70: 0 | H70: =G70*E70 -> 0 | J70: =H70*I70 -> 0 | K70: =+H70*(1-I70) -> 0
B71: Install permanent instrumentation, drilling | D71: each | F71: =NA() ->  | G71: =IF(ISNA(F71),0,INDEX(IF(UPPER(RIGHT(F71,1))=Low,UnitCostLow, IF(UPPER(RIGHT(F71,1))=High,UnitCostHigh,UnitCostSpecified)),MATCH(UPPER(LEFT(F71,LEN(F71)-1)),CostCode,0))) -> 0 | H71: =G71*E71 -> 0 | K71: =+H71*(1-I71) -> 0
B72: TREAT SEEPAGE - see "Water Management" and "Water Treatment"
B73: TREAT SUPERNATANT
B74: Pump water (to pit, U/G) | D74: m3 | F74: =NA() ->  | G74: =IF(ISNA(F74),0,INDEX(IF(UPPER(RIGHT(F74,1))=Low,UnitCostLow, IF(UPPER(RIGHT(F74,1))=High,UnitCostHigh,UnitCostSpecified)),MATCH(UPPER(LEFT(F74,LEN(F74)-1)),CostCode,0))) -> 0 | H74: =G74*E74 -> 0 | J74: =H74*I74 -> 0 | K74: =+H74*(1-I74) -> 0
B75: Equipment maintenance and parts | D75: allow | F75: =NA() ->  | G75: =IF(ISNA(F75),0,INDEX(IF(UPPER(RIGHT(F75,1))=Low,UnitCostLow, IF(UPPER(RIGHT(F75,1))=High,UnitCostHigh,UnitCostSpecified)),MATCH(UPPER(LEFT(F75,LEN(F75)-1)),CostCode,0))) -> 0 | H75: =G75*E75 -> 0 | J75: =H75*I75 -> 0 | K75: =+H75*(1-I75) -> 0
B76: Supply reagents | D76: tonne | F76: =NA() ->  | G76: =IF(ISNA(F76),0,INDEX(IF(UPPER(RIGHT(F76,1))=Low,UnitCostLow, IF(UPPER(RIGHT(F76,1))=High,UnitCostHigh,UnitCostSpecified)),MATCH(UPPER(LEFT(F76,LEN(F76)-1)),CostCode,0))) -> 0 | H76: =G76*E76 -> 0 | J76: =H76*I76 -> 0 | K76: =+H76*(1-I76) -> 0
G77: Annual treatment costs | H77: =SUM(H74:H76)+0.0001 -> 0.0001
B78: Number of years of treatment | D78: years | E78: 0
G79: Total treatment costs | H79: =H77*E78 -> 0 | K79: =H79 -> 0
G80: Total | H80: =SUM(H5:H71)+H79+0.0001 -> 344568.9001 | J80: =SUM(J5:J71)+J79 -> 0 | K80: =SUM(K5:K71)+K79 -> 344568.9
G81: % of Total | J81: =J80/H80 -> 0 | K81: =K80/H80 -> 0.9999999997
B82: * for construction of passive treatment system refer to "Water Management"

Sheet Rock Pile
A1: 1 | B1: Rock Pile Name: | C1: Umwelt, Llama, Echo and TSF
B3: ACTIVITY/MATERIAL | C3: Notes | D3: Units | E3: Quantity | F3: Cost Code | G3: Unit Cost | H3: Cost | I3: % Land | J3: Land Cost | K3: Total Cost
B4: STABILIZE SLOPES
B5: Flatten slopes with dozer | D5: m3 | F5: =NA() ->  | G5: =IF(ISNA(F5),0,INDEX(IF(UPPER(RIGHT(F5,1))=Low,UnitCostLow, IF(UPPER(RIGHT(F5,1))=High,UnitCostHigh,UnitCostSpecified)),MATCH(UPPER(LEFT(F5,LEN(F5)-1)),CostCode,0))) -> 0 | H5: =G5*E5 -> 0 | J5: =H5*I5 -> 0 | K5: =+H5*(1-I5) -> 0
B6: Flatten "bubble dump" areas | D6: m3 | F6: =NA() ->  | G6: 0 | H6: 0 | J6: 0 | K6: 0
B7: Divert runon, ditch mat'l A | D7: m3 | F7: =NA() ->  | G7: 0 | H7: 0 | J7: 0 | K7: 0
B8: Divert runon, ditch mat'l B | D8: m3 | F8: =NA() ->  | G8: 0 | H8: 0 | J8: 0 | K8: 0
B9: Toe buttress, drain mat'l | D9: m3 | F9: =NA() ->  | G9: 0 | H9: 0 | J9: 0 | K9: 0
B10: Toe buttress, fill mat'l A | D10: m3 | F10: =NA() ->  | G10: 0 | H10: 0 | J10: 0 | K10: 0
B11: Toe buttress, fill mat'l B | D11: m3 | F11: =NA() ->  | G11: 0 | H11: 0 | J11: 0 | K11: 0
B12: Other | F12: =NA() ->  | G12: 0 | H12: 0 | J12: 0 | K12: 0
B13: COVER ROCK PILE
B14: Subgrade preparation - doze surface | D14: m3 | F14: =NA() ->  | G14: =IF(ISNA(F14),0,INDEX(IF(UPPER(RIGHT(F14,1))=Low,UnitCostLow, IF(UPPER(RIGHT(F14,1))=High,UnitCostHigh,UnitCostSpecified)),MATCH(UPPER(LEFT(F14,LEN(F14)-1)),CostCode,0))) -> 0 | H14: =G14*E14 -> 0 | J14: =H14*I14 -> 0 | K14: =+H14*(1-I14) -> 0
B15: Soil cover - excavate,haul,spread&compact | D15: m3 | F15: =NA() ->  | G15: 0 | H15: 0 | J15: 0 | K15: 0
B16: Rock cover - excavate,haul & spread | C16: Cover 4 rock piles: Umwelt, Llama, Echo and TSF. Note all WRSAs will be covered progressively by direct hauling NPAG during mining and will be completed by Year 6 in Operations. However, Sabina has included an allotment volume sufficient to cover 48 ha of waste rock (5m thick) or 67 ha of tailings (3.5m thick). | D16: m3 | E16: 2400000 | F16: RR3L | G16: 7 | H16: =G16*E16 -> 16800000 | J16: =H16*I16 -> 0 | K16: =+H16*(1-I16) -> 16800000
B17: Excavate downslope drainage channel & chute | D17: m3 | F17: =NA() ->  | G17: 0 | H17: 0 | J17: 0 | K17: 0
B18: Rip rap drainage channel and chute | D18: m3 | F18: =NA() ->  | G18: 0 | H18: 0 | J18: 0 | K18: 0
B19: Vegetate | D19: ha | F19: =NA() ->  | G19: 0 | H19: 0 | J19: 0 | K19: 0
B20: Other | F20: =NA() ->  | G20: 0 | H20: 0 | J20: 0 | K20: 0
B21: VERY LOW PERMEABILITY COVER (in addition to above)
B22: Liner subgrade preparation - compact | D22: m2 | F22: =NA() ->  | G22: =IF(ISNA(F22),0,INDEX(IF(UPPER(RIGHT(F22,1))=Low,UnitCostLow, IF(UPPER(RIGHT(F22,1))=High,UnitCostHigh,UnitCostSpecified)),MATCH(UPPER(LEFT(F22,LEN(F22)-1)),CostCode,0))) -> 0 | H22: =G22*E22 -> 0 | J22: =H22*I22 -> 0 | K22: =+H22*(1-I22) -> 0
B23: Supply geomembrame | D23: m2 | F23: =NA() ->  | G23: =IF(ISNA(F23),0,INDEX(IF(UPPER(RIGHT(F23,1))=Low,UnitCostLow, IF(UPPER(RIGHT(F23,1))=High,UnitCostHigh,UnitCostSpecified)),MATCH(UPPER(LEFT(F23,LEN(F23)-1)),CostCode,0))) -> 0 | H23: =G23*E23 -> 0 | J23: 0 | K23: 0
B24: Install geomembrane | D24: m2 | F24: =NA() ->  | G24: =IF(ISNA(F24),0,INDEX(IF(UPPER(RIGHT(F24,1))=Low,UnitCostLow, IF(UPPER(RIGHT(F24,1))=High,UnitCostHigh,UnitCostSpecified)),MATCH(UPPER(LEFT(F24,LEN(F24)-1)),CostCode,0))) -> 0 | H24: =G24*E24 -> 0 | J24: 0 | K24: 0
B25: Protective cover - excavate,haul,spread&compact | D25: m3 | F25: =NA() ->  | G25: 0 | H25: 0 | J25: 0 | K25: 0
B26: Vegetate | D26: ha | F26: =NA() ->  | G26: 0 | H26: 0 | J26: 0 | K26: 0
B27: Install infiltration/seepage instrumentation | D27: allow | F27: =NA() ->  | G27: 0 | H27: 0 | J27: 0 | K27: 0
B28: CONSTRUCT DIVERSION DITCHES
B29: Excavate ditches -soil | D29: m3 | F29: =NA() ->  | G29: =IF(ISNA(F29),0,INDEX(IF(UPPER(RIGHT(F29,1))=Low,UnitCostLow, IF(UPPER(RIGHT(F29,1))=High,UnitCostHigh,UnitCostSpecified)),MATCH(UPPER(LEFT(F29,LEN(F29)-1)),CostCode,0))) -> 0 | H29: =G29*E29 -> 0 | J29: =H29*I29 -> 0 | K29: =+H29*(1-I29) -> 0
B30: Excavate ditches -rock | D30: m3 | F30: =NA() ->  | G30: =IF(ISNA(F30),0,INDEX(IF(UPPER(RIGHT(F30,1))=Low,UnitCostLow, IF(UPPER(RIGHT(F30,1))=High,UnitCostHigh,UnitCostSpecified)),MATCH(UPPER(LEFT(F30,LEN(F30)-1)),CostCode,0))) -> 0 | H30: 0 | J30: 0 | K30: 0
B31: Rip rap in channel base | D31: m3 | F31: =NA() ->  | G31: =IF(ISNA(F31),0,INDEX(IF(UPPER(RIGHT(F31,1))=Low,UnitCostLow, IF(UPPER(RIGHT(F31,1))=High,UnitCostHigh,UnitCostSpecified)),MATCH(UPPER(LEFT(F31,LEN(F31)-1)),CostCode,0))) -> 0 | H31: 0 | J31: 0 | K31: 0
B32: CONSTRUCT SEEPAGE COLLECTION POND
B33: Excavate seepage collection pond | C33: See Water Management tab for berm breaching | D33: m3 | F33: =NA() ->  | G33: 0 | H33: 0 | J33: =H33*I33 -> 0 | K33: =+H33*(1-I33) -> 0
B34: Doze & spread excavated material | D34: m3 | F34: =NA() ->  | G34: 0 | H34: 0 | J34: 0 | K34: 0
B35: Vegetate spread material | D35: ha | F35: =NA() ->  | G35: 0 | H35: 0 | J35: 0 | K35: 0
B36: Bedding layer | D36: m3 | F36: =NA() ->  | G36: 0 | H36: 0 | J36: 0 | K36: 0
B37: Supply geomembrane | D37: m2 | F37: =NA() ->  | G37: 0 | H37: 0 | J37: 0 | K37: 0
B38: Install geomembrane | D38: m2 | F38: =NA() ->  | G38: 0 | H38: 0 | J38: 0 | K38: 0
B39: Erosion protection layer | D39: m3 | F39: =NA() ->  | G39: 0 | H39: 0 | J39: 0 | K39: 0
B40: INSTALL GROUNDWATER COLLECTION SYSTEM
B41: Excavate/install sumps | D41: m3 | F41: =NA() ->  | G41: =IF(ISNA(F41),0,INDEX(IF(UPPER(RIGHT(F41,1))=Low,UnitCostLow, IF(UPPER(RIGHT(F41,1))=High,UnitCostHigh,UnitCostSpecified)),MATCH(UPPER(LEFT(F41,LEN(F41)-1)),CostCode,0))) -> 0 | H41: =G41*E41 -> 0 | J41: =H41*I41 -> 0 | K41: =+H41*(1-I41) -> 0
B42: Install pumping wells | D42: m3 | F42: =NA() ->  | G42: 0 | H42: 0 | J42: 0 | K42: 0
B43: Install pumps/pipelines/power supply | D43: allow | F43: =NA() ->  | G43: 0 | H43: 0 | J43: 0 | K43: 0
B44: RELOCATE DUMPS
B45: Load, haul, dump or doze | D45: m3 | F45: =NA() ->  | G45: =IF(ISNA(F45),0,INDEX(IF(UPPER(RIGHT(F45,1))=Low,UnitCostLow, IF(UPPER(RIGHT(F45,1))=High,UnitCostHigh,UnitCostSpecified)),MATCH(UPPER(LEFT(F45,LEN(F45)-1)),CostCode,0))) -> 0 | H45: =G45*E45 -> 0 | J45: =H45*I45 -> 0 | K45: =+H45*(1-I45) -> 0
B46: Add lime | D46: tonne | F46: =NA() ->  | G46: =IF(ISNA(F46),0,INDEX(IF(UPPER(RIGHT(F46,1))=Low,UnitCostLow, IF(UPPER(RIGHT(F46,1))=High,UnitCostHigh,UnitCostSpecified)),MATCH(UPPER(LEFT(F46,LEN(F46)-1)),CostCode,0))) -> 0 | H46: =G46*E46 -> 0 | J46: =H46*I46 -> 0 | K46: =+H46*(1-I46) -> 0
B47: Contour reclaimed area | D47: ha | F47: =NA() ->  | G47: =IF(ISNA(F47),0,INDEX(IF(UPPER(RIGHT(F47,1))=Low,UnitCostLow, IF(UPPER(RIGHT(F47,1))=High,UnitCostHigh,UnitCostSpecified)),MATCH(UPPER(LEFT(F47,LEN(F47)-1)),CostCode,0))) -> 0 | H47: =G47*E47 -> 0 | J47: =H47*I47 -> 0 | K47: =+H47*(1-I47) -> 0
B48: Other | F48: =NA() ->  | G48: =IF(ISNA(F48),0,INDEX(IF(UPPER(RIGHT(F48,1))=Low,UnitCostLow, IF(UPPER(RIGHT(F48,1))=High,UnitCostHigh,UnitCostSpecified)),MATCH(UPPER(LEFT(F48,LEN(F48)-1)),CostCode,0))) -> 0 | H48: =G48*E48 -> 0 | J48: =H48*I48 -> 0 | K48: =+H48*(1-I48) -> 0
B49: SPECIALIZED ITEMS
B50: Install ground temperature monitoring cables | C50: Will be installed during Operations to meet opertional monitoring commitments | D50: each | F50: =NA() ->  | G50: =IF(ISNA(F50),0,INDEX(IF(UPPER(RIGHT(F50,1))=Low,UnitCostLow, IF(UPPER(RIGHT(F50,1))=High,UnitCostHigh,UnitCostSpecified)),MATCH(UPPER(LEFT(F50,LEN(F50)-1)),CostCode,0))) -> 0 | H50: =G50*E50 -> 0 | J50: =H50*I50 -> 0 | K50: =+H50*(1-I50) -> 0
B51: Install permanent instrumentation, drilling | D51: each | F51: =NA() ->  | G51: =IF(ISNA(F51),0,INDEX(IF(UPPER(RIGHT(F51,1))=Low,UnitCostLow, IF(UPPER(RIGHT(F51,1))=High,UnitCostHigh,UnitCostSpecified)),MATCH(UPPER(LEFT(F51,LEN(F51)-1)),CostCode,0))) -> 0 | H51: =G51*E51 -> 0 | J51: =H51*I51 -> 0 | K51: =+H51*(1-I51) -> 0
B52: TREAT ROCK PILE SEEPAGE - see "Water Management"
B53: HEAP LEACH SEEPAGE TREATMENT - Cyanide Detox
B54: Cyanide destruction water treatment pumping | D54: m3 | F54: =NA() ->  | G54: =IF(ISNA(F54),0,INDEX(IF(UPPER(RIGHT(F54,1))=Low,UnitCostLow, IF(UPPER(RIGHT(F54,1))=High,UnitCostHigh,UnitCostSpecified)),MATCH(UPPER(LEFT(F54,LEN(F54)-1)),CostCode,0))) -> 0 | H54: =G54*E54 -> 0 | J54: =H54*I54 -> 0 | K54: =+H54*(1-I54) -> 0
B55: Reagents | D55: tonnes | F55: =NA() ->  | G55: =IF(ISNA(F55),0,INDEX(IF(UPPER(RIGHT(F55,1))=Low,UnitCostLow, IF(UPPER(RIGHT(F55,1))=High,UnitCostHigh,UnitCostSpecified)),MATCH(UPPER(LEFT(F55,LEN(F55)-1)),CostCode,0))) -> 0 | H55: =G55*E55 -> 0 | J55: =H55*I55 -> 0 | K55: =+H55*(1-I55) -> 0
B56: Electrician/mechanic to maintain treatment plant | D56: allow | F56: =NA() ->  | G56: =IF(ISNA(F56),0,INDEX(IF(UPPER(RIGHT(F56,1))=Low,UnitCostLow, IF(UPPER(RIGHT(F56,1))=High,UnitCostHigh,UnitCostSpecified)),MATCH(UPPER(LEFT(F56,LEN(F56)-1)),CostCode,0))) -> 0 | H56: =G56*E56 -> 0 | J56: =H56*I56 -> 0 | K56: =+H56*(1-I56) -> 0
B57: Equipment maintenance and parts | D57: allow | F57: =NA() ->  | G57: =IF(ISNA(F57),0,INDEX(IF(UPPER(RIGHT(F57,1))=Low,UnitCostLow, IF(UPPER(RIGHT(F57,1))=High,UnitCostHigh,UnitCostSpecified)),MATCH(UPPER(LEFT(F57,LEN(F57)-1)),CostCode,0))) -> 0 | H57: =G57*E57 -> 0 | J57: =H57*I57 -> 0 | K57: =+H57*(1-I57) -> 0
G58: Annual treatment costs | H58: =SUM(H54:H57)+0.0001 -> 0.0001
B59: Number of years of treatment | D59: years | E59: 0
G60: Total treatment costs | H60: =H58*E59 -> 0 | K60: =H60 -> 0
B61: HEAP LEACH SEEPAGE TREATMENT - ARD/ML
B62: Upgrade/modify pumping system - report to WTP | D62: allow | F62: =NA() ->  | G62: =IF(ISNA(F62),0,INDEX(IF(UPPER(RIGHT(F62,1))=Low,UnitCostLow, IF(UPPER(RIGHT(F62,1))=High,UnitCostHigh,UnitCostSpecified)),MATCH(UPPER(LEFT(F62,LEN(F62)-1)),CostCode,0))) -> 0 | H62: =G62*E62 -> 0 | K62: =H62 -> 0
G63: Total | H63: =SUM(H5:H51)+H60+H62+0.0001 -> 16800000 | J63: =SUM(J5:J51)+J60+J62 -> 0 | K63: =SUM(K5:K51)+K60+K62 -> 16800000
G64: % of Total | J64: =J63/H63 -> 0 | K64: =K63/H63 -> 1
B66: * For construction of passive treatment system refer to "Water Management".

Sheet Bldgs & Equip
A1: 1 | B1: Building / Equip Name: | G1: Bldg / Equip #: | H1: 1
B3: ACTIVITY/MATERIAL | C3: Notes | D3: Units | E3: Quantity | F3: Cost Code | G3: Unit Cost | H3: Cost | I3: % Land | J3: Land Cost | K3: Total Cost
B4: DISPOSE MOBILE EQUIPMENT
B5: Decontaminate and ship off-site | D5: allow | F5: =NA() ->  | G5: =IF(ISNA(F5),0,INDEX(IF(UPPER(RIGHT(F5,1))=Low,UnitCostLow, IF(UPPER(RIGHT(F5,1))=High,UnitCostHigh,UnitCostSpecified)),MATCH(UPPER(LEFT(F5,LEN(F5)-1)),CostCode,0))) -> 0 | H5: =G5*E5 -> 0 | J5: =H5*I5 -> 0 | K5: =+H5*(1-I5) -> 0
B6: Decontaminate and dispose on-site | C6: Drive or transport to landfill; drain fluids; NPAG cover cost below | D6: allow | E6: 1 | F6: Sabina | G6: 20000 | H6: =G6*E6 -> 20000 | J6: =H6*I6 -> 0 | K6: =+H6*(1-I6) -> 20000
B7: Other | F7: =NA() ->  | G7: =IF(ISNA(F7),0,INDEX(IF(UPPER(RIGHT(F7,1))=Low,UnitCostLow, IF(UPPER(RIGHT(F7,1))=High,UnitCostHigh,UnitCostSpecified)),MATCH(UPPER(LEFT(F7,LEN(F7)-1)),CostCode,0))) -> 0 | H7: =G7*E7 -> 0 | J7: 0 | K7: 0
B8: REMOVE BUILDINGS - see note below
B9: Accomodation Complex | C9: Goose Admin: Kitchen/camp. Landfill building materials and pad | D9: m2 | E9: ='SBB Comp. Est.'!F96 -> 1980 | F9: BRS1L | G9: =IF(ISNA(F9),0,INDEX(IF(UPPER(RIGHT(F9,1))=Low,UnitCostLow, IF(UPPER(RIGHT(F9,1))=High,UnitCostHigh,UnitCostSpecified)),MATCH(UPPER(LEFT(F9,LEN(F9)-1)),CostCode,0))) -> 45 | H9: =G9*E9 -> 89100 | J9: 0 | K9: 89100
B10: Process Facilities | D10: m2 | E10: ='SBB Comp. Est.'!F89 -> 6464 | F10: BRS1H | G10: 65 | H10: 420160 | J10: 0 | K10: 420160
B11: Crusher | D11: m2 | E11: ='SBB Comp. Est.'!F90 -> 1630 | F11: BRS1H | G11: 65 | H11: =G11*E11 -> 105950 | J11: =H11*I11 -> 0 | K11: =+H11*(1-I11) -> 105950
B12: Power plant | D12: m2 | E12: ='SBB Comp. Est.'!F91 -> 2040 | F12: BRS1H | G12: 65 | H12: 132600 | J12: 0 | K12: 132600
B13: Emergency power plant | D13: m2 | E13: ='SBB Comp. Est.'!F92 -> 300 | F13: BRS1H | G13: 65 | H13: 19500 | J13: 0 | K13: 19500
B14: Truck Shop/Office | C14: Goose Admin building | D14: m2 | E14: ='SBB Comp. Est.'!F95 -> 2349.45 | F14: BRS1L | G14: 45 | H14: 105725.25 | J14: 0 | K14: 105725.25
B15: Cold storage | C15: Goose Admin building | D15: m2 | E15: ='SBB Comp. Est.'!F97 -> 840 | F15: BRS1L | G15: 45 | H15: 37800 | J15: 0 | K15: 37800
B16: Storage Facilites | C16: Waste oil storage Goose Site | D16: Lot | E16: ='SBB Comp. Est.'!F98 -> 1 | F16: Sabina | G16: ='SBB Comp. Est.'!W98 -> 43333.33333 | H16: =G16*E16 -> 43333.33333 | J16: =H16*I16 -> 0 | K16: =+H16*(1-I16) -> 43333.33333
B17: Storage Facility | C17: Goose frieght storage | D17: Lot | E17: ='SBB Comp. Est.'!F99 -> 1 | F17: Sabina | G17: ='SBB Comp. Est.'!W99 -> 19250 | H17: 19250 | J17: 0 | K17: 19250
B18: Water and Wastewater Treatment Facilities | C18: Water treatment plant Goose Building | D18: m2 | E18: 647 | F18: BRS1L | G18: =IF(ISNA(F18),0,INDEX(IF(UPPER(RIGHT(F18,1))=Low,UnitCostLow, IF(UPPER(RIGHT(F18,1))=High,UnitCostHigh,UnitCostSpecified)),MATCH(UPPER(LEFT(F18,LEN(F18)-1)),CostCode,0))) -> 45 | H18: 29115 | J18: 0 | K18: 29115
B19: Sewage Treatment Plant | C19: Remove hazardous materials and dispose of at licensed facility, landfill building materials | D19: Lot | E19: ='SBB Comp. Est.'!F101 -> 1 | F19: Sabina | G19: ='SBB Comp. Est.'!W101 -> 11550 | H19: 11550 | J19: 0 | K19: 11550
B20: Fuel Tanks | C20: Fuel storage and distribution Goose facility | D20: Lot | E20: ='SBB Comp. Est.'!F93 -> 1 | F20: Sabina | G20: ='SBB Comp. Est.'!W93 -> 154000 | H20: =G20*E20 -> 154000 | J20: =H20*I20 -> 0 | K20: =+H20*(1-I20) -> 154000
B21: Offices, Repair, Lab, Warehouse | C21: MLA infrastructure Port Office | D21: Units | E21: ='SBB Comp. Est.'!F103 -> 5 | F21: Sabina | G21: ='SBB Comp. Est.'!W103 -> 2340 | H21: 11700 | J21: =H21*I21 -> 0 | K21: =+H21*(1-I21) -> 11700
B22: Pipeline | C22: MLA Infrastructure | D22: m | E22: ='SBB Comp. Est.'!F104 -> 10000 | F22: Sabina | G22: ='SBB Comp. Est.'!W104 -> 10 | H22: 100000 | J22: =H22*I22 -> 0 | K22: =+H22*(1-I22) -> 100000
B23: Warehouse, Shops and Others | C23: MLA Infrastructure. Includes: Incinerator and waste management, Warehouses, Genset, Maitenance shop, water storage, WTP/STP, camp/office, freaight storage area, waste area, fuel storage. Cost includes grade and contour pads, disposal at designated areas, remove hazard material when applicable. | D23: LS | E23: 1 | F23: Sabina | G23: ='SBB Comp. Est.'!W105+'SBB Comp. Est.'!W106+'SBB Comp. Est.'!W107+'SBB Comp. Est.'!W108+'SBB Comp. Est.'!W109+'SBB Comp. Est.'!W110+'SBB Comp. Est.'!W111+'SBB Comp. Est.'!W112+'SBB Comp. Est.'!W113+'SBB Comp. Est.'!W114 -> 308683.3333 | H23: 308683.3333 | J23: 0 | K23: 308683.3333
B24: Freshwater intakes | C24: pipes will be capped at substrate and left in place. | D24: m2 | F24: =NA() ->  | G24: =IF(ISNA(F24),0,INDEX(IF(UPPER(RIGHT(F24,1))=Low,UnitCostLow, IF(UPPER(RIGHT(F24,1))=High,UnitCostHigh,UnitCostSpecified)),MATCH(UPPER(LEFT(F24,LEN(F24)-1)),CostCode,0))) -> 0 | H24: 0 | J24: 0 | K24: 0
B25: Reclaim pumps | D25: m2 | F25: =NA() ->  | G25: 0 | H25: 0 | J25: 0 | K25: 0
B26: Outfall & Diffuser | D26: m2 | F26: =NA() ->  | G26: 0 | H26: 0 | J26: 0 | K26: 0
B27: Airstrip lighting, navigation, electrician | D27: manhours | E27: 20 | F27: elecH | G27: =IF(ISNA(F27),0,INDEX(IF(UPPER(RIGHT(F27,1))=Low,UnitCostLow, IF(UPPER(RIGHT(F27,1))=High,UnitCostHigh,UnitCostSpecified)),MATCH(UPPER(LEFT(F27,LEN(F27)-1)),CostCode,0))) -> 95 | H27: 1900 | J27: 0 | K27: 1900
B28: Airstrip lighting, navigation, mechanical | D28: manhours | E28: 20 | F28: mechH | G28: =IF(ISNA(F28),0,INDEX(IF(UPPER(RIGHT(F28,1))=Low,UnitCostLow, IF(UPPER(RIGHT(F28,1))=High,UnitCostHigh,UnitCostSpecified)),MATCH(UPPER(LEFT(F28,LEN(F28)-1)),CostCode,0))) -> 72.85 | H28: 1457 | J28: 0 | K28: 1457
B29: Break foundation slabs | D29: m2 | F29: =NA() ->  | G29: =IF(ISNA(F29),0,INDEX(IF(UPPER(RIGHT(F29,1))=Low,UnitCostLow, IF(UPPER(RIGHT(F29,1))=High,UnitCostHigh,UnitCostSpecified)),MATCH(UPPER(LEFT(F29,LEN(F29)-1)),CostCode,0))) -> 0 | H29: =G29*E29 -> 0 | J29: =H29*I29 -> 0 | K29: =+H29*(1-I29) -> 0
B30: Consolidate & dump boneyard debris | D30: m3 | F30: =NA() ->  | G30: 0 | H30: 0 | J30: 0 | K30: 0
B31: Other | F31: =NA() ->  | G31: 0 | H31: 0 | J31: 0 | K31: 0
B32: LANDFILL FOR DEMOLITION WASTE
B33: Place rock cover | D33: m3 | E33: ='SBB Comp. Est.'!F59 -> 25000 | F33: RR3L | G33: 7 | H33: =G33*E33 -> 175000 | J33: =H33*I33 -> 0 | K33: =+H33*(1-I33) -> 175000
B34: Place soil cover | D34: m3 | F34: =NA() ->  | G34: =IF(ISNA(F34),0,INDEX(IF(UPPER(RIGHT(F34,1))=Low,UnitCostLow, IF(UPPER(RIGHT(F34,1))=High,UnitCostHigh,UnitCostSpecified)),MATCH(UPPER(LEFT(F34,LEN(F34)-1)),CostCode,0))) -> 0 | H34: =G34*E34 -> 0 | J34: 0 | K34: =+H34*(1-I34) -> 0
B35: Vegetate | D35: ha | F35: =NA() ->  | G35: =IF(ISNA(F35),0,INDEX(IF(UPPER(RIGHT(F35,1))=Low,UnitCostLow, IF(UPPER(RIGHT(F35,1))=High,UnitCostHigh,UnitCostSpecified)),MATCH(UPPER(LEFT(F35,LEN(F35)-1)),CostCode,0))) -> 0 | H35: =G35*E35 -> 0 | J35: 0 | K35: 0
B36: GRADE AND CONTOUR PADS
B37: Accomodation Complex | C37: Goose Admin: Kitchen/camp. no concrete foundation | D37: ha | E37: =ROUNDUP(E9/10000,1) -> 0.2 | F37: SCFYL | G37: =IF(ISNA(F37),0,INDEX(IF(UPPER(RIGHT(F37,1))=Low,UnitCostLow, IF(UPPER(RIGHT(F37,1))=High,UnitCostHigh,UnitCostSpecified)),MATCH(UPPER(LEFT(F37,LEN(F37)-1)),CostCode,0))) -> 4300 | H37: =G37*E37 -> 860 | J37: 0 | K37: 860
B38: Process Facilities | C38: concrete foundation demolished to ground level | D38: m2 | E38: =E10 -> 6464 | F38: BRCS | G38: 6 | H38: 38784 | J38: 0 | K38: 38784
B39: Crusher | C39: concrete foundation demolished to ground level | D39: m2 | E39: 1630 | F39: BRCS | G39: 6 | H39: 9780 | J39: 0 | K39: 9780
B40: Power plant | C40: no concrete foundation | D40: ha | E40: =ROUNDUP(E12/10000,1) -> 0.3 | F40: SCFYL | G40: 4300 | H40: 1290 | J40: 0 | K40: 1290
B41: Emergency power plant | C41: no concrete foundation | D41: ha | E41: =ROUNDUP(E13/10000,1) -> 0.1 | F41: SCFYL | G41: 4300 | H41: 430 | J41: 0 | K41: 430
B42: Truck Shop/Office | C42: concrete foundation demolished to ground level | D42: m2 | E42: 2349.45 | F42: BRCS | G42: =IF(ISNA(F42),0,INDEX(IF(UPPER(RIGHT(F42,1))=Low,UnitCostLow, IF(UPPER(RIGHT(F42,1))=High,UnitCostHigh,UnitCostSpecified)),MATCH(UPPER(LEFT(F42,LEN(F42)-1)),CostCode,0))) -> 6 | H42: =G42*E42 -> 14096.7 | J42: =H42*I42 -> 0 | K42: =+H42*(1-I42) -> 14096.7
B43: Cold storage | C43: no concrete foundation | D43: ha | E43: =ROUNDUP(E15/10000,1) -> 0.1 | F43: SCFYL | G43: 4300 | H43: 430 | J43: 0 | K43: 430
B44: Water and Wastewater Treatment Facilities | C44: no concrete foundation | D44: ha | E44: =ROUNDUP(E18/10000,1) -> 0.1 | F44: SCFYL | G44: 4300 | H44: 430 | J44: 0 | K44: 430
B45: Sewage Treatment Plant | C45: no concrete foundation | D45: m2 | E45: =ROUNDUP(13.7*2.4,0) -> 33 | F45: BRCS | G45: =IF(ISNA(F45),0,INDEX(IF(UPPER(RIGHT(F45,1))=Low,UnitCostLow, IF(UPPER(RIGHT(F45,1))=High,UnitCostHigh,UnitCostSpecified)),MATCH(UPPER(LEFT(F45,LEN(F45)-1)),CostCode,0))) -> 6 | H45: =G45*E45 -> 198 | J45: =H45*I45 -> 0 | K45: =+H45*(1-I45) -> 198
B46: Fuel Tanks | C46: Fuel storage and distribution Goose facility; no concrete foundation | D46: ha | E46: 2.2 | F46: SCFYL | G46: 4300 | H46: 9460 | J46: 0 | K46: 9460
B47: Warehouse, Shops and Other | C47: MLA, includes all storage/laydown, Fual Tanks and camp area | D47: ha | E47: 20 | F47: SCFYL | G47: 4300 | H47: 86000 | J47: 0 | K47: 86000
B48: Place rock cover | D48: m3 | F48: =NA() ->  | G48: 0 | H48: 0 | J48: 0 | K48: 0
B49: Vegetate | D49: ha | F49: =NA() ->  | G49: 0 | H49: 0 | J49: 0 | K49: 0
B50: PUNCTURE LINED SUMPS
B51: Puncture liner and place soil cover | D51: m3 | F51: =NA() ->  | G51: =IF(ISNA(F51),0,INDEX(IF(UPPER(RIGHT(F51,1))=Low,UnitCostLow, IF(UPPER(RIGHT(F51,1))=High,UnitCostHigh,UnitCostSpecified)),MATCH(UPPER(LEFT(F51,LEN(F51)-1)),CostCode,0))) -> 0 | H51: =G51*E51 -> 0 | J51: =H51*I51 -> 0 | K51: =+H51*(1-I51) -> 0
B52: RECLAIM ROADS
B53: Restore drainage, remove culverts haul road | C53: Restore drainage including culverts; Roads will remain intact to facilitate long-term access. | D53: m3 | E53: ='SBB Comp. Est.'!F122 -> 1488 | F53: Sabina | G53: ='SBB Comp. Est.'!S122 -> 11 | H53: =G53*E53 -> 16368 | J53: 0 | K53: 16368
B54: Remove bridges | D54: each | F54: =NA() ->  | G54: =IF(ISNA(F54),0,INDEX(IF(UPPER(RIGHT(F54,1))=Low,UnitCostLow, IF(UPPER(RIGHT(F54,1))=High,UnitCostHigh,UnitCostSpecified)),MATCH(UPPER(LEFT(F54,LEN(F54)-1)),CostCode,0))) -> 0 | H54: 0 | J54: 0 | K54: 0
B55: Scarify and install water breaks | D55: ha | F55: =NA() ->  | G55: 0 | H55: 0 | J55: 0 | K55: 0
B56: Restore drainage airstrip | D56: m3 | E56: ='SBB Comp. Est.'!F125 -> 1020 | F56: Sabina | G56: ='SBB Comp. Est.'!S125 -> 12 | H56: 12240 | J56: 0 | K56: 12240
B57: Scarify laydown areas | D57: ha | F57: =NA() ->  | G57: 0 | H57: 0 | J57: 0 | K57: 0
B58: Scarify Winter Ice Roads | C58: Fill sections on land - 8 km x 10 m wide = 8.0 ha | D58: ha | E58: 8 | F58: SCFYH | G58: =IF(ISNA(F58),0,INDEX(IF(UPPER(RIGHT(F58,1))=Low,UnitCostLow, IF(UPPER(RIGHT(F58,1))=High,UnitCostHigh,UnitCostSpecified)),MATCH(UPPER(LEFT(F58,LEN(F58)-1)),CostCode,0))) -> 6030 | H58: =G58*E58 -> 48240 | J58: =H58*I58 -> 0 | K58: =+H58*(1-I58) -> 48240
B59: Vegetate | C59: Potential vegetation of roads to include 8 ha of scarified WIR and nominal area of 3 ha for spill or other road remediation area. | D59: ha | E59: 11 | F59: VHFL | G59: 4000 | H59: 44000 | J59: =H59*I59 -> 0 | K59: 44000
B60: Other | F60: =NA() ->  | G60: 0 | H60: 0 | J60: =H60*I60 -> 0 | K60: 0
B61: SPECIALIZED ITEMS
B62: Dispose of misc. debris and laydown area refuse | F62: =NA() ->  | G62: =IF(ISNA(F62),0,INDEX(IF(UPPER(RIGHT(F62,1))=Low,UnitCostLow, IF(UPPER(RIGHT(F62,1))=High,UnitCostHigh,UnitCostSpecified)),MATCH(UPPER(LEFT(F62,LEN(F62)-1)),CostCode,0))) -> 0 | H62: =G62*E62 -> 0 | J62: =H62*I62 -> 0 | K62: 0
G63: Total | H63: =SUM(H5:H62)+0.0001 -> 2069430.617 | J63: =SUM(J5:J62) -> 0 | K63: =SUM(K5:K62) -> 2069430.617
G64: % of Total | J64: =J63/H63 -> 0 | K64: =K63/H63 -> 1
B68: Note: Unit costs are based on 3m high, single story building. Scale larger building areas accordingly. E.g. 10m high building multiply area by 3.3 (10/3)

Sheet Chemicals
A1: 1 | B1: Chemicals/Soil Area Name:
B3: Note: The procedures, equipment and packaging for clean up and removal of chemicals or contaminated soils are highly dependent on the nature of the chemicals and their existing state of containment. Government guidelines should be consulted on an individual chemical basis. Any estimate made here should be considered very rough unless specific evaluations have been conducted.
B4: ACTIVITY/MATERIAL | C4: Notes | D4: Units | E4: Quantity | F4: Cost Code | G4: Unit Cost | H4: Cost | I4: % Land | J4: Land Cost | K4: Total Cost | M4: ICRP Section | N4: Comments
B5: HAZARDOUS MATERIALS AUDIT
B6: Hazardous materials audit | D6: mandays | F6: =NA() ->  | G6: =IF(ISNA(F6),0,INDEX(IF(UPPER(RIGHT(F6,1))=Low,UnitCostLow, IF(UPPER(RIGHT(F6,1))=High,UnitCostHigh,UnitCostSpecified)),MATCH(UPPER(LEFT(F6,LEN(F6)-1)),CostCode,0))) -> 0 | H6: =G6*E6 -> 0 | J6: =H6*I6 -> 0 | K6: =+H6*(1-I6) -> 0
B7: Phase 1 audit | D7: each | E7: 1 | F7: CS1L | G7: =IF(ISNA(F7),0,INDEX(IF(UPPER(RIGHT(F7,1))=Low,UnitCostLow, IF(UPPER(RIGHT(F7,1))=High,UnitCostHigh,UnitCostSpecified)),MATCH(UPPER(LEFT(F7,LEN(F7)-1)),CostCode,0))) -> 7500 | H7: =G7*E7 -> 7500 | J7: =H7*I7 -> 0 | K7: =+H7*(1-I7) -> 7500
B8: Phase 2 audit | D8: each | E8: 1 | F8: CS2L | G8: =IF(ISNA(F8),0,INDEX(IF(UPPER(RIGHT(F8,1))=Low,UnitCostLow, IF(UPPER(RIGHT(F8,1))=High,UnitCostHigh,UnitCostSpecified)),MATCH(UPPER(LEFT(F8,LEN(F8)-1)),CostCode,0))) -> 50000 | H8: 50000 | J8: 0 | K8: 50000
B9: BUILDING DECONTAMINATION & CONSOLIDATION OF HAZARDOUS MATERIALS
B10: Environmental technician/coordinator | D10: mandays | F10: =NA() ->  | G10: =IF(ISNA(F10),0,INDEX(IF(UPPER(RIGHT(F10,1))=Low,UnitCostLow, IF(UPPER(RIGHT(F10,1))=High,UnitCostHigh,UnitCostSpecified)),MATCH(UPPER(LEFT(F10,LEN(F10)-1)),CostCode,0))) -> 0 | H10: =G10*E10 -> 0 | J10: =H10*I10 -> 0 | K10: =+H10*(1-I10) -> 0
B11: Decontaminate: oil, fuel | D11: mandays | F11: =NA() ->  | G11: =IF(ISNA(F11),0,INDEX(IF(UPPER(RIGHT(F11,1))=Low,UnitCostLow, IF(UPPER(RIGHT(F11,1))=High,UnitCostHigh,UnitCostSpecified)),MATCH(UPPER(LEFT(F11,LEN(F11)-1)),CostCode,0))) -> 0 | H11: 0 | J11: 0 | K11: 0
B12: Decontaminate maintenance shop | D12: mandays | F12: =NA() ->  | G12: =IF(ISNA(F12),0,INDEX(IF(UPPER(RIGHT(F12,1))=Low,UnitCostLow, IF(UPPER(RIGHT(F12,1))=High,UnitCostHigh,UnitCostSpecified)),MATCH(UPPER(LEFT(F12,LEN(F12)-1)),CostCode,0))) -> 0 | H12: 0 | J12: 0 | K12: 0
B13: Decontaminate power plant | D13: mandays | F13: =NA() ->  | G13: 0 | H13: 0 | J13: 0 | K13: 0
B14: Decontaminate bulk fuel storage | D14: mandays | F14: =NA() ->  | G14: 0 | H14: 0 | J14: 0 | K14: 0
B15: Decontaminate ANFO plant | D15: mandays | F15: =NA() ->  | G15: 0 | H15: 0 | J15: 0 | K15: 0
B16: Decontaminate offices/warehouse/accom | D16: mandays | F16: =NA() ->  | G16: 0 | H16: 0 | J16: 0 | K16: 0
B17: Removal of asbestos siding on buildings | D17: m2 | F17: =NA() ->  | G17: 0 | H17: 0 | J17: 0 | K17: 0
B18: Removal of friable asbestos on equipment | D18: m2 | F18: =NA() ->  | G18: 0 | H18: 0 | J18: 0 | K18: 0
B19: Other | F19: =NA() ->  | G19: 0 | H19: 0 | J19: 0 | K19: 0
B20: HAZARDOUS MATERIALS REMOVAL
B21: Waste oils | C21: Consume in a waste oil burner on-site | D21: litre | E21: 10000 | F21: ORL | G21: =IF(ISNA(F21),0,INDEX(IF(UPPER(RIGHT(F21,1))=Low,UnitCostLow, IF(UPPER(RIGHT(F21,1))=High,UnitCostHigh,UnitCostSpecified)),MATCH(UPPER(LEFT(F21,LEN(F21)-1)),CostCode,0))) -> 0.43 | H21: =G21*E21 -> 4300 | J21: =H21*I21 -> 0 | K21: =+H21*(1-I21) -> 4300
B22: Waste fuel | C22: Consume on-site to power an incinerator, or in a waste oil burner | D22: litre | E22: 250000 | F22: ORL | G22: 0.43 | H22: 107500 | J22: 0 | K22: 107500
B23: Waste batteries | C23: Assumed 10 20-kg batteries generated in the final year of closure | D23: kg | E23: 200 | F23: PCRH | G23: 2.5 | H23: 500 | J23: 0 | K23: 500
B24: Assay & environmental lab reagents | D24: kg | E24: 500 | F24: PCRH | G24: 2.5 | H24: 1250 | J24: 0 | K24: 1250
B25: Machine shop paints, solvents etc | D25: litre | E25: 200 | F25: PCRH | G25: 2.5 | H25: 500 | J25: 0 | K25: 500
B26: Glycol | D26: litre | E26: 5000 | F26: PCRH | G26: 2.5 | H26: 12500 | J26: =H26*I26 -> 0 | K26: =+H26*(1-I26) -> 12500
B27: Process reagents | D27: kg | E27: 130000 | F27: PCRH | G27: =IF(ISNA(F27),0,INDEX(IF(UPPER(RIGHT(F27,1))=Low,UnitCostLow, IF(UPPER(RIGHT(F27,1))=High,UnitCostHigh,UnitCostSpecified)),MATCH(UPPER(LEFT(F27,LEN(F27)-1)),CostCode,0))) -> 2.5 | H27: =G27*E27 -> 325000 | J27: =H27*I27 -> 0 | K27: =+H27*(1-I27) -> 325000
B28: WTP sludge from Water Treatment | C28: Assumes off-site disposal for 7 years of treatment. If sludge passes leach tests, will consider on-site disposal. | D28: kg | E28: =7*3000 -> 21000 | F28: PCRH | G28: =IF(ISNA(F28),0,INDEX(IF(UPPER(RIGHT(F28,1))=Low,UnitCostLow, IF(UPPER(RIGHT(F28,1))=High,UnitCostHigh,UnitCostSpecified)),MATCH(UPPER(LEFT(F28,LEN(F28)-1)),CostCode,0))) -> 2.5 | H28: =G28*E28 -> 52500 | J28: =H28*I28 -> 0 | K28: =+H28*(1-I28) -> 52500
B29: Nuclear sources | D29: allow | F29: =NA() ->  | G29: =IF(ISNA(F29),0,INDEX(IF(UPPER(RIGHT(F29,1))=Low,UnitCostLow, IF(UPPER(RIGHT(F29,1))=High,UnitCostHigh,UnitCostSpecified)),MATCH(UPPER(LEFT(F29,LEN(F29)-1)),CostCode,0))) -> 0 | H29: 0 | J29: =H29*I29 -> 0 | K29: =+H29*(1-I29) -> 0
B30: Mobile Equipment | C30: Remove hazardous waste from equipment not being salvaged, clean, landfill equipment | D30: each | E30: ='SBB Comp. Est.'!F22 -> 41 | F30: Sabina | G30: ='SBB Comp. Est.'!W22 -> 2280 | H30: =G30*E30 -> 93480 | J30: =H30*I30 -> 0 | K30: =+H30*(1-I30) -> 93480
B31: HAZARDOUS MATERIALS
B32: Transportation to disposal facility | C32: Included in hazardous materials removal cost | D32: allow | F32: =NA() ->  | G32: =IF(ISNA(F32),0,INDEX(IF(UPPER(RIGHT(F32,1))=Low,UnitCostLow, IF(UPPER(RIGHT(F32,1))=High,UnitCostHigh,UnitCostSpecified)),MATCH(UPPER(LEFT(F32,LEN(F32)-1)),CostCode,0))) -> 0 | H32: =G32*E32 -> 0 | J32: =H32*I32 -> 0 | K32: =+H32*(1-I32) -> 0
B33: Disposal fees | C33: Included in hazardous materials removal cost | D33: allow | F33: =NA() ->  | G33: =IF(ISNA(F33),0,INDEX(IF(UPPER(RIGHT(F33,1))=Low,UnitCostLow, IF(UPPER(RIGHT(F33,1))=High,UnitCostHigh,UnitCostSpecified)),MATCH(UPPER(LEFT(F33,LEN(F33)-1)),CostCode,0))) -> 0 | H33: =G33*E33 -> 0 | J33: =H33*I33 -> 0 | K33: =+H33*(1-I33) -> 0
B34: Other | F34: =NA() ->  | G34: =IF(ISNA(F34),0,INDEX(IF(UPPER(RIGHT(F34,1))=Low,UnitCostLow, IF(UPPER(RIGHT(F34,1))=High,UnitCostHigh,UnitCostSpecified)),MATCH(UPPER(LEFT(F34,LEN(F34)-1)),CostCode,0))) -> 0 | H34: =G34*E34 -> 0 | J34: =H34*I34 -> 0 | K34: =+H34*(1-I34) -> 0
B35: CONTAMINATED SOILS
B36: Contam. soil investigation - Phase 1 | D36: LS | E36: 1 | F36: BGC | G36: 7500 | H36: =G36*E36 -> 7500 | J36: =H36*I36 -> 0 | K36: =+H36*(1-I36) -> 7500
B37: Contam. soil investigation - Phase 2 | D37: LS | E37: 1 | F37: Sabina | G37: ='SBB Comp. Est.'!X136 -> 50000 | H37: 50000 | J37: 0 | K37: 50000
B38: CONTAMINATED SOIL REMOVAL
B39: Excavate and transport to onsite facility | D39: m3 | E39: ='SBB Comp. Est.'!F138 -> 10000 | F39: SB1H | G39: =IF(ISNA(F39),0,INDEX(IF(UPPER(RIGHT(F39,1))=Low,UnitCostLow, IF(UPPER(RIGHT(F39,1))=High,UnitCostHigh,UnitCostSpecified)),MATCH(UPPER(LEFT(F39,LEN(F39)-1)),CostCode,0))) -> 5.9 | H39: =G39*E39 -> 59000 | J39: =H39*I39 -> 0 | K39: =+H39*(1-I39) -> 59000
B40: Manage hydrocarbon remediation at facility | D40: m3 | E40: 10000 | F40: CSRL | G40: =IF(ISNA(F40),0,INDEX(IF(UPPER(RIGHT(F40,1))=Low,UnitCostLow, IF(UPPER(RIGHT(F40,1))=High,UnitCostHigh,UnitCostSpecified)),MATCH(UPPER(LEFT(F40,LEN(F40)-1)),CostCode,0))) -> 47 | H40: 470000 | J40: 0 | K40: 470000
B41: Reagents/stabilizing agent | D41: m2 | F41: =NA() ->  | G41: =IF(ISNA(F41),0,INDEX(IF(UPPER(RIGHT(F41,1))=Low,UnitCostLow, IF(UPPER(RIGHT(F41,1))=High,UnitCostHigh,UnitCostSpecified)),MATCH(UPPER(LEFT(F41,LEN(F41)-1)),CostCode,0))) -> 0 | H41: =G41*E41 -> 0 | J41: =H41*I41 -> 0 | K41: =+H41*(1-I41) -> 0
B42: Excavate and transport to offsite facility | D42: m3 | F42: =NA() ->  | G42: =IF(ISNA(F42),0,INDEX(IF(UPPER(RIGHT(F42,1))=Low,UnitCostLow, IF(UPPER(RIGHT(F42,1))=High,UnitCostHigh,UnitCostSpecified)),MATCH(UPPER(LEFT(F42,LEN(F42)-1)),CostCode,0))) -> 0 | H42: 0 | J42: 0 | K42: 0
B43: Contour decontaminated area | C43: Decommission 2 landfarms and confirmation soil sampling; estimated 6,000m3 at each of Goose and MLA sites. | D43: m3 | E43: 12000 | F43: SB1L | G43: =IF(ISNA(F43),0,INDEX(IF(UPPER(RIGHT(F43,1))=Low,UnitCostLow, IF(UPPER(RIGHT(F43,1))=High,UnitCostHigh,UnitCostSpecified)),MATCH(UPPER(LEFT(F43,LEN(F43)-1)),CostCode,0))) -> 4.3 | H43: 51600 | J43: =H43*I43 -> 0 | K43: =+H43*(1-I43) -> 51600
B44: CONTAMINATED SOIL VERY LOW PERMEABILITY COVER
B45: Supply geomembrame, HDPE, ES3, GCL | D45: m2 | F45: =NA() ->  | G45: =IF(ISNA(F45),0,INDEX(IF(UPPER(RIGHT(F45,1))=Low,UnitCostLow, IF(UPPER(RIGHT(F45,1))=High,UnitCostHigh,UnitCostSpecified)),MATCH(UPPER(LEFT(F45,LEN(F45)-1)),CostCode,0))) -> 0 | H45: =G45*E45 -> 0 | J45: =H45*I45 -> 0 | K45: =+H45*(1-I45) -> 0
B46: Upper and lower bedding layers | D46: m3 | F46: =NA() ->  | G46: 0 | H46: 0 | J46: 0 | K46: 0
B47: Install geomembrane, HDPE, ES3, GCL | D47: m2 | F47: =NA() ->  | G47: 0 | H47: 0 | J47: 0 | K47: 0
B48: Erosion protection layer | D48: m3 | F48: =NA() ->  | G48: 0 | H48: 0 | J48: 0 | K48: 0
B49: Vegetate | D49: m2 | F49: =NA() ->  | G49: 0 | H49: 0 | J49: 0 | K49: 0
B50: Install infiltration/seepage instrumentation | D50: allow | F50: =NA() ->  | G50: 0 | H50: 0 | J50: =H50*I50 -> 0 | K50: =+H50*(1-I50) -> 0
B51: Other | C51: Operate 2 landfarms: 1 at Goose, 1 at MLA | D51: allow | E51: 2 | F51: Sabina | G51: 50000 | H51: 100000 | J51: =H51*I51 -> 0 | K51: =+H51*(1-I51) -> 100000
B52: OTHER
F53: =NA() ->  | G53: =IF(ISNA(F53),0,INDEX(IF(UPPER(RIGHT(F53,1))=Low,UnitCostLow, IF(UPPER(RIGHT(F53,1))=High,UnitCostHigh,UnitCostSpecified)),MATCH(UPPER(LEFT(F53,LEN(F53)-1)),CostCode,0))) -> 0 | H53: =G53*E53 -> 0 | J53: =H53*I53 -> 0 | K53: =+H53*(1-I53) -> 0
G54: Total | H54: =SUM(H6:H53)+0.0001 -> 1393130 | J54: =SUM(J6:J53) -> 0 | K54: =SUM(K6:K53) -> 1393130
G55: % of Total | J55: =J54/H54 -> 0 | K55: =K54/H54 -> 0.9999999999

Sheet Water Management
A1: 1 | B1: Capital Expenditures and Short Term Water Treatment identified in 'Instructions' worksheet
K2: Staging
B3: ACTIVITY/MATERIAL | C3: Notes | D3: Units | E3: Quantity | F3: Cost Code | G3: Unit Cost | H3: Total Cost | K3: Y-3 | L3: Y-2 | M3: Y-1 | N3: Y1 | O3: Y-1 | P3: Y1 | Q3: Y2 | R3: Y4 | S3: Y4 & Y5 | T3: ICRP Section
B4: BREACH DYKE EMBANKMENT | K4: Initial Infrastructre | L4: Umwelt OP | M4: TSF | N4: Llama OP | O4: Llama UG | P4: Umwelt UG | Q4: Goose Main OP | R4: Goose Main UG | S4: Echo OP & UG
B5: Breach Llama Lake Diversion Berms | D5: m3 | E5: ='SBB Comp. Est.'!F62 -> 665 | F5: =NA() ->  | G5: ='SBB Comp. Est.'!W62 -> 7.3 | H5: =G5*E5 -> 4854.5 | N5: =H5 -> 4854.5
B6: Breach Llama WRSA Diversion Berm | D6: m3 | E6: ='SBB Comp. Est.'!F63 -> 95 | F6: =NA() ->  | G6: ='SBB Comp. Est.'!W63 -> 7.3 | H6: =G6*E6 -> 693.5 | N6: =H6 -> 693.5
B7: Breach Llama WRSA Containment Dam | D7: m3 | E7: ='SBB Comp. Est.'!F64 -> 95 | F7: =NA() ->  | G7: ='SBB Comp. Est.'!W64 -> 7.3 | H7: 693.5 | N7: =H7 -> 693.5
B8: Breach Primary Pond Containment Dam | C8: Breach in Year 2 once Umwelt Pit mining compelte and starts as Umwelt Tailings Facility (TF); Primary Pond will water will gravity flow directly. | D8: m3 | F8: =NA() ->  | G8: =IF(ISNA(F8),0,INDEX(IF(UPPER(RIGHT(F8,1))=Low,UnitCostLow, IF(UPPER(RIGHT(F8,1))=High,UnitCostHigh,UnitCostSpecified)),MATCH(UPPER(LEFT(F8,LEN(F8)-1)),CostCode,0))) -> 0 | H8: =G8*E8 -> 0
B9: Breach Umwelt WRSA Containment Dam | D9: m3 | E9: ='SBB Comp. Est.'!F68 -> 120 | F9: =NA() ->  | G9: ='SBB Comp. Est.'!W68 -> 7.3 | H9: 876 | L9: =H9 -> 876
B10: Breach Umwelt WRSA Diversion Berm | D10: m3 | E10: ='SBB Comp. Est.'!F69 -> 95 | F10: =NA() ->  | G10: ='SBB Comp. Est.'!W69 -> 7.3 | H10: 693.5 | L10: =H10 -> 693.5
B11: Breach Echo WRSA Containment Dam | D11: m3 | E11: ='SBB Comp. Est.'!F73 -> 190 | F11: =NA() ->  | G11: ='SBB Comp. Est.'!W73 -> 7.3 | H11: 1387 | S11: =H11 -> 1387
B12: Breach Echo Diversion Berm (East and West) | D12: m3 | E12: ='SBB Comp. Est.'!F74 -> 190 | F12: =NA() ->  | G12: ='SBB Comp. Est.'!W74 -> 7.3 | H12: 1387 | S12: =H12 -> 1387
B13: Breach Echo WRSA Diversion Berm | D13: m3 | E13: ='SBB Comp. Est.'!F75 -> 95 | F13: =NA() ->  | G13: ='SBB Comp. Est.'!W75 -> 7.3 | H13: 693.5 | S13: =H13 -> 693.5
B14: Breach East Echo Containment Dam | D14: m3 | E14: ='SBB Comp. Est.'!F76 -> 95 | F14: =NA() ->  | G14: ='SBB Comp. Est.'!W76 -> 7.3 | H14: 693.5 | S14: =H14 -> 693.5
B15: Breach Goose Main Diversion Berm | D15: m3 | E15: ='SBB Comp. Est.'!F80 -> 95 | F15: =NA() ->  | G15: ='SBB Comp. Est.'!W80 -> 7.3 | H15: 693.5 | Q15: =H15 -> 693.5
B16: Breach Ore Stockpile Diversion Berm and Containment Dam | D16: m3 | E16: ='SBB Comp. Est.'!F86 -> 215 | F16: =NA() ->  | G16: ='SBB Comp. Est.'!W86 -> 7.3 | H16: 1569.5 | K16: =H16 -> 1569.5
B17: Breach SWP Diversion Berms and Containment Dams | D17: m3 | E17: ='SBB Comp. Est.'!F33 -> 430 | F17: =NA() ->  | G17: ='SBB Comp. Est.'!W33 -> 8 | H17: 3440 | L17: =H17 -> 3440
B18: Remove Liner from all berms | C18: Remove liner from all berms | D18: m2 | E18: 30700 | F18: Sabina | G18: 0.7 | H18: =G18*E18 -> 21490 | K18: =$H$18*(K20/$T$20) -> 3894.977193 | L18: 10710.87707 | M18: 0 | N18: 1721.036434 | O18: 0 | P18: 0 | Q18: 0 | R18: 0 | S18: 5163.109302 | T18: =SUM(K18:S18) -> 21490
B19: Contour water intake area | D19: m3 | F19: =NA() ->  | G19: =IF(ISNA(F19),0,INDEX(IF(UPPER(RIGHT(F19,1))=Low,UnitCostLow, IF(UPPER(RIGHT(F19,1))=High,UnitCostHigh,UnitCostSpecified)),MATCH(UPPER(LEFT(F19,LEN(F19)-1)),CostCode,0))) -> 0 | H19: =G19*E19 -> 0
B20: STABILIZE SEDIMENT PONDS/WATER MANAGEMENT PONDS | K20: =SUM(K16) -> 1569.5 | L20: =L9+L17 -> 4316 | M20: 0 | N20: =N7 -> 693.5 | O20: 0 | P20: 0 | Q20: 0 | R20: 0 | S20: =S11+S14 -> 2080.5 | T20: =SUM(K20:S20) -> 8659.5
B21: Place soil cover | D21: m3 | F21: =NA() ->  | G21: =IF(ISNA(F21),0,INDEX(IF(UPPER(RIGHT(F21,1))=Low,UnitCostLow, IF(UPPER(RIGHT(F21,1))=High,UnitCostHigh,UnitCostSpecified)),MATCH(UPPER(LEFT(F21,LEN(F21)-1)),CostCode,0))) -> 0 | H21: =G21*E21 -> 0
B22: Doze & spread excavated material | D22: m3 | F22: =NA() ->  | G22: =IF(ISNA(F22),0,INDEX(IF(UPPER(RIGHT(F22,1))=Low,UnitCostLow, IF(UPPER(RIGHT(F22,1))=High,UnitCostHigh,UnitCostSpecified)),MATCH(UPPER(LEFT(F22,LEN(F22)-1)),CostCode,0))) -> 0 | H22: =G22*E22 -> 0
B23: Vegetate spread material | D23: ha | F23: =NA() ->  | G23: =IF(ISNA(F23),0,INDEX(IF(UPPER(RIGHT(F23,1))=Low,UnitCostLow, IF(UPPER(RIGHT(F23,1))=High,UnitCostHigh,UnitCostSpecified)),MATCH(UPPER(LEFT(F23,LEN(F23)-1)),CostCode,0))) -> 0 | H23: =G23*E23 -> 0
B24: Rip rap in channel base | D24: each | F24: =NA() ->  | G24: =IF(ISNA(F24),0,INDEX(IF(UPPER(RIGHT(F24,1))=Low,UnitCostLow, IF(UPPER(RIGHT(F24,1))=High,UnitCostHigh,UnitCostSpecified)),MATCH(UPPER(LEFT(F24,LEN(F24)-1)),CostCode,0))) -> 0 | H24: =G24*E24 -> 0
B25: REDIRECT RUNOFF/CONSTRUCT DIVERSION DITCHES
B26: Excavate ditches -soil | D26: m3 | F26: =NA() ->  | G26: =IF(ISNA(F26),0,INDEX(IF(UPPER(RIGHT(F26,1))=Low,UnitCostLow, IF(UPPER(RIGHT(F26,1))=High,UnitCostHigh,UnitCostSpecified)),MATCH(UPPER(LEFT(F26,LEN(F26)-1)),CostCode,0))) -> 0 | H26: =G26*E26 -> 0
B27: Excavate ditches -rock | D27: m3 | F27: =NA() ->  | G27: =IF(ISNA(F27),0,INDEX(IF(UPPER(RIGHT(F27,1))=Low,UnitCostLow, IF(UPPER(RIGHT(F27,1))=High,UnitCostHigh,UnitCostSpecified)),MATCH(UPPER(LEFT(F27,LEN(F27)-1)),CostCode,0))) -> 0 | H27: =G27*E27 -> 0
B28: Stabilize side slopes | D28: m3 | F28: =NA() ->  | G28: =IF(ISNA(F28),0,INDEX(IF(UPPER(RIGHT(F28,1))=Low,UnitCostLow, IF(UPPER(RIGHT(F28,1))=High,UnitCostHigh,UnitCostSpecified)),MATCH(UPPER(LEFT(F28,LEN(F28)-1)),CostCode,0))) -> 0 | H28: =G28*E28 -> 0
B29: Rip rap in channel base | D29: m3 | F29: =NA() ->  | G29: =IF(ISNA(F29),0,INDEX(IF(UPPER(RIGHT(F29,1))=Low,UnitCostLow, IF(UPPER(RIGHT(F29,1))=High,UnitCostHigh,UnitCostSpecified)),MATCH(UPPER(LEFT(F29,LEN(F29)-1)),CostCode,0))) -> 0 | H29: =G29*E29 -> 0
B30: BREACH DITCHES
B31: Excavate breaches | D31: m3 | F31: =NA() ->  | G31: =IF(ISNA(F31),0,INDEX(IF(UPPER(RIGHT(F31,1))=Low,UnitCostLow, IF(UPPER(RIGHT(F31,1))=High,UnitCostHigh,UnitCostSpecified)),MATCH(UPPER(LEFT(F31,LEN(F31)-1)),CostCode,0))) -> 0 | H31: =G31*E31 -> 0
B32: Install flow dissipation | D32: m3 | F32: =NA() ->  | G32: =IF(ISNA(F32),0,INDEX(IF(UPPER(RIGHT(F32,1))=Low,UnitCostLow, IF(UPPER(RIGHT(F32,1))=High,UnitCostHigh,UnitCostSpecified)),MATCH(UPPER(LEFT(F32,LEN(F32)-1)),CostCode,0))) -> 0 | H32: =G32*E32 -> 0
B33: Vegetate remainder of ditch | D33: m2 | F33: =NA() ->  | G33: =IF(ISNA(F33),0,INDEX(IF(UPPER(RIGHT(F33,1))=Low,UnitCostLow, IF(UPPER(RIGHT(F33,1))=High,UnitCostHigh,UnitCostSpecified)),MATCH(UPPER(LEFT(F33,LEN(F33)-1)),CostCode,0))) -> 0 | H33: =G33*E33 -> 0
B34: DECOMISSION FRESH WATER SUPPLY
B35: Breach embankment | D35: m3 | F35: =NA() ->  | G35: =IF(ISNA(F35),0,INDEX(IF(UPPER(RIGHT(F35,1))=Low,UnitCostLow, IF(UPPER(RIGHT(F35,1))=High,UnitCostHigh,UnitCostSpecified)),MATCH(UPPER(LEFT(F35,LEN(F35)-1)),CostCode,0))) -> 0 | H35: =G35*E35 -> 0
B36: Remove pump | D36: LS | F36: =NA() ->  | G36: =IF(ISNA(F36),0,INDEX(IF(UPPER(RIGHT(F36,1))=Low,UnitCostLow, IF(UPPER(RIGHT(F36,1))=High,UnitCostHigh,UnitCostSpecified)),MATCH(UPPER(LEFT(F36,LEN(F36)-1)),CostCode,0))) -> 0 | H36: =G36*E36 -> 0
B37: Remove pipelines | D37: m | F37: =NA() ->  | G37: =IF(ISNA(F37),0,INDEX(IF(UPPER(RIGHT(F37,1))=Low,UnitCostLow, IF(UPPER(RIGHT(F37,1))=High,UnitCostHigh,UnitCostSpecified)),MATCH(UPPER(LEFT(F37,LEN(F37)-1)),CostCode,0))) -> 0 | H37: =G37*E37 -> 0
B38: DECOMISSION WATER RECLAIM BARGE
B39: Decomission reclaim barge from Goose Main TF | D39: LS | E39: 1 | F39: Sabina | G39: 10000 | H39: =G39*E39 -> 10000 | M39: =H39 -> 10000
B40: WATER CONTROL IN RECLAMATION QUARRY
B41: Install pumping system | D41: LS | F41: =NA() ->  | G41: =IF(ISNA(F41),0,INDEX(IF(UPPER(RIGHT(F41,1))=Low,UnitCostLow, IF(UPPER(RIGHT(F41,1))=High,UnitCostHigh,UnitCostSpecified)),MATCH(UPPER(LEFT(F41,LEN(F41)-1)),CostCode,0))) -> 0 | H41: =G41*E41 -> 0
B42: Remove pumping system | D42: m | F42: =NA() ->  | G42: =IF(ISNA(F42),0,INDEX(IF(UPPER(RIGHT(F42,1))=Low,UnitCostLow, IF(UPPER(RIGHT(F42,1))=High,UnitCostHigh,UnitCostSpecified)),MATCH(UPPER(LEFT(F42,LEN(F42)-1)),CostCode,0))) -> 0 | H42: =G42*E42 -> 0
B43: REMOVE PIPELINES
B44: Decommission Llama pump and pipeline | D44: m | E44: ='SBB Comp. Est.'!F65 -> 700 | F44: Sabina | G44: ='SBB Comp. Est.'!W65 -> 18.57142857 | H44: =G44*E44 -> 13000 | O44: =H44 -> 13000
B45: Decomission WTP-Goose Lake pipeline | D45: m | E45: ='SBB Comp. Est.'!F34 -> 1140 | F45: Sabina | G45: ='SBB Comp. Est.'!W34 -> 10 | H45: =G45*E45 -> 11400 | M45: =H45 -> 11400
B46: Remove Umwelt Pond pump and pipeline | D46: m | E46: ='SBB Comp. Est.'!F70 -> 950 | F46: Sabina | G46: ='SBB Comp. Est.'!W70 -> 17.89473684 | H46: =G46*E46 -> 17000 | L46: =H46 -> 17000
B47: Remove Primary Pond pump and pipeline | D47: m | E47: ='SBB Comp. Est.'!F71 -> 7250 | F47: Sabina | G47: ='SBB Comp. Est.'!W71 -> 11.03448276 | H47: 80000 | L47: =H47 -> 80000
B48: Remove Echo WRSA Pond pump and pipeline | D48: m | E48: ='SBB Comp. Est.'!F77 -> 2400 | F48: Sabina | G48: ='SBB Comp. Est.'!W77 -> 10 | H48: 24000 | S48: =H48 -> 24000
B49: Remove Echo NCW pond pump and pipeline | D49: m | E49: ='SBB Comp. Est.'!F78 -> 220 | F49: Sabina | G49: ='SBB Comp. Est.'!W78 -> 23.63636364 | H49: 5200 | S49: =H49 -> 5200
B50: Remove Ore Stockpile pump and pipline | D50: m | E50: ='SBB Comp. Est.'!F85 -> 4550 | F50: Sabina | G50: ='SBB Comp. Est.'!W85 -> 10 | H50: 45500 | K50: =H50 -> 45500
B51: Decommission WTP pump and pipeline | D51: m | E51: ='SBB Comp. Est.'!F131+'SBB Comp. Est.'!F132 -> 7520 | F51: Sabina | G51: ='SBB Comp. Est.'!W131 -> 10.89552239 | H51: 81934.32836 | S51: =H51 -> 81934.32836
B52: Decommission WTP | D52: LS | E52: ='SBB Comp. Est.'!F133 -> 1 | F52: Sabina | G52: ='SBB Comp. Est.'!W133*2 -> 19500 | H52: 19500 | S52: =H52 -> 19500
B53: Concrete plug deep pipes | D53: m3 | F53: =NA() ->  | G53: =IF(ISNA(F53),0,INDEX(IF(UPPER(RIGHT(F53,1))=Low,UnitCostLow, IF(UPPER(RIGHT(F53,1))=High,UnitCostHigh,UnitCostSpecified)),MATCH(UPPER(LEFT(F53,LEN(F53)-1)),CostCode,0))) -> 0 | H53: =G53*E53 -> 0
B54: Other | F54: =NA() ->  | G54: =IF(ISNA(F54),0,INDEX(IF(UPPER(RIGHT(F54,1))=Low,UnitCostLow, IF(UPPER(RIGHT(F54,1))=High,UnitCostHigh,UnitCostSpecified)),MATCH(UPPER(LEFT(F54,LEN(F54)-1)),CostCode,0))) -> 0 | H54: =G54*E54 -> 0
B55: GROUNDWATER COLLECTION SYSTEM
B56: Excavate/install sumps | D56: m3 | F56: =NA() ->  | G56: =IF(ISNA(F56),0,INDEX(IF(UPPER(RIGHT(F56,1))=Low,UnitCostLow, IF(UPPER(RIGHT(F56,1))=High,UnitCostHigh,UnitCostSpecified)),MATCH(UPPER(LEFT(F56,LEN(F56)-1)),CostCode,0))) -> 0 | H56: =G56*E56 -> 0
B57: Install pumping wells | D57: m3 | F57: =NA() ->  | G57: =IF(ISNA(F57),0,INDEX(IF(UPPER(RIGHT(F57,1))=Low,UnitCostLow, IF(UPPER(RIGHT(F57,1))=High,UnitCostHigh,UnitCostSpecified)),MATCH(UPPER(LEFT(F57,LEN(F57)-1)),CostCode,0))) -> 0 | H57: =G57*E57 -> 0
B58: Install pumps/pipelines/power supply | D58: LS | F58: =NA() ->  | G58: =IF(ISNA(F58),0,INDEX(IF(UPPER(RIGHT(F58,1))=Low,UnitCostLow, IF(UPPER(RIGHT(F58,1))=High,UnitCostHigh,UnitCostSpecified)),MATCH(UPPER(LEFT(F58,LEN(F58)-1)),CostCode,0))) -> 0 | H58: =G58*E58 -> 0
B59: CONSTRUCT CONTAMINATED WATER STORAGE POND
B60: Excavate pond | D60: m3 | F60: =NA() ->  | G60: =IF(ISNA(F60),0,INDEX(IF(UPPER(RIGHT(F60,1))=Low,UnitCostLow, IF(UPPER(RIGHT(F60,1))=High,UnitCostHigh,UnitCostSpecified)),MATCH(UPPER(LEFT(F60,LEN(F60)-1)),CostCode,0))) -> 0 | H60: =G60*E60 -> 0
B61: Doze & spread excavated material | D61: m3 | F61: =NA() ->  | G61: 0 | H61: 0
B62: Vegetate spread material | D62: ha | F62: =NA() ->  | G62: 0 | H62: 0
B63: Bedding layer | D63: m3 | F63: =NA() ->  | G63: 0 | H63: 0
B64: Supply geomembrane | D64: m2 | F64: =NA() ->  | G64: 0 | H64: 0
B65: Install geomembrane | D65: m2 | F65: =NA() ->  | G65: 0 | H65: 0
B66: Erosion protection layer | D66: m3 | F66: =NA() ->  | G66: 0 | H66: 0
B67: CONSTRUCT PASSIVE TREATMENT SYSTEM (e.g. Constructed Wetland)
B68: Construct access roads | D68: km | F68: =NA() ->  | G68: 0 | H68: =G68*E68 -> 0
B69: Install HDPE piping system from collection pond | D69: m | F69: =NA() ->  | G69: 0 | H69: =G69*E69 -> 0
B70: Inter-cell flow structures | D70: allow | F70: =NA() ->  | G70: 0 | H70: 0
B71: Install liners | D71: m2 | F71: =NA() ->  | G71: 0 | H71: =G71*E71 -> 0
B72: Install growth media | D72: m3 | F72: =NA() ->  | G72: 0 | H72: 0
B73: Wetland vegetation | D73: ha | F73: =NA() ->  | G73: 0 | H73: 0
B74: CONSTRUCT WATER TREATMENT PLANT
B75: Build treatment plant | C75: Treatment Plant will be constructed as part of operations | D75: LS | F75: =NA() ->  | G75: =IF(ISNA(F75),0,INDEX(IF(UPPER(RIGHT(F75,1))=Low,UnitCostLow, IF(UPPER(RIGHT(F75,1))=High,UnitCostHigh,UnitCostSpecified)),MATCH(UPPER(LEFT(F75,LEN(F75)-1)),CostCode,0))) -> 0 | H75: =G75*E75 -> 0
B76: Build sludge containment facility | D76: LS | F76: =NA() ->  | G76: =IF(ISNA(F76),0,INDEX(IF(UPPER(RIGHT(F76,1))=Low,UnitCostLow, IF(UPPER(RIGHT(F76,1))=High,UnitCostHigh,UnitCostSpecified)),MATCH(UPPER(LEFT(F76,LEN(F76)-1)),CostCode,0))) -> 0 | H76: =G76*E76 -> 0
G77: Total | H77: =SUM(H4:H76)+0.0001 -> 346699.3285 | J77: =SUM(J21:J76,J5:J19) -> 0 | K77: =SUM(K21:K76,K5:K19) -> 50964.47719 | L77: 112720.3771 | M77: 21400 | N77: 7962.536434 | O77: 13000 | P77: 0 | Q77: 693.5 | R77: 0 | S77: 139958.4377 | T77: =SUM(J77:S77) -> 346699.3284
B78: For details of long-term/post-closure water treatment see "WATER TREATMENT" Worksheet"; costs included in this tab.

Sheet Water Treatment
A1: 1 | B1: Post Closure Water Treatment - Identified as long term/post-closure in 'Instructions' worksheet
B3: ACTIVITY/MATERIAL | C3: Notes | D3: Units | E3: Quantity | F3: Cost Code | G3: Unit Cost | H3: Total Cost | J3: ICRP Section
B4: ADDITION OF REAGENTS TO WTP
B5: H2O2 | D5: kg | F5: =NA() ->  | G5: =IF(ISNA(F5),0,INDEX(IF(UPPER(RIGHT(F5,1))=Low,UnitCostLow, IF(UPPER(RIGHT(F5,1))=High,UnitCostHigh,UnitCostSpecified)),MATCH(UPPER(LEFT(F5,LEN(F5)-1)),CostCode,0))) -> 0 | H5: =G5*E5 -> 0
B6: lime | D6: kg | F6: =NA() ->  | G6: 0 | H6: 0
B7: ferric sulphate | D7: kg | F7: =NA() ->  | G7: 0 | H7: 0
B8: ferrous sulphate | D8: kg | F8: =NA() ->  | G8: 0 | H8: 0
B9: flocculents | D9: kg | F9: =NA() ->  | G9: 0 | H9: 0
B10: Other | F10: =NA() ->  | G10: 0 | H10: 0
B11: LABOUR AND SUPPLIES
B12: Annual fuel | D12: litres | F12: =NA() ->  | G12: =IF(ISNA(F12),0,INDEX(IF(UPPER(RIGHT(F12,1))=Low,UnitCostLow, IF(UPPER(RIGHT(F12,1))=High,UnitCostHigh,UnitCostSpecified)),MATCH(UPPER(LEFT(F12,LEN(F12)-1)),CostCode,0))) -> 0 | H12: =G12*E12 -> 0
B13: Annual power | D13: kW-h | F13: =NA() ->  | G13: =IF(ISNA(F13),0,INDEX(IF(UPPER(RIGHT(F13,1))=Low,UnitCostLow, IF(UPPER(RIGHT(F13,1))=High,UnitCostHigh,UnitCostSpecified)),MATCH(UPPER(LEFT(F13,LEN(F13)-1)),CostCode,0))) -> 0 | H13: =G13*E13 -> 0
B14: Electrician/mechanic to maintain treatment plant | D14: allow | F14: =NA() ->  | G14: 0 | H14: 0
B15: Equipment maintenance and parts | D15: allow | F15: =NA() ->  | G15: 0 | H15: 0
B16: Misc. supplies, hoses, tools | D16: allow | F16: =NA() ->  | G16: 0 | H16: 0
B17: Communications | D17: allow | F17: =NA() ->  | G17: 0 | H17: 0
B18: Other | F18: =NA() ->  | G18: 0 | H18: 0
B19: WATER MANAGEMENT
B20: Pump from Goose Main TF to WTP | C20: 7.5 Mm3 for treatment in total | D20: m3 | E20: =ROUNDUP('SBB Comp. Est.'!F128/$E$36,0) -> 1071429 | F20: POCL | G20: 0.12 | H20: 128571.48
B21: Treat water from Goose Main TF in WTP | D21: m3 | E21: =E20 -> 1071429 | F21: Sabina | G21: 0.65 | H21: 696428.85
B22: Pump from WTP recirc. into Goose Main TF | D22: m3 | E22: =E20 -> 1071429 | F22: POCL | G22: =IF(ISNA(F22),0,INDEX(IF(UPPER(RIGHT(F22,1))=Low,UnitCostLow, IF(UPPER(RIGHT(F22,1))=High,UnitCostHigh,UnitCostSpecified)),MATCH(UPPER(LEFT(F22,LEN(F22)-1)),CostCode,0))) -> 0.12 | H22: 128571.48
B23: WTP WATER SAMPLING AND ANALYSES
B24: Sampling equipment | D24: allow | F24: =NA() ->  | G24: =IF(ISNA(F24),0,INDEX(IF(UPPER(RIGHT(F24,1))=Low,UnitCostLow, IF(UPPER(RIGHT(F24,1))=High,UnitCostHigh,UnitCostSpecified)),MATCH(UPPER(LEFT(F24,LEN(F24)-1)),CostCode,0))) -> 0 | H24: =G24*E24 -> 0
B25: Analyses | D25: allow | F25: =NA() ->  | G25: =IF(ISNA(F25),0,INDEX(IF(UPPER(RIGHT(F25,1))=Low,UnitCostLow, IF(UPPER(RIGHT(F25,1))=High,UnitCostHigh,UnitCostSpecified)),MATCH(UPPER(LEFT(F25,LEN(F25)-1)),CostCode,0))) -> 0 | H25: =G25*E25 -> 0
B26: Shipping to laboratory | D26: allow | F26: =NA() ->  | G26: =IF(ISNA(F26),0,INDEX(IF(UPPER(RIGHT(F26,1))=Low,UnitCostLow, IF(UPPER(RIGHT(F26,1))=High,UnitCostHigh,UnitCostSpecified)),MATCH(UPPER(LEFT(F26,LEN(F26)-1)),CostCode,0))) -> 0 | H26: =G26*E26 -> 0
B27: Reporting | D27: allow | F27: =NA() ->  | G27: =IF(ISNA(F27),0,INDEX(IF(UPPER(RIGHT(F27,1))=Low,UnitCostLow, IF(UPPER(RIGHT(F27,1))=High,UnitCostHigh,UnitCostSpecified)),MATCH(UPPER(LEFT(F27,LEN(F27)-1)),CostCode,0))) -> 0 | H27: =G27*E27 -> 0
B28: Other | F28: =NA() ->  | G28: =IF(ISNA(F28),0,INDEX(IF(UPPER(RIGHT(F28,1))=Low,UnitCostLow, IF(UPPER(RIGHT(F28,1))=High,UnitCostHigh,UnitCostSpecified)),MATCH(UPPER(LEFT(F28,LEN(F28)-1)),CostCode,0))) -> 0 | H28: =G28*E28 -> 0
B29: SITE ACCESS
B30: Road maintenance (incl. snow removal) | D30: allow | F30: =NA() ->  | G30: =IF(ISNA(F30),0,INDEX(IF(UPPER(RIGHT(F30,1))=Low,UnitCostLow, IF(UPPER(RIGHT(F30,1))=High,UnitCostHigh,UnitCostSpecified)),MATCH(UPPER(LEFT(F30,LEN(F30)-1)),CostCode,0))) -> 0 | H30: =G30*E30 -> 0
B31: Winter road tariff | D31: allow | F31: =NA() ->  | G31: =IF(ISNA(F31),0,INDEX(IF(UPPER(RIGHT(F31,1))=Low,UnitCostLow, IF(UPPER(RIGHT(F31,1))=High,UnitCostHigh,UnitCostSpecified)),MATCH(UPPER(LEFT(F31,LEN(F31)-1)),CostCode,0))) -> 0 | H31: =G31*E31 -> 0
B32: Truck rental | D32: allow | F32: =NA() ->  | G32: =IF(ISNA(F32),0,INDEX(IF(UPPER(RIGHT(F32,1))=Low,UnitCostLow, IF(UPPER(RIGHT(F32,1))=High,UnitCostHigh,UnitCostSpecified)),MATCH(UPPER(LEFT(F32,LEN(F32)-1)),CostCode,0))) -> 0 | H32: =G32*E32 -> 0
B33: Air support | D33: allow | F33: =NA() ->  | G33: =IF(ISNA(F33),0,INDEX(IF(UPPER(RIGHT(F33,1))=Low,UnitCostLow, IF(UPPER(RIGHT(F33,1))=High,UnitCostHigh,UnitCostSpecified)),MATCH(UPPER(LEFT(F33,LEN(F33)-1)),CostCode,0))) -> 0 | H33: =G33*E33 -> 0
G35: Annual water treatment costs | H35: =(SUM(H5:H33)+0.0001) -> 953571.8101
B36: Number of years of water treatment | D36: years | E36: 7
G37: Total | H37: =AnnualTreat1Cost*E36 -> 6675002.671

Sheet ICM
A1: 1 | B1: Interim Care and Maintenance
B3: ACTIVITY/MATERIAL | C3: Notes | D3: Units | E3: Quantity | F3: Cost Code | G3: Unit Cost | H3: Total Cost | J3: ICRP Section
B4: INTERIM CARE & MAINTENANCE
B5: Camp operation | C5: Caretaker and summer personnel | D5: mandays | E5: =180+6*21 -> 306 | F5: Sabina | G5: ='SBB Comp. Est.'!U118 -> 110 | H5: =G5*E5 -> 33660
B6: On-site staff | C6: Caretaker and summer personnel | D6: manhours | E6: =(180+6*21)*10 -> 3060 | F6: ENVCO | G6: =Unit_Costs!F77 -> 74.16 | H6: 226929.6
B7: extra personnel | D7: manmonths | F7: =NA() ->  | G7: =IF(ISNA(F7),0,INDEX(IF(UPPER(RIGHT(F7,1))=Low,UnitCostLow, IF(UPPER(RIGHT(F7,1))=High,UnitCostHigh,UnitCostSpecified)),MATCH(UPPER(LEFT(F7,LEN(F7)-1)),CostCode,0))) -> 0 | H7: 0
B8: -electrician | D8: manmonths | F8: =NA() ->  | G8: =IF(ISNA(F8),0,INDEX(IF(UPPER(RIGHT(F8,1))=Low,UnitCostLow, IF(UPPER(RIGHT(F8,1))=High,UnitCostHigh,UnitCostSpecified)),MATCH(UPPER(LEFT(F8,LEN(F8)-1)),CostCode,0))) -> 0 | H8: =G8*E8 -> 0
B9: -mechanic | D9: manmonths | F9: =NA() ->  | G9: =IF(ISNA(F9),0,INDEX(IF(UPPER(RIGHT(F9,1))=Low,UnitCostLow, IF(UPPER(RIGHT(F9,1))=High,UnitCostHigh,UnitCostSpecified)),MATCH(UPPER(LEFT(F9,LEN(F9)-1)),CostCode,0))) -> 0 | H9: =G9*E9 -> 0
B10: annual fuel | C10: Fuel for vehicles; fuel for pumping included in water treatment cost | D10: litre | E10: 5000 | F10: FCDH | G10: 1.39 | H10: 6950
B11: misc. supplies | D11: allow | E11: 1 | F11: Sabina | G11: 20000 | H11: =G11*E11 -> 20000
B12: pick-up truck | D12: each | F12: =NA() ->  | G12: 0 | H12: 0
B13: small dozer | D13: allow | F13: =NA() ->  | G13: 0 | H13: 0
B14: small excavator | D14: allow | F14: =NA() ->  | G14: 0 | H14: 0
B15: snow machine | D15: allow | F15: =NA() ->  | G15: 0 | H15: 0
B16: communications | D16: allow | F16: =NA() ->  | G16: 0 | H16: 0
B17: SNP/AEMP water sampling & reporting | C17: Sampling and lab costs | D17: each | E17: 1 | F17: WSH | G17: 10000 | H17: 10000
B18: geotechnical assessment | C18: Annual geotechnical inspection | D18: each | E18: 1 | F18: RPTH | G18: 20000 | H18: 20000
B19: interim water treatment | C19: Captured under Water Treatment | D19: each | E19: 1 | F19: =NA() ->  | G19: =IF(ISNA(F19),0,INDEX(IF(UPPER(RIGHT(F19,1))=Low,UnitCostLow, IF(UPPER(RIGHT(F19,1))=High,UnitCostHigh,UnitCostSpecified)),MATCH(UPPER(LEFT(F19,LEN(F19)-1)),CostCode,0))) -> 0 | H19: =G19*E19 -> 0
B20: other | D20: each | F20: =NA() ->  | G20: 0 | H20: 0
G21: Annual Interim C&M Cost | H21: =SUM(H5:H20) -> 317539.6
B22: Number of years of ICM | D22: years | E22: 3 | G22: Total | H22: =H21*E22 -> 952618.8

Sheet PostClosure
A1: 1 | G1: 7 Years (Year 11 to 17) | O1: 8 Years (Year 11 to 18) | W1: 10 Years (Year 11 to 20) | AE1: 13 Years (Year 11 to 23) | AM1: Beyond Post Closure (Long Term 1 to 5, 7, 10, 15, 25)
B3: ACTIVITY/MATERIAL - WATER TREATMENT | C3: Notes | D3: Units | E3: Quantity | F3: Cost Code | G3: Unit Cost | H3: Total Cost | J3: ACTIVITY/MATERIAL - GEOTECHNICAL INSPECTIONS OF TSF | K3: Notes | L3: Units | M3: Quantity | N3: Cost Code | O3: Unit Cost | P3: Total Cost | R3: ACTIVITY/MATERIAL - WEMP and TERRESTRIAL | S3: Notes | T3: Units | U3: Quantity | V3: Cost Code | W3: Unit Cost | X3: Total Cost | Z3: ACTIVITY/MATERIAL - Monitoring & Maintenance | AA3: Notes | AB3: Units | AC3: Quantity | AD3: Cost Code | AE3: Unit Cost | AF3: Total Cost | AH3: ACTIVITY/MATERIAL - Long Term Monitoring | AI3: Notes | AJ3: Units | AK3: Quantity | AL3: Cost Code | AM3: Unit Cost | AN3: Total Cost
B4: MONITORING & INSPECTIONS | J4: MONITORING & INSPECTIONS | R4: MONITORING & INSPECTIONS | Z4: MONITORING & INSPECTIONS | AH4: MONITORING & INSPECTIONS
B5: Total geotechnical inspections (1 yearly) | D5: year | E5: ='SBB Comp. Est.'!N142/8 -> 0 | F5: =NA() ->  | G5: =IF(ISNA(F5),0,INDEX(IF(UPPER(RIGHT(F5,1))=Low,UnitCostLow, IF(UPPER(RIGHT(F5,1))=High,UnitCostHigh,UnitCostSpecified)),MATCH(UPPER(LEFT(F5,LEN(F5)-1)),CostCode,0))) -> 0 | H5: =G5*E5 -> 0 | J5: Total geotechnical inspections (1 yearly) | K5: Annual inspection of the TSF from Closure until embankment breaching in Year 18 (8 years). | L5: year | M5: ='SBB Comp. Est.'!F142/8 -> 1 | N5: RPTH | O5: =IF(ISNA(N5),0,INDEX(IF(UPPER(RIGHT(N5,1))=Low,UnitCostLow, IF(UPPER(RIGHT(N5,1))=High,UnitCostHigh,UnitCostSpecified)),MATCH(UPPER(LEFT(N5,LEN(N5)-1)),CostCode,0))) -> 20000 | P5: =O5*M5 -> 20000 | R5: Total geotechnical inspections (1 yearly) | T5: year | V5: =NA() ->  | W5: =IF(ISNA(V5),0,INDEX(IF(UPPER(RIGHT(V5,1))=Low,UnitCostLow, IF(UPPER(RIGHT(V5,1))=High,UnitCostHigh,UnitCostSpecified)),MATCH(UPPER(LEFT(V5,LEN(V5)-1)),CostCode,0))) -> 0 | X5: =W5*U5 -> 0 | Z5: Total geotechnical inspections (1 yearly) | AB5: year | AD5: =NA() ->  | AE5: =IF(ISNA(AD5),0,INDEX(IF(UPPER(RIGHT(AD5,1))=Low,UnitCostLow, IF(UPPER(RIGHT(AD5,1))=High,UnitCostHigh,UnitCostSpecified)),MATCH(UPPER(LEFT(AD5,LEN(AD5)-1)),CostCode,0))) -> 0 | AF5: =AE5*AC5 -> 0 | AH5: General Water Sampling and Stability Monitoring | AI5: long term general monitoring | AJ5: year | AK5: 1 | AL5: Sabina | AM5: 40000 | AN5: =AM5*AK5 -> 40000
B6: Waste Rock Piles | D6: year | F6: =NA() ->  | G6: =IF(ISNA(F6),0,INDEX(IF(UPPER(RIGHT(F6,1))=Low,UnitCostLow, IF(UPPER(RIGHT(F6,1))=High,UnitCostHigh,UnitCostSpecified)),MATCH(UPPER(LEFT(F6,LEN(F6)-1)),CostCode,0))) -> 0 | H6: =G6*E6 -> 0 | J6: Waste Rock Piles | L6: year | N6: =NA() ->  | O6: 0 | P6: 0 | R6: Waste Rock Piles | T6: year | V6: =NA() ->  | W6: =IF(ISNA(V6),0,INDEX(IF(UPPER(RIGHT(V6,1))=Low,UnitCostLow, IF(UPPER(RIGHT(V6,1))=High,UnitCostHigh,UnitCostSpecified)),MATCH(UPPER(LEFT(V6,LEN(V6)-1)),CostCode,0))) -> 0 | X6: =W6*U6 -> 0 | Z6: Waste Rock Piles | AA6: Annual inspection of WR piles from closure to post-closure (13 years) | AB6: year | AC6: ='SBB Comp. Est.'!F143/13 -> 1 | AD6: Sabina | AE6: ='SBB Comp. Est.'!$W143 -> 8300 | AF6: =AE6*AC6 -> 8300 | AH6: Waste Rock Piles | AJ6: year | AL6: =NA() ->  | AM6: =IF(ISNA(AL6),0,INDEX(IF(UPPER(RIGHT(AL6,1))=Low,UnitCostLow, IF(UPPER(RIGHT(AL6,1))=High,UnitCostHigh,UnitCostSpecified)),MATCH(UPPER(LEFT(AL6,LEN(AL6)-1)),CostCode,0))) -> 0 | AN6: 0
B7: Pit Walls | D7: year | F7: =NA() ->  | G7: 0 | H7: 0 | J7: Pit Walls | L7: year | N7: =NA() ->  | O7: 0 | P7: 0 | R7: Pit Walls | T7: year | V7: =NA() ->  | W7: 0 | X7: 0 | Z7: Pit Walls | AA7: Annual inspection of pit walls from closure to post-closure (13 years) | AB7: year | AC7: ='SBB Comp. Est.'!F144/13 -> 1 | AD7: Sabina | AE7: ='SBB Comp. Est.'!$W144 -> 4000 | AF7: =AE7*AC7 -> 4000 | AH7: Pit Walls | AJ7: year | AL7: =NA() ->  | AM7: 0 | AN7: 0
B8: WR GTC Monitoring | D8: year | F8: =NA() ->  | G8: 0 | H8: 0 | J8: WR GTC Monitoring | L8: year | N8: =NA() ->  | O8: =IF(ISNA(N8),0,INDEX(IF(UPPER(RIGHT(N8,1))=Low,UnitCostLow, IF(UPPER(RIGHT(N8,1))=High,UnitCostHigh,UnitCostSpecified)),MATCH(UPPER(LEFT(N8,LEN(N8)-1)),CostCode,0))) -> 0 | P8: =O8*M8 -> 0 | R8: WR GTC Monitoring | T8: year | V8: =NA() ->  | W8: 0 | X8: 0 | Z8: WR GTC Monitoring | AA8: Umwelt, Llama, and TSF WRSA ground temp cable annual monitoring. No GTCs at Echo WRSA (13 years) | AB8: year | AC8: 1 | AD8: Sabina | AE8: =('SBB Comp. Est.'!$W146+'SBB Comp. Est.'!$W147+'SBB Comp. Est.'!$W148) -> 14400 | AF8: =AE8*AC8 -> 14400 | AH8: WR GTC Monitoring | AJ8: year | AL8: =NA() ->  | AM8: 0 | AN8: 0
B9: Survey inspection | D9: each | F9: =NA() ->  | G9: 0 | H9: 0 | J9: Survey inspection | L9: each | N9: =NA() ->  | O9: =IF(ISNA(N9),0,INDEX(IF(UPPER(RIGHT(N9,1))=Low,UnitCostLow, IF(UPPER(RIGHT(N9,1))=High,UnitCostHigh,UnitCostSpecified)),MATCH(UPPER(LEFT(N9,LEN(N9)-1)),CostCode,0))) -> 0 | P9: 0 | R9: Survey inspection | T9: each | V9: =NA() ->  | W9: =IF(ISNA(V9),0,INDEX(IF(UPPER(RIGHT(V9,1))=Low,UnitCostLow, IF(UPPER(RIGHT(V9,1))=High,UnitCostHigh,UnitCostSpecified)),MATCH(UPPER(LEFT(V9,LEN(V9)-1)),CostCode,0))) -> 0 | X9: =W9*U9 -> 0 | Z9: Survey inspection | AB9: each | AD9: =NA() ->  | AE9: =IF(ISNA(AD9),0,INDEX(IF(UPPER(RIGHT(AD9,1))=Low,UnitCostLow, IF(UPPER(RIGHT(AD9,1))=High,UnitCostHigh,UnitCostSpecified)),MATCH(UPPER(LEFT(AD9,LEN(AD9)-1)),CostCode,0))) -> 0 | AF9: =AE9*AC9 -> 0 | AH9: Survey inspection | AJ9: each | AL9: =NA() ->  | AM9: =IF(ISNA(AL9),0,INDEX(IF(UPPER(RIGHT(AL9,1))=Low,UnitCostLow, IF(UPPER(RIGHT(AL9,1))=High,UnitCostHigh,UnitCostSpecified)),MATCH(UPPER(LEFT(AL9,LEN(AL9)-1)),CostCode,0))) -> 0 | AN9: =AM9*AK9 -> 0
B10: Regulatory costs | D10: year | F10: =NA() ->  | G10: 0 | H10: 0 | J10: Regulatory costs | L10: year | N10: =NA() ->  | O10: 0 | P10: =O10*M10 -> 0 | R10: Regulatory costs* | T10: year | V10: =NA() ->  | W10: 0 | X10: 0 | Z10: Regulatory costs | AA10: annual reporting, management plans, progress reports (13 years) | AB10: year | AC10: 1 | AD10: Sabina | AE10: 25000 | AF10: 25000 | AH10: Regulatory costs | AJ10: each | AK10: 1 | AL10: RPTH | AM10: =IF(ISNA(AL10),0,INDEX(IF(UPPER(RIGHT(AL10,1))=Low,UnitCostLow, IF(UPPER(RIGHT(AL10,1))=High,UnitCostHigh,UnitCostSpecified)),MATCH(UPPER(LEFT(AL10,LEN(AL10)-1)),CostCode,0))) -> 20000 | AN10: =AM10*AK10 -> 20000
B11: Site water monitoring | D11: each | F11: =NA() ->  | G11: 0 | H11: 0 | J11: Site water monitoring | L11: each | N11: =NA() ->  | O11: 0 | P11: 0 | R11: Site water monitoring | T11: each | V11: =NA() ->  | W11: 0 | X11: =W11*U11 -> 0 | Z11: Site water monitoring | AA11: All pits and WR piles closure and post closure monitoring (13 years) | AB11: year | AC11: ='SBB Comp. Est.'!F150/13 -> 1 | AD11: Sabina | AE11: =SUM('SBB Comp. Est.'!$W150:$W157) -> 9120 | AF11: =AE11*AC11 -> 9120 | AH11: Site water monitoring | AJ11: year | AL11: =NA() ->  | AM11: 0 | AN11: 0
B12: - Active closure and flooding | D12: each | F12: =NA() ->  | G12: 0 | H12: 0 | J12: - Active closure and flooding | L12: each | N12: =NA() ->  | O12: 0 | P12: 0 | R12: - Active closure and flooding | T12: each | V12: =NA() ->  | W12: =IF(ISNA(V12),0,INDEX(IF(UPPER(RIGHT(V12,1))=Low,UnitCostLow, IF(UPPER(RIGHT(V12,1))=High,UnitCostHigh,UnitCostSpecified)),MATCH(UPPER(LEFT(V12,LEN(V12)-1)),CostCode,0))) -> 0 | X12: 0 | Z12: - Active closure and flooding | AB12: each | AD12: =NA() ->  | AE12: =IF(ISNA(AD12),0,INDEX(IF(UPPER(RIGHT(AD12,1))=Low,UnitCostLow, IF(UPPER(RIGHT(AD12,1))=High,UnitCostHigh,UnitCostSpecified)),MATCH(UPPER(LEFT(AD12,LEN(AD12)-1)),CostCode,0))) -> 0 | AF12: 0 | AH12: - Active closure and flooding | AJ12: each | AL12: =NA() ->  | AM12: =IF(ISNA(AL12),0,INDEX(IF(UPPER(RIGHT(AL12,1))=Low,UnitCostLow, IF(UPPER(RIGHT(AL12,1))=High,UnitCostHigh,UnitCostSpecified)),MATCH(UPPER(LEFT(AL12,LEN(AL12)-1)),CostCode,0))) -> 0 | AN12: =AM12*AK12 -> 0
B13: - Post pit flooding | D13: each | F13: =NA() ->  | G13: 0 | H13: 0 | J13: - Post pit flooding | L13: each | N13: =NA() ->  | O13: 0 | P13: 0 | R13: - Post pit flooding | T13: each | V13: =NA() ->  | W13: 0 | X13: 0 | Z13: - Post pit flooding | AB13: each | AD13: =NA() ->  | AE13: 0 | AF13: 0 | AH13: - Post pit flooding | AJ13: each | AL13: =NA() ->  | AM13: 0 | AN13: 0
B14: Wildlife Effects Monitoring Program (WEMP) | D14: year | F14: =NA() ->  | G14: 0 | H14: 0 | J14: Wildlife Effects Monitoring Program (WEMP) | L14: year | N14: =NA() ->  | O14: 0 | P14: =O14*M14 -> 0 | R14: Wildlife Effects Monitoring Program (WEMP) | S14: Aquatics - Non-contact water basins (10 years) | T14: year | U14: ='SBB Comp. Est.'!F159/10 -> 1 | V14: Sabina | W14: ='SBB Comp. Est.'!W159 -> 4800 | X14: =W14*U14 -> 4800 | Z14: Wildlife Effects Monitoring Program (WEMP) | AB14: year | AD14: =NA() ->  | AE14: =IF(ISNA(AD14),0,INDEX(IF(UPPER(RIGHT(AD14,1))=Low,UnitCostLow, IF(UPPER(RIGHT(AD14,1))=High,UnitCostHigh,UnitCostSpecified)),MATCH(UPPER(LEFT(AD14,LEN(AD14)-1)),CostCode,0))) -> 0 | AF14: =AE14*AC14 -> 0 | AH14: Wildlife Effects Monitoring Program (WEMP) | AJ14: year | AL14: =NA() ->  | AM14: 0 | AN14: 0
B15: Terrestrial Animal Monitoring | D15: year | F15: =NA() ->  | G15: 0 | H15: 0 | J15: Terrestrial Animal Monitoring | L15: year | N15: =NA() ->  | O15: 0 | P15: 0 | R15: Terrestrial Animal Monitoring | S15: Terrestrial Animal Monitoring (10 years) | T15: year | U15: ='SBB Comp. Est.'!F161/10 -> 1 | V15: Sabina | W15: ='SBB Comp. Est.'!W161 -> 24000 | X15: =W15*U15 -> 24000 | Z15: Terrestrial Animal Monitoring | AB15: year | AD15: =NA() ->  | AE15: 0 | AF15: 0 | AH15: Terrestrial Animal Monitoring | AJ15: year | AL15: =NA() ->  | AM15: 0 | AN15: 0
B16: Vegetation Monitoring | D16: each | F16: =NA() ->  | G16: 0 | H16: 0 | J16: Vegetation Monitoring | L16: each | N16: =NA() ->  | O16: =IF(ISNA(N16),0,INDEX(IF(UPPER(RIGHT(N16,1))=Low,UnitCostLow, IF(UPPER(RIGHT(N16,1))=High,UnitCostHigh,UnitCostSpecified)),MATCH(UPPER(LEFT(N16,LEN(N16)-1)),CostCode,0))) -> 0 | P16: 0 | R16: Vegetation Monitoring | T16: each | V16: =NA() ->  | W16: =IF(ISNA(V16),0,INDEX(IF(UPPER(RIGHT(V16,1))=Low,UnitCostLow, IF(UPPER(RIGHT(V16,1))=High,UnitCostHigh,UnitCostSpecified)),MATCH(UPPER(LEFT(V16,LEN(V16)-1)),CostCode,0))) -> 0 | X16: 0 | Z16: Vegetation Monitoring | AB16: each | AD16: =NA() ->  | AE16: =IF(ISNA(AD16),0,INDEX(IF(UPPER(RIGHT(AD16,1))=Low,UnitCostLow, IF(UPPER(RIGHT(AD16,1))=High,UnitCostHigh,UnitCostSpecified)),MATCH(UPPER(LEFT(AD16,LEN(AD16)-1)),CostCode,0))) -> 0 | AF16: 0 | AH16: Vegetation Monitoring | AJ16: each | AL16: =NA() ->  | AM16: 0 | AN16: 0
B17: Maintain gravel road surface | D17: each | F17: =NA() ->  | G17: 0 | H17: 0 | J17: Maintain gravel road surface | L17: each | N17: =NA() ->  | O17: =IF(ISNA(N17),0,INDEX(IF(UPPER(RIGHT(N17,1))=Low,UnitCostLow, IF(UPPER(RIGHT(N17,1))=High,UnitCostHigh,UnitCostSpecified)),MATCH(UPPER(LEFT(N17,LEN(N17)-1)),CostCode,0))) -> 0 | P17: =O17*M17 -> 0 | R17: Maintain gravel road surface | T17: year | V17: =NA() ->  | W17: 0 | X17: 0 | Z17: Maintain gravel road surface | AA17: maintence from closure to post-closure (13 years) | AB17: year | AC17: ='SBB Comp. Est.'!F121/13 -> 1 | AD17: Sabina | AE17: ='SBB Comp. Est.'!W121 -> 13650 | AF17: =AE17*AC17 -> 13650 | AH17: Maintain gravel road surface | AJ17: year | AL17: =NA() ->  | AM17: 0 | AN17: 0
B18: Maintain airstrip surface | D18: each | F18: =NA() ->  | G18: 0 | H18: 0 | J18: Maintain airstrip surface | L18: each | N18: =NA() ->  | O18: 0 | P18: 0 | R18: Maintain airstrip surface | T18: year | V18: =NA() ->  | W18: 0 | X18: 0 | Z18: Maintain airstrip surface | AA18: maintence from closure to post-closure (13 years) | AB18: year | AC18: ='SBB Comp. Est.'!F124/13 -> 1 | AD18: Sabina | AE18: ='SBB Comp. Est.'!W124 -> 3900 | AF18: =AE18*AC18 -> 3900 | AH18: Maintain airstrip surface | AJ18: year | AL18: =NA() ->  | AM18: 0 | AN18: 0
B19: Other | F19: =NA() ->  | G19: =IF(ISNA(F19),0,INDEX(IF(UPPER(RIGHT(F19,1))=Low,UnitCostLow, IF(UPPER(RIGHT(F19,1))=High,UnitCostHigh,UnitCostSpecified)),MATCH(UPPER(LEFT(F19,LEN(F19)-1)),CostCode,0))) -> 0 | H19: =G19*E19 -> 0 | J19: Other | N19: =NA() ->  | O19: =IF(ISNA(N19),0,INDEX(IF(UPPER(RIGHT(N19,1))=Low,UnitCostLow, IF(UPPER(RIGHT(N19,1))=High,UnitCostHigh,UnitCostSpecified)),MATCH(UPPER(LEFT(N19,LEN(N19)-1)),CostCode,0))) -> 0 | P19: =O19*M19 -> 0 | R19: Other | V19: =NA() ->  | W19: =IF(ISNA(V19),0,INDEX(IF(UPPER(RIGHT(V19,1))=Low,UnitCostLow, IF(UPPER(RIGHT(V19,1))=High,UnitCostHigh,UnitCostSpecified)),MATCH(UPPER(LEFT(V19,LEN(V19)-1)),CostCode,0))) -> 0 | X19: =W19*U19 -> 0 | Z19: Other | AD19: =NA() ->  | AE19: =IF(ISNA(AD19),0,INDEX(IF(UPPER(RIGHT(AD19,1))=Low,UnitCostLow, IF(UPPER(RIGHT(AD19,1))=High,UnitCostHigh,UnitCostSpecified)),MATCH(UPPER(LEFT(AD19,LEN(AD19)-1)),CostCode,0))) -> 0 | AF19: =AE19*AC19 -> 0 | AH19: Other - Site Access | AI19: Float plane access | AJ19: each | AK19: 1 | AL19: MWH | AM19: =IF(ISNA(AL19),0,INDEX(IF(UPPER(RIGHT(AL19,1))=Low,UnitCostLow, IF(UPPER(RIGHT(AL19,1))=High,UnitCostHigh,UnitCostSpecified)),MATCH(UPPER(LEFT(AL19,LEN(AL19)-1)),CostCode,0))) -> 9100 | AN19: =AM19*AK19 -> 9100
B20: COVER MAINTENANCE | J20: COVER MAINTENANCE | R20: COVER MAINTENANCE | Z20: COVER MAINTENANCE | AH20: COVER MAINTENANCE
B21: Repair erosion - infill gullies | D21: allow | F21: =NA() ->  | G21: =IF(ISNA(F21),0,INDEX(IF(UPPER(RIGHT(F21,1))=Low,UnitCostLow, IF(UPPER(RIGHT(F21,1))=High,UnitCostHigh,UnitCostSpecified)),MATCH(UPPER(LEFT(F21,LEN(F21)-1)),CostCode,0))) -> 0 | H21: =G21*E21 -> 0 | J21: Repair erosion - infill gullies | L21: allow | N21: =NA() ->  | O21: 0 | P21: =O21*M21 -> 0 | R21: Repair erosion - infill gullies | T21: allow | V21: =NA() ->  | W21: =IF(ISNA(V21),0,INDEX(IF(UPPER(RIGHT(V21,1))=Low,UnitCostLow, IF(UPPER(RIGHT(V21,1))=High,UnitCostHigh,UnitCostSpecified)),MATCH(UPPER(LEFT(V21,LEN(V21)-1)),CostCode,0))) -> 0 | X21: =W21*U21 -> 0 | Z21: Repair erosion - infill gullies | AB21: allow | AD21: =NA() ->  | AE21: =IF(ISNA(AD21),0,INDEX(IF(UPPER(RIGHT(AD21,1))=Low,UnitCostLow, IF(UPPER(RIGHT(AD21,1))=High,UnitCostHigh,UnitCostSpecified)),MATCH(UPPER(LEFT(AD21,LEN(AD21)-1)),CostCode,0))) -> 0 | AF21: =AE21*AC21 -> 0 | AH21: Repair erosion - infill gullies | AJ21: allow | AL21: =NA() ->  | AM21: =IF(ISNA(AL21),0,INDEX(IF(UPPER(RIGHT(AL21,1))=Low,UnitCostLow, IF(UPPER(RIGHT(AL21,1))=High,UnitCostHigh,UnitCostSpecified)),MATCH(UPPER(LEFT(AL21,LEN(AL21)-1)),CostCode,0))) -> 0 | AN21: =AM21*AK21 -> 0
B22: Repair erosion - upgrade diversion ditches | D22: allow | F22: =NA() ->  | G22: 0 | H22: 0 | J22: Repair erosion - upgrade diversion ditches | L22: allow | N22: =NA() ->  | O22: 0 | P22: 0 | R22: Repair erosion - upgrade diversion ditches | T22: allow | V22: =NA() ->  | W22: 0 | X22: 0 | Z22: Repair erosion - upgrade diversion ditches | AB22: allow | AD22: =NA() ->  | AE22: 0 | AF22: 0 | AH22: Repair erosion - upgrade diversion ditches | AJ22: allow | AL22: =NA() ->  | AM22: 0 | AN22: 0
B23: Remove problem vegetation | D23: allow | F23: =NA() ->  | G23: 0 | H23: 0 | J23: Remove problem vegetation | L23: allow | N23: =NA() ->  | O23: 0 | P23: 0 | R23: Remove problem vegetation | T23: allow | V23: =NA() ->  | W23: 0 | X23: 0 | Z23: Remove problem vegetation | AB23: allow | AD23: =NA() ->  | AE23: 0 | AF23: 0 | AH23: Remove problem vegetation | AJ23: allow | AL23: =NA() ->  | AM23: 0 | AN23: 0
B24: Repair animal damage | D24: allow | F24: =NA() ->  | G24: 0 | H24: 0 | J24: Repair animal damage | L24: allow | N24: =NA() ->  | O24: 0 | P24: 0 | R24: Repair animal damage | T24: allow | V24: =NA() ->  | W24: 0 | X24: 0 | Z24: Repair animal damage | AB24: allow | AD24: =NA() ->  | AE24: 0 | AF24: 0 | AH24: Repair animal damage | AJ24: allow | AL24: =NA() ->  | AM24: 0 | AN24: 0
B25: Repair/upgrade access controls | D25: allow | F25: =NA() ->  | G25: 0 | H25: 0 | J25: Repair/upgrade access controls | L25: allow | N25: =NA() ->  | O25: 0 | P25: 0 | R25: Repair/upgrade access controls | T25: allow | V25: =NA() ->  | W25: 0 | X25: 0 | Z25: Repair/upgrade access controls | AB25: allow | AD25: =NA() ->  | AE25: 0 | AF25: 0 | AH25: Repair/upgrade access controls | AJ25: allow | AL25: =NA() ->  | AM25: 0 | AN25: 0
B26: Other | F26: =NA() ->  | G26: 0 | H26: 0 | J26: Other | N26: =NA() ->  | O26: 0 | P26: 0 | R26: Other | V26: =NA() ->  | W26: 0 | X26: 0 | Z26: Other | AD26: =NA() ->  | AE26: 0 | AF26: 0 | AH26: Other | AL26: =NA() ->  | AM26: 0 | AN26: 0
B27: SPILLWAY MAINTENANCE | J27: SPILLWAY MAINTENANCE | R27: SPILLWAY MAINTENANCE | Z27: SPILLWAY MAINTENANCE | AH27: SPILLWAY MAINTENANCE
B28: Repair erosion | D28: m3 | F28: =NA() ->  | G28: =IF(ISNA(F28),0,INDEX(IF(UPPER(RIGHT(F28,1))=Low,UnitCostLow, IF(UPPER(RIGHT(F28,1))=High,UnitCostHigh,UnitCostSpecified)),MATCH(UPPER(LEFT(F28,LEN(F28)-1)),CostCode,0))) -> 0 | H28: =G28*E28 -> 0 | J28: Repair erosion | L28: m3 | N28: =NA() ->  | O28: 0 | P28: =O28*M28 -> 0 | R28: Repair erosion | T28: m3 | V28: =NA() ->  | W28: =IF(ISNA(V28),0,INDEX(IF(UPPER(RIGHT(V28,1))=Low,UnitCostLow, IF(UPPER(RIGHT(V28,1))=High,UnitCostHigh,UnitCostSpecified)),MATCH(UPPER(LEFT(V28,LEN(V28)-1)),CostCode,0))) -> 0 | X28: =W28*U28 -> 0 | Z28: Repair erosion | AB28: m3 | AD28: =NA() ->  | AE28: =IF(ISNA(AD28),0,INDEX(IF(UPPER(RIGHT(AD28,1))=Low,UnitCostLow, IF(UPPER(RIGHT(AD28,1))=High,UnitCostHigh,UnitCostSpecified)),MATCH(UPPER(LEFT(AD28,LEN(AD28)-1)),CostCode,0))) -> 0 | AF28: =AE28*AC28 -> 0 | AH28: Repair erosion | AJ28: m3 | AL28: =NA() ->  | AM28: =IF(ISNA(AL28),0,INDEX(IF(UPPER(RIGHT(AL28,1))=Low,UnitCostLow, IF(UPPER(RIGHT(AL28,1))=High,UnitCostHigh,UnitCostSpecified)),MATCH(UPPER(LEFT(AL28,LEN(AL28)-1)),CostCode,0))) -> 0 | AN28: =AM28*AK28 -> 0
B29: Clear spillway | D29: each | F29: =NA() ->  | G29: 0 | H29: =G29*E29 -> 0 | J29: Clear spillway | L29: each | N29: =NA() ->  | O29: 0 | P29: =O29*M29 -> 0 | R29: Clear spillway | T29: each | V29: =NA() ->  | W29: 0 | X29: =W29*U29 -> 0 | Z29: Clear spillway | AB29: each | AD29: =NA() ->  | AE29: 0 | AF29: =AE29*AC29 -> 0 | AH29: Clear spillway | AJ29: each | AL29: =NA() ->  | AM29: 0 | AN29: =AM29*AK29 -> 0
B30: CWTS MAINTENANCE | J30: CWTS MAINTENANCE | R30: CWTS MAINTENANCE | Z30: CWTS MAINTENANCE | AH30: CWTS MAINTENANCE
B31: Maintain flow, restore vegetation | D31: allow | F31: =NA() ->  | G31: =IF(ISNA(F31),0,INDEX(IF(UPPER(RIGHT(F31,1))=Low,UnitCostLow, IF(UPPER(RIGHT(F31,1))=High,UnitCostHigh,UnitCostSpecified)),MATCH(UPPER(LEFT(F31,LEN(F31)-1)),CostCode,0))) -> 0 | H31: =G31*E31 -> 0 | J31: Maintain flow, restore vegetation | L31: allow | N31: =NA() ->  | O31: =IF(ISNA(N31),0,INDEX(IF(UPPER(RIGHT(N31,1))=Low,UnitCostLow, IF(UPPER(RIGHT(N31,1))=High,UnitCostHigh,UnitCostSpecified)),MATCH(UPPER(LEFT(N31,LEN(N31)-1)),CostCode,0))) -> 0 | P31: =O31*M31 -> 0 | R31: Maintain flow, restore vegetation | T31: allow | V31: =NA() ->  | W31: =IF(ISNA(V31),0,INDEX(IF(UPPER(RIGHT(V31,1))=Low,UnitCostLow, IF(UPPER(RIGHT(V31,1))=High,UnitCostHigh,UnitCostSpecified)),MATCH(UPPER(LEFT(V31,LEN(V31)-1)),CostCode,0))) -> 0 | X31: =W31*U31 -> 0 | Z31: Maintain flow, restore vegetation | AB31: allow | AD31: =NA() ->  | AE31: =IF(ISNA(AD31),0,INDEX(IF(UPPER(RIGHT(AD31,1))=Low,UnitCostLow, IF(UPPER(RIGHT(AD31,1))=High,UnitCostHigh,UnitCostSpecified)),MATCH(UPPER(LEFT(AD31,LEN(AD31)-1)),CostCode,0))) -> 0 | AF31: =AE31*AC31 -> 0 | AH31: Maintain flow, restore vegetation | AJ31: allow | AL31: =NA() ->  | AM31: =IF(ISNA(AL31),0,INDEX(IF(UPPER(RIGHT(AL31,1))=Low,UnitCostLow, IF(UPPER(RIGHT(AL31,1))=High,UnitCostHigh,UnitCostSpecified)),MATCH(UPPER(LEFT(AL31,LEN(AL31)-1)),CostCode,0))) -> 0 | AN31: =AM31*AK31 -> 0
B32: POST-CLOSURE WATER TREATMENT | J32: POST-CLOSURE WATER TREATMENT | R32: POST-CLOSURE WATER TREATMENT | Z32: POST-CLOSURE WATER TREATMENT | AH32: POST-CLOSURE WATER TREATMENT
B33: Annual water treatment cost, from "Water Treatment" | C33: Treatment for Closure Period (7 years) | D33: LS | E33: 1 | F33: =NA() ->  | G33: =AnnualTreat1Cost -> 953571.8101 | H33: =G33*E33 -> 953571.8101 | J33: Annual water treatment cost, from "Water Treatment" | L33: LS | N33: =NA() ->  | O33: =IF(ISNA(N33),0,INDEX(IF(UPPER(RIGHT(N33,1))=Low,UnitCostLow, IF(UPPER(RIGHT(N33,1))=High,UnitCostHigh,UnitCostSpecified)),MATCH(UPPER(LEFT(N33,LEN(N33)-1)),CostCode,0))) -> 0 | P33: =O33*M33 -> 0 | R33: Annual water treatment cost, from "Water Treatment" | T33: LS | V33: =NA() ->  | W33: 0 | X33: =W33*U33 -> 0 | Z33: Annual water treatment cost, from "Water Treatment" | AB33: LS | AD33: =NA() ->  | AE33: =IF(ISNA(AD33),0,INDEX(IF(UPPER(RIGHT(AD33,1))=Low,UnitCostLow, IF(UPPER(RIGHT(AD33,1))=High,UnitCostHigh,UnitCostSpecified)),MATCH(UPPER(LEFT(AD33,LEN(AD33)-1)),CostCode,0))) -> 0 | AF33: =AE33*AC33 -> 0 | AH33: Annual water treatment cost, from "Water Treatment" | AJ33: LS | AL33: =NA() ->  | AM33: =IF(ISNA(AL33),0,INDEX(IF(UPPER(RIGHT(AL33,1))=Low,UnitCostLow, IF(UPPER(RIGHT(AL33,1))=High,UnitCostHigh,UnitCostSpecified)),MATCH(UPPER(LEFT(AL33,LEN(AL33)-1)),CostCode,0))) -> 0 | AN33: =AM33*AK33 -> 0
B35: Subtotal, Annual post-closure costs | H35: =SUM(H5:H34)+0.0001 -> 953571.8102 | J35: Subtotal, Annual post-closure costs | P35: =SUM(P5:P34)+0.0001 -> 20000.0001 | R35: Subtotal, Annual post-closure costs | X35: =SUM(X5:X34)+0.0001 -> 28800.0001 | Z35: Subtotal, Annual post-closure costs | AF35: =SUM(AF5:AF34)+0.0001 -> 78370.0001 | AH35: Subtotal, Annual post-closure costs | AN35: =SUM(AN5:AN34)+0.0001 -> 69100.0001
B36: Discount rate for calculation of net present value of post-closure cost, % | F36: 0.03 | J36: Discount rate for calculation of net present value of post-closure cost, % | N36: 0.03 | R36: Discount rate for calculation of net present value of post-closure cost, % | V36: 0.03 | Z36: Discount rate for calculation of net present value of post-closure cost, % | AD36: 0.03 | AH36: Discount rate for calculation of net present value of post-closure cost, % | AL36: 0.03
B37: Number of years of post-closure activity | F37: 7 | G37: years | J37: Number of years of post-closure activity | N37: 8 | O37: years | R37: Number of years of post-closure activity | V37: 10 | W37: years | Z37: Number of years of post-closure activity | AD37: 13 | AE37: years | AH37: Number of years of post-closure activity | AL37: See Long Term | AM37: years
B38: Present Value of payment stream | H38: =PV(F36,F37,H35)*-1 -> 5941022.196 | J38: Present Value of payment stream | P38: =PV(N36,N37,P35)*-1 -> 140393.8445 | R38: Present Value of payment stream | X38: =PV(V36,V37,X35)*-1 -> 245669.8426 | Z38: Present Value of payment stream | AF38: =PV(AD36,AD37,AF35)*-1 -> 833461.4506 | AH38: Present Value of payment stream | AN38: ='LongTerm Monitoring'!F47 -> 407695.862
B40: Combined NPV of payment stream | H40: =P38+X38+AF38+H38+AN38 -> 7568243.195

Sheet LongTerm Monitoring
B1: Annual Discout Rate: | D1: 0.03
A2: Project Phase | B2: Project Year | C2: Closure Year | D2: Post-Closure Monitoring Year | E2: Long Term Monitoring (GTCs, physical, water)
E3: One Time Cost | F3: Yearly Total NPV
A4: Operations | B4: 1 | F4: =E4/(1+$D$1)^($C4-1) -> 0
B5: =B4+1 -> 2 | F5: 0
B6: =B5+1 -> 3 | F6: 0
B7: 4 | F7: 0
B8: 5 | F8: 0
B9: 6 | F9: 0
B10: 7 | F10: 0
B11: 8 | F11: 0
B12: 9 | F12: 0
B13: 10 | F13: 0
A14: Active Closure | B14: 11 | C14: 1 | F14: 0
B15: 12 | C15: =C14+1 -> 2 | F15: 0
A16: Passive Closure | B16: 13 | C16: =C15+1 -> 3 | F16: 0
B17: 14 | C17: 4 | F17: 0
B18: 15 | C18: 5 | F18: 0
B19: 16 | C19: 6 | F19: 0
B20: 17 | C20: 7 | F20: 0
B21: 18 | C21: 8 | F21: 0
A22: Post Closure | B22: 19 | C22: 9 | D22: 1 | E22: =PostClosure!AN$35 -> 69100.0001 | F22: 54548.17817
B23: 20 | C23: 10 | D23: =D22+1 -> 2 | E23: =PostClosure!AN$35 -> 69100.0001 | F23: 52959.39628
B24: 21 | C24: 11 | D24: =D23+1 -> 3 | E24: =PostClosure!AN$35 -> 69100.0001 | F24: 51416.88959
B25: 22 | C25: 12 | D25: 4 | E25: =PostClosure!AN$35 -> 69100.0001 | F25: 49919.31029
B26: 23 | C26: 13 | D26: 5 | E26: =PostClosure!AN$35 -> 69100.0001 | F26: 48465.34979
A27: Beyond Post Closure | B27: 24 | C27: 14 | D27: 6 | F27: 0
B28: 25 | C28: 15 | D28: 7 | E28: =PostClosure!AN$35 -> 69100.0001 | F28: 45683.24045
B29: 26 | C29: 16 | D29: 8 | F29: 0
B30: 27 | C30: 17 | D30: 9 | F30: 0
B31: 28 | C31: 18 | D31: 10 | E31: =PostClosure!AN$35 -> 69100.0001 | F31: 41806.63647
B32: 29 | C32: 19 | D32: 11 | F32: 0
B33: 30 | C33: 20 | D33: 12 | F33: 0
B34: 31 | C34: 21 | D34: 13 | F34: 0
B35: 32 | C35: 22 | D35: 14 | F35: 0
B36: 33 | C36: 23 | D36: 15 | E36: =PostClosure!AN$35 -> 69100.0001 | F36: 36062.77186
B37: 34 | C37: 24 | D37: 16 | F37: 0
B38: 35 | C38: 25 | D38: 17 | F38: 0
B39: 36 | C39: 26 | D39: 18 | F39: 0
B40: 37 | C40: 27 | D40: 19 | F40: 0
B41: 38 | C41: 28 | D41: 20 | F41: 0
B42: 39 | C42: 29 | D42: 21 | F42: 0
B43: 40 | C43: 30 | D43: 22 | F43: 0
B44: 41 | C44: 31 | D44: 23 | F44: 0
B45: 42 | C45: 32 | D45: 24 | F45: 0
B46: 43 | C46: 33 | D46: 25 | E46: =PostClosure!AN$35 -> 69100.0001 | F46: 26834.0891
B47: Net Present Value: | F47: =SUM(F4:F46) -> 407695.862

Sheet Mobilization
A1: 1 | B1: Mobilization/Demobilization:
B3: ACTIVITY/MATERIAL | C3: Notes | D3: Units | E3: Quantity | F3: Cost Code | G3: Unit Cost | H3: Cost | J3: ICRP Section | K3: Comments
B4: MOBILIZE HEAVY EQUIPMENT | C4: Assumes mining equipment on abandoned mine site is operable and available.
B5: Light duty vehicles | C5: Purchase pickups and Vans | D5: each | F5: =NA() ->  | G5: =IF(ISNA(F5),0,INDEX(IF(UPPER(RIGHT(F5,1))=Low,UnitCostLow, IF(UPPER(RIGHT(F5,1))=High,UnitCostHigh,UnitCostSpecified)),MATCH(UPPER(LEFT(F5,LEN(F5)-1)),CostCode,0))) -> 0 | H5: =G5*E5 -> 0
B6: Telehandlers | C6: Purchase (standby) | D6: each | F6: =NA() ->  | G6: 0 | H6: 0
B7: Excavators | C7: Purchase (320 Ex) | D7: each | F7: =NA() ->  | G7: 0 | H7: 0
B8: Dump trucks | C8: Purchase 30T | D8: each | F8: =NA() ->  | G8: 0 | H8: 0
B9: Dozers | C9: Purchase (D6T) | D9: each | F9: =NA() ->  | G9: 0 | H9: 0
B10: Grader | C10: Purchase (140M) | D10: each | F10: =NA() ->  | G10: 0 | H10: 0
B11: Demolition shears | C11: For a 320 Exc | D11: each | F11: =NA() ->  | G11: =IF(ISNA(F11),0,INDEX(IF(UPPER(RIGHT(F11,1))=Low,UnitCostLow, IF(UPPER(RIGHT(F11,1))=High,UnitCostHigh,UnitCostSpecified)),MATCH(UPPER(LEFT(F11,LEN(F11)-1)),CostCode,0))) -> 0 | H11: =G11*E11 -> 0
B12: Crane | C12: Purchase | D12: each | F12: =NA() ->  | G12: =IF(ISNA(F12),0,INDEX(IF(UPPER(RIGHT(F12,1))=Low,UnitCostLow, IF(UPPER(RIGHT(F12,1))=High,UnitCostHigh,UnitCostSpecified)),MATCH(UPPER(LEFT(F12,LEN(F12)-1)),CostCode,0))) -> 0 | H12: =G12*E12 -> 0
B13: Loader | C13: Purchase (966 Loader) | D13: each | F13: =NA() ->  | G13: =IF(ISNA(F13),0,INDEX(IF(UPPER(RIGHT(F13,1))=Low,UnitCostLow, IF(UPPER(RIGHT(F13,1))=High,UnitCostHigh,UnitCostSpecified)),MATCH(UPPER(LEFT(F13,LEN(F13)-1)),CostCode,0))) -> 0 | H13: 0
B14: Manlifts | C14: Ourchase (standby) | D14: each | F14: =NA() ->  | G14: =IF(ISNA(F14),0,INDEX(IF(UPPER(RIGHT(F14,1))=Low,UnitCostLow, IF(UPPER(RIGHT(F14,1))=High,UnitCostHigh,UnitCostSpecified)),MATCH(UPPER(LEFT(F14,LEN(F14)-1)),CostCode,0))) -> 0 | H14: 0
B15: Small Equipment | D15: LS | F15: =NA() ->  | G15: =IF(ISNA(F15),0,INDEX(IF(UPPER(RIGHT(F15,1))=Low,UnitCostLow, IF(UPPER(RIGHT(F15,1))=High,UnitCostHigh,UnitCostSpecified)),MATCH(UPPER(LEFT(F15,LEN(F15)-1)),CostCode,0))) -> 0 | H15: 0
B16: Compactor | D16: each | F16: =NA() ->  | G16: =IF(ISNA(F16),0,INDEX(IF(UPPER(RIGHT(F16,1))=Low,UnitCostLow, IF(UPPER(RIGHT(F16,1))=High,UnitCostHigh,UnitCostSpecified)),MATCH(UPPER(LEFT(F16,LEN(F16)-1)),CostCode,0))) -> 0 | H16: =G16*E16 -> 0
B17: MOBILIZE MISC. EQUIPMENT | C17: Assumes mining equipment on abandoned mine site is operable and available.
B18: Pump shipping | D18: each | F18: =NA() ->  | G18: =IF(ISNA(F18),0,INDEX(IF(UPPER(RIGHT(F18,1))=Low,UnitCostLow, IF(UPPER(RIGHT(F18,1))=High,UnitCostHigh,UnitCostSpecified)),MATCH(UPPER(LEFT(F18,LEN(F18)-1)),CostCode,0))) -> 0 | H18: =G18*E18 -> 0
B19: Pipe shipping | D19: m | F19: =NA() ->  | G19: =IF(ISNA(F19),0,INDEX(IF(UPPER(RIGHT(F19,1))=Low,UnitCostLow, IF(UPPER(RIGHT(F19,1))=High,UnitCostHigh,UnitCostSpecified)),MATCH(UPPER(LEFT(F19,LEN(F19)-1)),CostCode,0))) -> 0 | H19: =G19*E19 -> 0
B20: Minor tools and equipment | D20: allow | F20: =NA() ->  | G20: =IF(ISNA(F20),0,INDEX(IF(UPPER(RIGHT(F20,1))=Low,UnitCostLow, IF(UPPER(RIGHT(F20,1))=High,UnitCostHigh,UnitCostSpecified)),MATCH(UPPER(LEFT(F20,LEN(F20)-1)),CostCode,0))) -> 0 | H20: =G20*E20 -> 0
B21: Truck tires | D21: allow | F21: =NA() ->  | G21: =IF(ISNA(F21),0,INDEX(IF(UPPER(RIGHT(F21,1))=Low,UnitCostLow, IF(UPPER(RIGHT(F21,1))=High,UnitCostHigh,UnitCostSpecified)),MATCH(UPPER(LEFT(F21,LEN(F21)-1)),CostCode,0))) -> 0 | H21: =G21*E21 -> 0
B22: Other | F22: =NA() ->  | G22: =IF(ISNA(F22),0,INDEX(IF(UPPER(RIGHT(F22,1))=Low,UnitCostLow, IF(UPPER(RIGHT(F22,1))=High,UnitCostHigh,UnitCostSpecified)),MATCH(UPPER(LEFT(F22,LEN(F22)-1)),CostCode,0))) -> 0 | H22: 0
B23: MOBILIZE CAMP
B24: Build 20 Person Camp | C24: Goose Closure Camp | D24: LS | E24: ='SBB Comp. Est.'!F109 -> 1 | F24: Sabina | G24: ='SBB Comp. Est.'!W116 -> 19250 | H24: =G24*E24 -> 19250
B25: Build 20 Person Power Plant | C25: Goose Closure Camp | D25: LS | E25: ='SBB Comp. Est.'!F110 -> 1 | F25: Sabina | G25: ='SBB Comp. Est.'!W117 -> 19250 | H25: 19250
B26: Reclamation activities | D26: allow | F26: =NA() ->  | G26: =IF(ISNA(F26),0,INDEX(IF(UPPER(RIGHT(F26,1))=Low,UnitCostLow, IF(UPPER(RIGHT(F26,1))=High,UnitCostHigh,UnitCostSpecified)),MATCH(UPPER(LEFT(F26,LEN(F26)-1)),CostCode,0))) -> 0 | H26: =G26*E26 -> 0
B27: Long term reclamation activities (eg pump flooding) | D27: allow | F27: =NA() ->  | G27: =IF(ISNA(F27),0,INDEX(IF(UPPER(RIGHT(F27,1))=Low,UnitCostLow, IF(UPPER(RIGHT(F27,1))=High,UnitCostHigh,UnitCostSpecified)),MATCH(UPPER(LEFT(F27,LEN(F27)-1)),CostCode,0))) -> 0 | H27: =G27*E27 -> 0
B28: WORKER ACCOMODATIONS
B29: Camp operation | D29: mandays | E29: ='SBB Comp. Est.'!F118 -> 12000 | F29: Sabina | G29: ='SBB Comp. Est.'!W118 -> 110 | H29: =G29*E29 -> 1320000
B30: Reclamation activities | D30: manmonths | F30: =NA() ->  | G30: =IF(ISNA(F30),0,INDEX(IF(UPPER(RIGHT(F30,1))=Low,UnitCostLow, IF(UPPER(RIGHT(F30,1))=High,UnitCostHigh,UnitCostSpecified)),MATCH(UPPER(LEFT(F30,LEN(F30)-1)),CostCode,0))) -> 0 | H30: =G30*E30 -> 0
B31: Long term reclamation activities (eg pump flooding) | D31: manmonths | F31: =NA() ->  | G31: =IF(ISNA(F31),0,INDEX(IF(UPPER(RIGHT(F31,1))=Low,UnitCostLow, IF(UPPER(RIGHT(F31,1))=High,UnitCostHigh,UnitCostSpecified)),MATCH(UPPER(LEFT(F31,LEN(F31)-1)),CostCode,0))) -> 0 | H31: =G31*E31 -> 0
B32: MOBILIZE FUEL
B33: Fuel freight - reclamation activities | D33: litre | F33: =NA() ->  | G33: =IF(ISNA(F33),0,INDEX(IF(UPPER(RIGHT(F33,1))=Low,UnitCostLow, IF(UPPER(RIGHT(F33,1))=High,UnitCostHigh,UnitCostSpecified)),MATCH(UPPER(LEFT(F33,LEN(F33)-1)),CostCode,0))) -> 0 | H33: =G33*E33 -> 0
B34: Fuel freight - long term reclamation activities | D34: litre | F34: =NA() ->  | G34: =IF(ISNA(F34),0,INDEX(IF(UPPER(RIGHT(F34,1))=Low,UnitCostLow, IF(UPPER(RIGHT(F34,1))=High,UnitCostHigh,UnitCostSpecified)),MATCH(UPPER(LEFT(F34,LEN(F34)-1)),CostCode,0))) -> 0 | H34: =G34*E34 -> 0
B35: Oil & Other | D35: litre | F35: =NA() ->  | G35: =IF(ISNA(F35),0,INDEX(IF(UPPER(RIGHT(F35,1))=Low,UnitCostLow, IF(UPPER(RIGHT(F35,1))=High,UnitCostHigh,UnitCostSpecified)),MATCH(UPPER(LEFT(F35,LEN(F35)-1)),CostCode,0))) -> 0 | H35: =G35*E35 -> 0
B36: Fuel freight accomodations | D36: litre | F36: =NA() ->  | G36: =IF(ISNA(F36),0,INDEX(IF(UPPER(RIGHT(F36,1))=Low,UnitCostLow, IF(UPPER(RIGHT(F36,1))=High,UnitCostHigh,UnitCostSpecified)),MATCH(UPPER(LEFT(F36,LEN(F36)-1)),CostCode,0))) -> 0 | H36: =G36*E36 -> 0
B37: GENERAL CONSTRUCTION INDIRECT
B38: Tooling, consumables, office & safety supplies | C38: covered in Summary tab indirects | D38: mandays | F38: =NA() ->  | G38: =IF(ISNA(F38),0,INDEX(IF(UPPER(RIGHT(F38,1))=Low,UnitCostLow, IF(UPPER(RIGHT(F38,1))=High,UnitCostHigh,UnitCostSpecified)),MATCH(UPPER(LEFT(F38,LEN(F38)-1)),CostCode,0))) -> 0 | H38: =G38*E38 -> 0
B39: DEMOBILIZE HEAVY EQUIPMENT
B40: Excavators | D40: km | F40: =NA() ->  | G40: =IF(ISNA(F40),0,INDEX(IF(UPPER(RIGHT(F40,1))=Low,UnitCostLow, IF(UPPER(RIGHT(F40,1))=High,UnitCostHigh,UnitCostSpecified)),MATCH(UPPER(LEFT(F40,LEN(F40)-1)),CostCode,0))) -> 0 | H40: =G40*E40 -> 0
B41: Dump trucks | D41: km | F41: =NA() ->  | G41: =IF(ISNA(F41),0,INDEX(IF(UPPER(RIGHT(F41,1))=Low,UnitCostLow, IF(UPPER(RIGHT(F41,1))=High,UnitCostHigh,UnitCostSpecified)),MATCH(UPPER(LEFT(F41,LEN(F41)-1)),CostCode,0))) -> 0 | H41: 0
B42: Dozers | D42: km | F42: =NA() ->  | G42: 0 | H42: 0
B43: Demolition shears | D43: km | F43: =NA() ->  | G43: 0 | H43: 0
B44: Crane | D44: km | F44: =NA() ->  | G44: 0 | H44: 0
B45: Loader | D45: km | F45: =NA() ->  | G45: =IF(ISNA(F45),0,INDEX(IF(UPPER(RIGHT(F45,1))=Low,UnitCostLow, IF(UPPER(RIGHT(F45,1))=High,UnitCostHigh,UnitCostSpecified)),MATCH(UPPER(LEFT(F45,LEN(F45)-1)),CostCode,0))) -> 0 | H45: =G45*E45 -> 0
B46: Compactor | D46: each | F46: =NA() ->  | G46: =IF(ISNA(F46),0,INDEX(IF(UPPER(RIGHT(F46,1))=Low,UnitCostLow, IF(UPPER(RIGHT(F46,1))=High,UnitCostHigh,UnitCostSpecified)),MATCH(UPPER(LEFT(F46,LEN(F46)-1)),CostCode,0))) -> 0 | H46: =G46*E46 -> 0
B47: Light duty vehicles | D47: km | F47: =NA() ->  | G47: 0 | H47: 0
B48: Other | D48: km | F48: =NA() ->  | G48: 0 | H48: 0
B49: DEMOBILIZE CAMP
B50: Food and Freight | D50: kg | E50: ='SBB Comp. Est.'!F165 -> 27600 | F50: Sabina | G50: ='SBB Comp. Est.'!W165 -> 12 | H50: =G50*E50 -> 331200
B51: Freight | D51: Lot | E51: ='SBB Comp. Est.'!F166 -> 1 | F51: Sabina | G51: ='SBB Comp. Est.'!W166 -> 500000 | H51: 500000
B52: Mobilization | D52: tonnes | E52: ='SBB Comp. Est.'!F167 -> 500 | F52: Sabina | G52: ='SBB Comp. Est.'!U167 -> 1500 | H52: =G52*E52 -> 750000
B53: MOBILZE & DEMOBILIZE WORKERS
B54: Crew travel time - inbound & outbound | C54: 16 manhours per rotation | D54: manhours | E54: =(E55+E56)*16 -> 6864 | F54: lab-sh | G54: =Unit_Costs!G81 -> 49.6 | H54: =G54*E54 -> 340454.4
B55: Crew transportation - in& outbound from Yellowknife | C55: 28 day rotations - 12,000 man days - 2/3 | D55: each | E55: ='SBB Comp. Est.'!F172*2/3 -> 286 | F55: Sabina | G55: ='SBB Comp. Est.'!W172 -> 572.4555556 | H55: =G55*E55 -> 163722.2889
B56: Crew transportation - in& outbound from south | C56: 28 day rotations - 12,000 man days - 1/3 | D56: each | E56: ='SBB Comp. Est.'!F172*1/3 -> 143 | F56: Sabina | G56: ='SBB Comp. Est.'!W172+550 -> 1122.455556 | H56: =G56*E56 -> 160511.1444
B57: WINTER ROAD
B58: Construction and operation | C58: Assumes construction and maintance of 2-160 km winter ice roads; once during Active Closure and once in approximately Year 18. | D58: km | E58: =160*2 -> 320 | F58: WRCL | G58: =IF(ISNA(F58),0,INDEX(IF(UPPER(RIGHT(F58,1))=Low,UnitCostLow, IF(UPPER(RIGHT(F58,1))=High,UnitCostHigh,UnitCostSpecified)),MATCH(UPPER(LEFT(F58,LEN(F58)-1)),CostCode,0))) -> 2000 | H58: =G58*E58 -> 640000 | J58: Section 8
B59: Limited winter use | D59: km | F59: =NA() ->  | G59: =IF(ISNA(F59),0,INDEX(IF(UPPER(RIGHT(F59,1))=Low,UnitCostLow, IF(UPPER(RIGHT(F59,1))=High,UnitCostHigh,UnitCostSpecified)),MATCH(UPPER(LEFT(F59,LEN(F59)-1)),CostCode,0))) -> 0 | H59: =G59*E59 -> 0
B60: Winter road tarriff | D60: km | F60: =NA() ->  | G60: =IF(ISNA(F60),0,INDEX(IF(UPPER(RIGHT(F60,1))=Low,UnitCostLow, IF(UPPER(RIGHT(F60,1))=High,UnitCostHigh,UnitCostSpecified)),MATCH(UPPER(LEFT(F60,LEN(F60)-1)),CostCode,0))) -> 0 | H60: =G60*E60 -> 0
G61: Total | H61: =SUM(H5:H60)+0.0001 -> 4244387.833

Sheet SBB Comp. Est.
A1: Sabina Closure Component Estimating
H3: Labour | M3: Material | O3: Fixed Equipment | Q3: Mobile Equip | S3: Const Equip Use | U3: Other | W3: Total
A4: Code | B4: Description | C4: NOTES | D4: EQUIPMENT NUMBER | E4: ESTIMATE SOURCE DOCUMENT | F4: Qty | G4: Unit of Measure | H4: Unit Man-hrs | I4: Prod Fact | J4: Total Man-hrs | K4: Unit Cost | L4: Total Cost | M4: Unit Cost | N4: Total Cost | O4: Unit Cost | P4: Total Cost | Q4: Unit Cost | R4: Total Cost | S4: Unit Cost | T4: Total Cost | U4: Unit Cost | V4: Total Cost | W4: Unit Cost | X4: Total Cost
B5: Open Pit Closure
B6: Place Boulder Fence
B7: Umwelt Open Pit | E7: x | F7: 1635 | G7: m | H7: 0.06 | I7: 1 | J7: =F7*H7*I7 -> 98.1 | K7: 95 | L7: =J7*K7 -> 9319.5 | M7: 0 | N7: =F7*M7 -> 0 | O7: 0 | P7: =F7*O7 -> 0 | Q7: 0 | R7: =F7*Q7 -> 0 | S7: 175 | T7: =S7*J7 -> 17167.5 | V7: =$F7*U7 -> 0 | W7: =IF(F7>0,X7/F7,0) -> 16.2 | X7: =L7+N7+P7+R7+T7+V7 -> 26487
B8: Echo open pit | E8: x | F8: 750 | G8: m | H8: 0.06 | I8: 1 | J8: =F8*H8*I8 -> 45 | K8: 95 | L8: 4275 | M8: 0 | N8: 0 | O8: 0 | P8: 0 | Q8: 0 | R8: 0 | S8: 175 | T8: =S8*J8 -> 7875 | V8: 0 | W8: 16.2 | X8: 12150
B9: Goose open pit | E9: x | F9: 1900 | G9: m | H9: 0.06 | I9: 1 | J9: 114 | K9: 95 | L9: 10830 | M9: 0 | N9: 0 | O9: 0 | P9: 0 | Q9: 0 | R9: 0 | S9: 175 | T9: 19950 | V9: 0 | W9: 16.2 | X9: 30780
B10: Llama open pit | C10: Permieter needed only where pit edge will not abute the final flooded lake footprint. i.e. 400m length. | E10: x | F10: 400 | G10: m | H10: 0.06 | I10: 1 | J10: =F10*H10*I10 -> 24 | K10: 95 | L10: =J10*K10 -> 2280 | M10: 0 | N10: =F10*M10 -> 0 | O10: 0 | P10: =F10*O10 -> 0 | Q10: 0 | R10: =F10*Q10 -> 0 | S10: 175 | T10: =S10*J10 -> 4200 | V10: =$F10*U10 -> 0 | W10: =IF(F10>0,X10/F10,0) -> 16.2 | X10: =L10+N10+P10+R10+T10+V10 -> 6480
B11: Remove Pump and Pipeline
B12: Umwelt pit sump | C12: Occurs during Operations | E12: x | F12: 1740 | G12: m | H12: 0.04 | I12: 1 | J12: =F12*H12*I12 -> 69.6 | K12: 95 | L12: =J12*K12 -> 6612 | M12: 0 | N12: =F12*M12 -> 0 | O12: 0 | P12: =F12*O12 -> 0 | Q12: 0 | R12: =F12*Q12 -> 0 | S12: 155 | T12: =S12*J12 -> 10788 | V12: 0 | W12: =IF(F12>0,X12/F12,0) -> 10 | X12: =L12+N12+P12+R12+T12+V12 -> 17400
B13: Llama pit sump | C13: Occurs during Operations | E13: x | F13: 2850 | G13: m | H13: 0.04 | I13: 1 | J13: 114 | K13: 95 | L13: 10830 | M13: 0 | N13: 0 | O13: 0 | P13: 0 | Q13: 0 | R13: 0 | S13: 155 | T13: =S13*J13 -> 17670 | V13: 0 | W13: 10 | X13: 28500
B14: Goose pit sump | E14: x | F14: 4325 | G14: m | H14: 0.04 | I14: 1 | J14: 173 | K14: 95 | L14: 16435 | M14: 0 | N14: 0 | O14: 0 | P14: 0 | Q14: 0 | R14: 0 | S14: 155 | T14: 26815 | V14: 0 | W14: 10 | X14: 43250
B15: Echo pit sump | C15: Occurs during Operations | E15: x | F15: 820 | G15: m | H15: 0.04 | I15: 1 | J15: 32.8 | K15: 95 | L15: 3116 | M15: 0 | N15: 0 | O15: 0 | P15: 0 | Q15: 0 | R15: 0 | S15: 155 | T15: 5084 | V15: 0 | W15: 10 | X15: 8200
B16: Breech Pits into Receiving Waters
B17: Umwelt open pit | E17: x | F17: 1200 | G17: m3 | H17: 0.12 | I17: 1 | J17: =F17*H17*I17 -> 144 | L17: =J17*K17 -> 0 | M17: 0 | N17: =F17*M17 -> 0 | O17: 0 | P17: =F17*O17 -> 0 | Q17: 0 | R17: =F17*Q17 -> 0 | S17: 5 | T17: =S17*F17 -> 6000 | V17: 0 | W17: =IF(F17>0,X17/F17,0) -> 5 | X17: =L17+N17+P17+R17+T17+V17 -> 6000
B18: Llama open pit | C18: Natural drainage connection | E18: x | F18: 0 | G18: m3 | H18: 0.12 | I18: 1 | J18: 0 | L18: 0 | M18: 0 | N18: 0 | O18: 0 | P18: 0 | Q18: 0 | R18: 0 | S18: 5 | T18: 0 | V18: 0 | W18: 0 | X18: =L18+N18+P18+R18+T18+V18 -> 0
B19: Echo open pit | C19: Natural drainage connection | E19: x | F19: 0 | G19: m3 | H19: 0.12 | I19: 1 | J19: 0 | L19: 0 | M19: 0 | N19: 0 | O19: 0 | P19: 0 | Q19: 0 | R19: 0 | S19: 5 | T19: 0 | V19: 0 | W19: 0 | X19: 0
B20: Goose open pit | E20: x | F20: 600 | G20: m3 | H20: 0.12 | I20: 1 | J20: 72 | L20: 0 | M20: 0 | N20: 0 | O20: 0 | P20: 0 | Q20: 0 | R20: 0 | S20: 5 | T20: 3000 | V20: 0 | W20: 5 | X20: 3000
B21: Landfill Mobile Equipment
B22: Goose Site Mobile Equipment | E22: x | F22: 41 | G22: units | H22: 24 | I22: 1 | J22: 984 | K22: 95 | L22: 93480 | M22: 0 | N22: 0 | O22: 0 | P22: 0 | Q22: 0 | R22: 0 | S22: 0 | T22: 0 | V22: 0 | W22: 2280 | X22: 93480
B23: Underground Closure
B24: Saline Water Pond (SWP) / WTP
B25: Relocate pipeline to Umwelt UG from Llama UG | E25: x | F25: 800 | G25: m | H25: 0.04 | I25: 1 | J25: 32 | K25: 95 | L25: =J25*K25 -> 3040 | M25: 0 | N25: =F25*M25 -> 0 | O25: 0 | P25: =F25*O25 -> 0 | Q25: 0 | R25: =F25*Q25 -> 0 | S25: 155 | T25: =S25*J25 -> 4960 | V25: =$F25*U25 -> 0 | W25: =IF(F25>0,X25/F25,0) -> 10 | X25: =L25+N25+P25+R25+T25+V25 -> 8000
B26: Dewater SWP to Umwelt UG | E26: x | F26: 763134 | G26: m3 | H26: 1 | I26: 1 | J26: 153 | K26: 95 | L26: =J26*K26 -> 14535 | M26: 0 | N26: =F26*M26 -> 0 | O26: 0 | P26: =F26*O26 -> 0 | Q26: 0 | R26: =F26*Q26 -> 0 | T26: =S26*250 -> 0 | U26: 0.11 | V26: =$F26*U26 -> 83944.74 | W26: =IF(F26>0,X26/F26,0) -> 0.1290464584 | X26: =L26+N26+P26+R26+T26+V26 -> 98479.74
B27: Decommission SWP to Umwelt UG pipeline | E27: x | F27: 1200 | G27: m | H27: 0.04 | I27: 1 | J27: =H27*I27*F27 -> 48 | K27: 95 | L27: 4560 | M27: 0 | N27: 0 | O27: 0 | P27: 0 | Q27: 0 | R27: 0 | S27: 155 | T27: =S27*J27 -> 7440 | V27: 0 | W27: =IF(F27>0,X27/F27,0) -> 10 | X27: 12000
B28: Adjust pipeline to route to Llama UG | C28: Completed during Operations | E28: x | F28: 500 | G28: m | H28: =0.03 -> 0.03 | I28: 1 | J28: =F28*H28*I28+50 -> 65 | K28: 95 | L28: 6175 | M28: 0 | N28: 0 | O28: 0 | P28: 0 | Q28: 0 | R28: 0 | T28: 0 | V28: 0 | W28: =IF(F28>0,X28/F28,0) -> 12.35 | X28: 6175
B29: Dewater SWP to Llama UG | E29: x | F29: 324234 | G29: m3 | I29: 1 | J29: 80 | K29: 95 | L29: 7600 | M29: 0 | N29: 0 | O29: 0 | P29: 0 | Q29: 0 | R29: 0 | T29: 0 | U29: 0.11 | V29: 35665.74 | W29: 0.1334398613 | X29: 43265.74
B30: Adjust pipeline to route to Goose UG | E30: x | F30: 4500 | G30: m | H30: 0.04 | I30: 1 | J30: =F30*H30*I30+50 -> 230 | K30: 95 | L30: =J30*K30 -> 21850 | M30: 0 | N30: =F30*M30 -> 0 | O30: 0 | P30: =F30*O30 -> 0 | Q30: 0 | R30: =F30*Q30 -> 0 | S30: 155 | T30: =S30*J30 -> 35650 | V30: =$F30*U30 -> 0 | W30: =IF(F30>0,X30/F30,0) -> 12.77777778 | X30: =L30+N30+P30+R30+T30+V30 -> 57500
B31: Dewater SWP to Goose UG | E31: x | F31: 391630 | G31: m3 | I31: 1 | J31: 215 | K31: 95 | L31: 20425 | M31: 0 | N31: 0 | O31: 0 | P31: 0 | Q31: 0 | R31: 0 | T31: =S31*F31 -> 0 | U31: 0.11 | V31: 43079.3 | W31: =IF(F31>0,X31/F31,0) -> 0.1621538187 | X31: 63504.3
B32: Decommission SWP to Goose UG pipelines | E32: x | F32: 10800 | G32: m | H32: 0.04 | I32: 1 | J32: =H32*I32*F32 -> 432 | K32: 95 | L32: 41040 | M32: 0 | N32: 0 | O32: 0 | P32: 0 | Q32: 0 | R32: 0 | S32: 155 | T32: =S32*J32 -> 66960 | V32: 0 | W32: 10 | X32: 108000
B33: Breach SWP Diversion Berms and Containment Dams | E33: x | F33: =24*5+24*5+19*5*2 -> 430 | G33: m3 | H33: 0.12 | I33: 1 | J33: =H33*I33*F33 -> 51.6 | L33: 0 | M33: 0 | N33: 0 | O33: 0 | P33: 0 | Q33: 0 | R33: 0 | S33: 8 | T33: =S33*F33 -> 3440 | V33: 0 | W33: 8 | X33: 3440
B34: Decomission WTP-Goose Lake pipeline | E34: x | F34: 1140 | G34: m | H34: 0.04 | I34: 1 | J34: =H34*I34*F34 -> 45.6 | K34: 95 | L34: 4332 | M34: 0 | N34: 0 | O34: 0 | P34: 0 | Q34: 0 | R34: 0 | S34: 155 | T34: =S34*J34 -> 7068 | V34: 0 | W34: 10 | X34: 11400
B35: Llama UG
B36: Decommission pipeline | C36: Completed during Operations | E36: x | F36: 2700 | G36: m | H36: 0.04 | I36: 1 | J36: =F36*H36*I36 -> 108 | K36: 95 | L36: =J36*K36 -> 10260 | M36: 0 | N36: =F36*M36 -> 0 | O36: 0 | P36: =F36*O36 -> 0 | Q36: 0 | R36: =F36*Q36 -> 0 | S36: 155 | T36: =S36*J36 -> 16740 | V36: =$F36*U36 -> 0 | W36: =IF(F36>0,X36/F36,0) -> 10 | X36: =L36+N36+P36+R36+T36+V36 -> 27000
B37: Umwelt portal
B38: Plug declines with waste rock | E38: x | F38: 150 | G38: m3 | H38: 0.052 | I38: 1 | J38: =F38*H38*I38 -> 7.8 | L38: =J38*K38 -> 0 | M38: 0 | N38: =F38*M38 -> 0 | O38: 0 | P38: =F38*O38 -> 0 | Q38: 0 | R38: =F38*Q38 -> 0 | S38: 6 | T38: =S38*F38 -> 900 | V38: =$F38*U38 -> 0 | W38: =IF(F38>0,X38/F38,0) -> 6 | X38: =L38+N38+P38+R38+T38+V38 -> 900
B39: Llama portal
B40: Plug declines with waste rock | E40: x | F40: 150 | G40: m3 | H40: 0.05 | I40: 1 | J40: =F40*H40*I40 -> 7.5 | L40: =J40*K40 -> 0 | M40: 0 | N40: =F40*M40 -> 0 | O40: 0 | P40: =F40*O40 -> 0 | Q40: 0 | R40: =F40*Q40 -> 0 | S40: 6 | T40: =S40*F40 -> 900 | V40: =$F40*U40 -> 0 | W40: =IF(F40>0,X40/F40,0) -> 6 | X40: =L40+N40+P40+R40+T40+V40 -> 900
B41: Goose portal
B42: Plug declines with waste rock | E42: x | F42: 150 | G42: m3 | H42: 0.05 | I42: 1 | J42: =F42*H42*I42 -> 7.5 | L42: =J42*K42 -> 0 | M42: 0 | N42: =F42*M42 -> 0 | O42: 0 | P42: =F42*O42 -> 0 | Q42: 0 | R42: =F42*Q42 -> 0 | S42: 6 | T42: =S42*F42 -> 900 | V42: =$F42*U42 -> 0 | W42: =IF(F42>0,X42/F42,0) -> 6 | X42: =L42+N42+P42+R42+T42+V42 -> 900
B43: Echo portal
B44: Plug declines with waste rock | E44: x | F44: 150 | G44: m3 | H44: 0.05 | I44: 1 | J44: =F44*H44*I44 -> 7.5 | L44: =J44*K44 -> 0 | M44: 0 | N44: =F44*M44 -> 0 | O44: 0 | P44: =F44*O44 -> 0 | Q44: 0 | R44: =F44*Q44 -> 0 | S44: 6 | T44: =S44*F44 -> 900 | V44: =$F44*U44 -> 0 | W44: =IF(F44>0,X44/F44,0) -> 6 | X44: =L44+N44+P44+R44+T44+V44 -> 900
B45: Umwelt vent/circular backfill raises
B46: Plug vent raises with concrete plug | E46: x | F46: 1 | G46: LS | H46: 1 | I46: 1 | J46: 60 | L46: =J46*K46 -> 0 | M46: 0 | N46: =F46*M46 -> 0 | O46: 0 | P46: =F46*O46 -> 0 | Q46: 0 | R46: =F46*Q46 -> 0 | S46: 0 | T46: =S46*F46 -> 0 | V46: =$F46*U46 -> 0 | W46: =IF(F46>0,X46/F46,0) -> 120000 | X46: 120000
B47: Llama vent/circular backfill raises
B48: Plug vent raises with concrete plug | E48: x | F48: 1 | G48: LS | H48: 1 | I48: 1 | J48: 60 | L48: =J48*K48 -> 0 | M48: 0 | N48: =F48*M48 -> 0 | O48: 0 | P48: =F48*O48 -> 0 | Q48: 0 | R48: =F48*Q48 -> 0 | S48: 0 | T48: =S48*F48 -> 0 | V48: =$F48*U48 -> 0 | W48: =IF(F48>0,X48/F48,0) -> 50000 | X48: 50000
B49: Goose vent/circular backfill raises
B50: Plug vent raises with concrete plug | E50: x | F50: 1 | G50: LS | H50: 1 | I50: 1 | J50: 60 | L50: =J50*K50 -> 0 | M50: 0 | N50: =F50*M50 -> 0 | O50: 0 | P50: =F50*O50 -> 0 | Q50: 0 | R50: =F50*Q50 -> 0 | S50: 0 | T50: =S50*F50 -> 0 | V50: =$F50*U50 -> 0 | W50: =IF(F50>0,X50/F50,0) -> 50000 | X50: 50000
B51: Echo vent/circular backfill raises
B52: Plug vent raises with concrete plug | E52: x | F52: 1 | G52: LS | H52: 1 | I52: 1 | J52: 60 | L52: =J52*K52 -> 0 | M52: 0 | N52: =F52*M52 -> 0 | O52: 0 | P52: =F52*O52 -> 0 | Q52: 0 | R52: =F52*Q52 -> 0 | S52: 0 | T52: =S52*F52 -> 0 | V52: =$F52*U52 -> 0 | W52: 50000 | X52: 50000
B53: Echo crown pillar
B54: Plug UG stopes | E54: x | F54: 3550 | G54: m3 | H54: 0.05 | I54: 1 | J54: =F54*H54*I54 -> 177.5 | L54: =J54*K54 -> 0 | M54: 0 | N54: =F54*M54 -> 0 | O54: 0 | P54: =F54*O54 -> 0 | Q54: 0 | R54: =F54*Q54 -> 0 | S54: 6 | T54: =S54*F54 -> 21300 | V54: =$F54*U54 -> 0 | W54: =IF(F54>0,X54/F54,0) -> 6 | X54: =L54+N54+P54+R54+T54+V54 -> 21300
B55: Waste Rock Stockpiles and Landfills
B56: WR Pile Closure
B57: Cap and Slope WR Piles | E57: x | F57: 3400000 | G57: m3 | H57: 0.06 | I57: 1 | J57: =F57*H57*I57 -> 204000 | L57: =J57*K57 -> 0 | M57: 0 | N57: =F57*M57 -> 0 | O57: 0 | P57: =F57*O57 -> 0 | Q57: 0 | R57: =F57*Q57 -> 0 | S57: 6 | T57: =S57*F57 -> 20400000 | V57: =$F57*U57 -> 0 | W57: =IF(F57>0,X57/F57,0) -> 6 | X57: =(L57+N57+P57+R57+T57+V57) -> 20400000
B58: Landfill Closure
B59: Cap and Reslope Landfills | E59: x | F59: 25000 | G59: m3 | H59: 0.06 | I59: 1 | J59: =F59*H59*I59 -> 1500 | L59: =J59*K59 -> 0 | M59: 0 | N59: =F59*M59 -> 0 | O59: 0 | P59: =F59*O59 -> 0 | Q59: 0 | R59: =F59*Q59 -> 0 | S59: 6 | T59: =S59*F59 -> 150000 | V59: =$F59*U59 -> 0 | W59: =IF(F59>0,X59/F59,0) -> 6 | X59: =(L59+N59+P59+R59+T59+V59) -> 150000
B60: Water Management Structures
B61: Llama Structures
B62: Breach Llama Lake Diversion Berms | E62: x | F62: =19*5*7 -> 665 | G62: m3 | H62: 0.064 | I62: 1 | J62: =F62*H62*I62 -> 42.56 | L62: =J62*K62 -> 0 | M62: 0 | N62: =F62*M62 -> 0 | O62: 0 | P62: =F62*O62 -> 0 | Q62: 0 | R62: =F62*Q62 -> 0 | S62: =7.3 -> 7.3 | T62: =S62*F62 -> 4854.5 | V62: =$F62*U62 -> 0 | W62: =IF(F62>0,X62/F62,0) -> 7.3 | X62: =L62+N62+P62+R62+T62+V62 -> 4854.5
B63: Breach Llama WRSA Diversion Berm | E63: x | F63: =19*5*1 -> 95 | G63: m3 | H63: 0.064 | I63: 1 | J63: =F63*H63*I63 -> 6.08 | L63: =J63*K63 -> 0 | M63: 0 | N63: =F63*M63 -> 0 | O63: 0 | P63: =F63*O63 -> 0 | Q63: 0 | R63: =F63*Q63 -> 0 | S63: 7.3 | T63: =S63*F63 -> 693.5 | V63: =$F63*U63 -> 0 | W63: 7.3 | X63: =L63+N63+P63+R63+T63+V63 -> 693.5
B64: Breach Llama WRSA Containment Dam | F64: =19*5*1 -> 95 | G64: m3 | H64: 0.064 | I64: 1 | J64: =F64*H64*I64 -> 6.08 | L64: =J64*K64 -> 0 | M64: 0 | N64: =F64*M64 -> 0 | O64: 0 | P64: =F64*O64 -> 0 | Q64: 0 | R64: =F64*Q64 -> 0 | S64: 7.3 | T64: =S64*F64 -> 693.5 | V64: =$F64*U64 -> 0 | W64: 7.3 | X64: =L64+N64+P64+R64+T64+V64 -> 693.5
B65: Decommission Llama pump and pipeline | C65: 24 hrs for pump | E65: x | F65: 700 | G65: m | H65: 0.04 | I65: 1 | J65: =F65*H65*I65+24 -> 52 | K65: 95 | L65: =J65*K65 -> 4940 | M65: 0 | N65: =F65*M65 -> 0 | O65: 0 | P65: =F65*O65 -> 0 | Q65: 0 | R65: =F65*Q65 -> 0 | S65: 155 | T65: =S65*J65 -> 8060 | V65: =$F65*U65 -> 0 | W65: 18.57142857 | X65: =L65+N65+P65+R65+T65+V65 -> 13000
B66: Umwelt Structures
B67: Breach Primary Pond Containment Dam | E67: x | F67: =40*5*1 -> 200 | G67: m3 | H67: 0.064 | I67: 1 | J67: =F67*H67*I67 -> 12.8 | L67: =J67*K67 -> 0 | M67: 0 | N67: =F67*M67 -> 0 | O67: 0 | P67: =F67*O67 -> 0 | Q67: 0 | R67: =F67*Q67 -> 0 | S67: 7.3 | T67: =S67*F67 -> 1460 | V67: =$F67*U67 -> 0 | W67: =IF(F67>0,X67/F67,0) -> 7.3 | X67: =L67+N67+P67+R67+T67+V67 -> 1460
B68: Breach Umwelt WRSA Containment Dam | E68: x | F68: =24*5*1 -> 120 | G68: m3 | H68: 0.064 | I68: 1 | J68: =F68*H68*I68 -> 7.68 | L68: =J68*K68 -> 0 | M68: 0 | N68: =F68*M68 -> 0 | O68: 0 | P68: =F68*O68 -> 0 | Q68: 0 | R68: =F68*Q68 -> 0 | S68: 7.3 | T68: =S68*F68 -> 876 | V68: =$F68*U68 -> 0 | W68: 7.3 | X68: =L68+N68+P68+R68+T68+V68 -> 876
B69: Breach Umwelt WRSA Diversion Berm | E69: x | F69: =19*5*1 -> 95 | G69: m3 | H69: 0.064 | I69: 1 | J69: =F69*H69*I69 -> 6.08 | L69: =J69*K69 -> 0 | M69: 0 | N69: =F69*M69 -> 0 | O69: 0 | P69: =F69*O69 -> 0 | Q69: 0 | R69: =F69*Q69 -> 0 | S69: 7.3 | T69: =S69*F69 -> 693.5 | V69: =$F69*U69 -> 0 | W69: 7.3 | X69: =L69+N69+P69+R69+T69+V69 -> 693.5
B70: Remove Umwelt Pond pump and pipeline | E70: x | F70: 950 | G70: m | H70: 0.04 | I70: 1 | J70: =I70*H70*F70+30 -> 68 | K70: 95 | L70: =J70*K70 -> 6460 | M70: 0 | N70: =F70*M70 -> 0 | O70: 0 | P70: =F70*O70 -> 0 | Q70: 0 | R70: =F70*Q70 -> 0 | S70: 155 | T70: =S70*J70 -> 10540 | V70: =$F70*U70 -> 0 | W70: 17.89473684 | X70: =L70+N70+P70+R70+T70+V70 -> 17000
B71: Remove Primary pond pump and pipeline | E71: x | F71: 7250 | G71: m | H71: 0.04 | I71: 1 | J71: =I71*H71*F71+30 -> 320 | K71: 95 | L71: =J71*K71 -> 30400 | M71: 0 | N71: =F71*M71 -> 0 | O71: 0 | P71: =F71*O71 -> 0 | Q71: 0 | R71: =F71*Q71 -> 0 | S71: 155 | T71: 49600 | V71: =$F71*U71 -> 0 | W71: 11.03448276 | X71: =L71+N71+P71+R71+T71+V71 -> 80000
B72: Echo Structures
B73: Breach Echo WRSA Containment Dam | E73: x | F73: =19*5*2 -> 190 | G73: m3 | H73: 0.063 | I73: 1 | J73: =F73*H73*I73 -> 11.97 | L73: =J73*K73 -> 0 | M73: 0 | N73: =F73*M73 -> 0 | O73: 0 | P73: =F73*O73 -> 0 | Q73: 0 | R73: =F73*Q73 -> 0 | S73: 7.3 | T73: =S73*F73 -> 1387 | V73: =$F73*U73 -> 0 | W73: =IF(F73>0,X73/F73,0) -> 7.3 | X73: =L73+N73+P73+R73+T73+V73 -> 1387
B74: Breach Echo Diversion Berm (East and West) | E74: x | F74: =19*5*2 -> 190 | G74: m3 | H74: 0.063 | I74: 1 | J74: =F74*H74*I74 -> 11.97 | L74: 0 | M74: 0 | N74: 0 | O74: 0 | P74: 0 | Q74: 0 | R74: 0 | S74: 7.3 | T74: 1387 | V74: 0 | W74: 7.3 | X74: 1387
B75: Breach Echo WRSA Diversion Berm | E75: x | F75: =19*5*1 -> 95 | G75: m3 | H75: 0.064 | I75: 1 | J75: =F75*H75*I75 -> 6.08 | L75: 0 | M75: 0 | N75: 0 | O75: 0 | P75: 0 | Q75: 0 | R75: 0 | S75: 7.3 | T75: 693.5 | V75: 0 | W75: 7.3 | X75: 693.5
B76: Breach East Echo Containment Dam | E76: x | F76: =19*5*1 -> 95 | G76: m3 | H76: 0.064 | I76: 1 | J76: =F76*H76*I76 -> 6.08 | L76: 0 | M76: 0 | N76: 0 | O76: 0 | P76: 0 | Q76: 0 | R76: 0 | S76: 7.3 | T76: 693.5 | V76: 0 | W76: 7.3 | X76: 693.5
B77: Remove Echo WRSA Pond pump and pipeline | E77: x | F77: 2400 | G77: m | H77: 0.04 | I77: 1 | J77: =F77*H77*I77 -> 96 | K77: 95 | L77: 9120 | M77: 0 | N77: 0 | O77: 0 | P77: 0 | Q77: 0 | R77: 0 | S77: 155 | T77: =S77*J77 -> 14880 | V77: 0 | W77: 10 | X77: 24000
B78: Remove Echo NCW pond pump and pipeline | E78: x | F78: 220 | G78: m | H78: 0.04 | I78: 1 | J78: =F78*H78*I78+12 -> 20.8 | K78: 95 | L78: 1976 | M78: 0 | N78: 0 | O78: 0 | P78: 0 | Q78: 0 | R78: 0 | S78: 155 | T78: =S78*J78 -> 3224 | V78: 0 | W78: 23.63636364 | X78: 5200
B79: Goose Structures
B80: Breach Goose Main Diversion Berm | E80: x | F80: =19*5*1 -> 95 | G80: m3 | H80: 1 | I80: 1 | J80: =F80*H80*I80 -> 95 | L80: =J80*K80 -> 0 | M80: 0 | N80: =F80*M80 -> 0 | O80: 0 | P80: =F80*O80 -> 0 | Q80: 0 | R80: =F80*Q80 -> 0 | S80: 7.3 | T80: =S80*F80 -> 693.5 | V80: =$F80*U80 -> 0 | W80: =IF(F80>0,X80/F80,0) -> 7.3 | X80: =L80+N80+P80+R80+T80+V80 -> 693.5
B81: TSF Structures
B82: Breach TSF Dam | E82: x | F82: =550*20 -> 11000 | G82: m3 | H82: 0.05 | I82: 1 | J82: =F82*H82*I82 -> 550 | L82: =J82*K82 -> 0 | M82: 0 | N82: =F82*M82 -> 0 | O82: 0 | P82: =F82*O82 -> 0 | Q82: 0 | R82: =F82*Q82 -> 0 | S82: 7.3 | T82: =S82*F82 -> 80300 | V82: =$F82*U82 -> 0 | W82: =IF(F82>0,X82/F82,0) -> 7.3 | X82: =L82+N82+P82+R82+T82+V82 -> 80300
B83: Breach TSF WRSA Diversion Berm | E83: x | F83: =19*5*3 -> 285 | G83: m3 | H83: 0.05 | I83: 1 | J83: =F83*H83*I83 -> 14.25 | L83: =J83*K83 -> 0 | M83: 0 | N83: =F83*M83 -> 0 | O83: 0 | P83: =F83*O83 -> 0 | Q83: 0 | R83: =F83*Q83 -> 0 | S83: 7.3 | T83: =S83*F83 -> 2080.5 | V83: =$F83*U83 -> 0 | W83: =IF(F83>0,X83/F83,0) -> 7.3 | X83: =L83+N83+P83+R83+T83+V83 -> 2080.5
B84: Ore Stockpile Structures
B85: Remove pump and pipeline | E85: x | F85: 4550 | G85: m | H85: 0.04 | I85: 1 | J85: =F85*H85*I85 -> 182 | K85: 95 | L85: =J85*K85 -> 17290 | M85: 0 | N85: =F85*M85 -> 0 | O85: 0 | P85: =F85*O85 -> 0 | Q85: 0 | R85: =F85*Q85 -> 0 | S85: 155 | T85: =S85*J85 -> 28210 | V85: =$F85*U85 -> 0 | W85: =IF(F85>0,X85/F85,0) -> 10 | X85: =L85+N85+P85+R85+T85+V85 -> 45500
B86: Breach Ore Stockpile Diversion Berm and Containment Dam | E86: x | F86: =19*5+24*5 -> 215 | G86: m3 | H86: 0.06 | I86: 1 | J86: =F86*H86*I86 -> 12.9 | L86: =J86*K86 -> 0 | M86: 0 | N86: =F86*M86 -> 0 | O86: 0 | P86: =F86*O86 -> 0 | Q86: 0 | R86: =F86*Q86 -> 0 | S86: 7.3 | T86: =S86*F86 -> 1569.5 | V86: =$F86*U86 -> 0 | W86: =IF(F86>0,X86/F86,0) -> 7.3 | X86: =L86+N86+P86+R86+T86+V86 -> 1569.5
B87: Buildings and Equipment
B88: Dissassembly - Goose Plant and Crusher
B89: Dismantle Plant | E89: x | F89: =ROUNDUP(6463.2,0) -> 6464 | G89: m2 | H89: 1 | I89: 1 | J89: 3200 | K89: 95 | L89: =J89*K89 -> 304000 | M89: 0 | N89: =F89*M89 -> 0 | O89: 0 | P89: =F89*O89 -> 0 | Q89: 0 | R89: =F89*Q89 -> 0 | S89: 100 | T89: =J89*S89/3 -> 106666.6667 | U89: 0 | V89: =$F89*U89 -> 0 | W89: =IF(F89>0,X89/F89,0) -> 63.53135314 | X89: =L89+N89+P89+R89+T89+V89 -> 410666.6667
B90: Dismantle Crushers | E90: x | F90: 1630 | G90: m2 | H90: 1 | I90: 1 | J90: 800 | K90: 95 | L90: =J90*K90 -> 76000 | M90: 0 | N90: =F90*M90 -> 0 | O90: 0 | P90: =F90*O90 -> 0 | Q90: 0 | R90: =F90*Q90 -> 0 | S90: 100 | T90: =J90*S90/3 -> 26666.66667 | U90: 0 | V90: =$F90*U90 -> 0 | W90: =IF(F90>0,X90/F90,0) -> 62.98568507 | X90: =L90+N90+P90+R90+T90+V90 -> 102666.6667
B91: Dismantle Power Plant | E91: x | F91: 2040 | G91: m2 | H91: 1 | I91: 1 | J91: 1000 | K91: 95 | L91: =J91*K91 -> 95000 | M91: 0 | N91: =F91*M91 -> 0 | O91: 0 | P91: =F91*O91 -> 0 | Q91: 0 | R91: =F91*Q91 -> 0 | S91: 100 | T91: =J91*S91/3 -> 33333.33333 | U91: 0 | V91: =$F91*U91 -> 0 | W91: =IF(F91>0,X91/F91,0) -> 62.90849673 | X91: =L91+N91+P91+R91+T91+V91 -> 128333.3333
B92: Dismantle Emergency Power - Fuel | E92: x | F92: 300 | G92: m2 | H92: 1 | I92: 1 | J92: 150 | K92: 95 | L92: =J92*K92 -> 14250 | M92: 0 | N92: =F92*M92 -> 0 | O92: 0 | P92: =F92*O92 -> 0 | Q92: 0 | R92: =F92*Q92 -> 0 | S92: 100 | T92: =J92*S92/3 -> 5000 | U92: 0 | V92: =$F92*U92 -> 0 | W92: =IF(F92>0,X92/F92,0) -> 64.16666667 | X92: =L92+N92+P92+R92+T92+V92 -> 19250
B93: Dismantle Fuel Storage and Distribution | E93: x | F93: 1 | G93: Lot | H93: 1 | I93: 1 | J93: 1200 | K93: 95 | L93: =J93*K93 -> 114000 | M93: 0 | N93: =F93*M93 -> 0 | O93: 0 | P93: =F93*O93 -> 0 | Q93: 0 | R93: =F93*Q93 -> 0 | S93: 100 | T93: =J93*S93/3 -> 40000 | U93: 0 | V93: =$F93*U93 -> 0 | W93: =IF(F93>0,X93/F93,0) -> 154000 | X93: =L93+N93+P93+R93+T93+V93 -> 154000
B94: Goose Admin Buildings
B95: Demolish Truck Shop/Office | E95: x | F95: 2349.45 | G95: m2 | H95: 1 | I95: 1 | J95: 1000 | K95: 95 | L95: =J95*K95 -> 95000 | M95: 0 | N95: =F95*M95 -> 0 | O95: 0 | P95: =F95*O95 -> 0 | Q95: 0 | R95: =F95*Q95 -> 0 | S95: 100 | T95: =S95*J95/3 -> 33333.33333 | U95: 0 | V95: =$F95*U95 -> 0 | W95: =IF(F95>0,X95/F95,0) -> 54.62271312 | X95: =L95+N95+P95+R95+T95+V95 -> 128333.3333
B96: Demolish Kitchen/Camp | E96: x | F96: =6*300*1.1 -> 1980 | G96: m2 | H96: 1 | I96: 1 | J96: 900 | K96: 95 | L96: 85500 | M96: 0 | N96: 0 | O96: 0 | P96: 0 | Q96: 0 | R96: 0 | S96: 100 | T96: =S96*J96/3 -> 30000 | U96: 0 | V96: 0 | W96: =IF(F96>0,X96/F96,0) -> 58.33333333 | X96: 115500
B97: Demolish Cold Storage | E97: x | F97: 840 | G97: m2 | H97: 1 | I97: 1 | J97: 150 | K97: 95 | L97: 14250 | M97: 0 | N97: 0 | O97: 0 | P97: 0 | Q97: 0 | R97: 0 | S97: 100 | T97: 5000 | U97: 0 | V97: 0 | W97: 22.91666667 | X97: 19250
B98: Demolish Waste/Waste Oil Storage | E98: x | F98: 1 | G98: Lot | H98: 1 | I98: 1 | J98: 100 | L98: 0 | M98: 0 | N98: 0 | O98: 0 | P98: 0 | R98: 0 | S98: 100 | T98: 3333.333333 | U98: 40000 | V98: 40000 | W98: 43333.33333 | X98: 43333.33333
B99: Remove Freight Storage | E99: x | F99: 1 | G99: Lot | H99: 1 | I99: 1 | J99: 150 | K99: 95 | L99: 14250 | M99: 0 | N99: 0 | O99: 0 | P99: 0 | Q99: 0 | R99: 0 | S99: 100 | T99: 5000 | U99: 0 | V99: 0 | W99: 19250 | X99: 19250
B100: Demolish Water Treatment Plant | E100: x | F100: =ROUNDUP(0.1*F89,0) -> 647 | G100: m2 | H100: 8 | I100: 1 | J100: 100 | K100: 95 | L100: 9500 | M100: 0 | N100: 0 | O100: 0 | P100: 0 | Q100: 0 | R100: 0 | S100: 100 | T100: 3333.333333 | U100: 0 | V100: 0 | W100: 19.83513653 | X100: 12833.33333
B101: Demolish Sewage Treatment Plant | E101: x | F101: 1 | G101: Lot | H101: 1 | I101: 1 | J101: 90 | K101: 95 | L101: 8550 | M101: 0 | N101: 0 | O101: 0 | P101: 0 | Q101: 0 | R101: 0 | S101: 100 | T101: 3000 | U101: 0 | V101: 0 | W101: 11550 | X101: 11550
B102: MLA Infrastructure
B103: Demolish Port Office | E103: x | F103: 5 | G103: Units | H103: 12 | I103: 1 | J103: =H103*F103*I103 -> 60 | K103: 95 | L103: =J103*K103 -> 5700 | M103: 0 | N103: =F103*M103 -> 0 | O103: 0 | P103: =F103*O103 -> 0 | Q103: 0 | R103: =F103*Q103 -> 0 | S103: 100 | T103: =S103*J103 -> 6000 | U103: 0 | V103: =$F103*U103 -> 0 | W103: =IF(F103>0,X103/F103,0) -> 2340 | X103: =L103+N103+P103+R103+T103+V103 -> 11700
B104: Remove Pipelines | E104: x | F104: 10000 | G104: m | H104: 0.04 | I104: 1 | J104: =F104*H104*I104 -> 400 | K104: 95 | L104: =J104*K104 -> 38000 | M104: 0 | N104: =F104*M104 -> 0 | O104: 0 | P104: =F104*O104 -> 0 | Q104: 0 | R104: =F104*Q104 -> 0 | S104: 155 | T104: =S104*J104 -> 62000 | U104: 0 | V104: =$F104*U104 -> 0 | W104: =IF(F104>0,X104/F104,0) -> 10 | X104: =L104+N104+P104+R104+T104+V104 -> 100000
B105: Demolish Incinerator and Waste Management | E105: x | F105: 1 | G105: Lot | H105: 1 | I105: 1 | J105: 50 | K105: 95 | L105: =J105*K105 -> 4750 | M105: 0 | N105: =F105*M105 -> 0 | O105: 0 | P105: =F105*O105 -> 0 | Q105: 0 | R105: =F105*Q105 -> 0 | S105: 100 | T105: 5000 | U105: 0 | V105: =$F105*U105 -> 0 | W105: =IF(F105>0,X105/F105,0) -> 9750 | X105: =L105+N105+P105+R105+T105+V105 -> 9750
B106: Demolish Warehuses | E106: x | F106: 1 | G106: Lot | H106: 1 | I106: 1 | J106: 30 | K106: 95 | L106: 2850 | M106: 0 | N106: 0 | O106: 0 | P106: 0 | Q106: 0 | R106: 0 | S106: 100 | T106: 3000 | U106: 0 | V106: 0 | W106: 5850 | X106: 5850
B107: Dismantle Genset | E107: x | F107: 1 | G107: Lot | H107: 1 | I107: 1 | J107: 150 | K107: 95 | L107: 14250 | M107: 0 | N107: 0 | O107: 0 | P107: 0 | Q107: 0 | R107: 0 | S107: 100 | T107: 15000 | U107: 0 | V107: 0 | W107: 29250 | X107: 29250
B108: Demolish Maintenance Shop | E108: x | F108: 1 | G108: Lot | H108: 1 | I108: 1 | J108: 50 | K108: 95 | L108: 4750 | M108: 0 | N108: 0 | O108: 0 | P108: 0 | Q108: 0 | R108: 0 | S108: 100 | T108: 5000 | U108: 0 | V108: 0 | W108: 9750 | X108: 9750
B109: Demolish Water Storage | E109: x | F109: 1 | G109: Lot | H109: 1 | I109: 1 | J109: 50 | K109: 95 | L109: 4750 | M109: 0 | N109: 0 | O109: 0 | P109: 0 | Q109: 0 | R109: 0 | S109: 100 | T109: 5000 | U109: 0 | V109: 0 | W109: 9750 | X109: 9750
B110: Demolish WTP/STP | E110: x | F110: 1 | G110: Lot | H110: 1 | I110: 1 | J110: 50 | K110: 95 | L110: 4750 | M110: 0 | N110: 0 | O110: 0 | P110: 0 | Q110: 0 | R110: 0 | S110: 100 | T110: 5000 | U110: 0 | V110: 0 | W110: 9750 | X110: 9750
B111: Demolish camp/offices | E111: x | F111: 1 | G111: Lot | H111: 1 | I111: 1 | J111: 50 | K111: 95 | L111: 4750 | M111: 0 | N111: 0 | O111: 0 | P111: 0 | Q111: 0 | R111: 0 | S111: 100 | T111: 5000 | U111: 0 | V111: 0 | W111: 9750 | X111: 9750
B112: Demolish freight storage area | E112: x | F112: 1 | G112: Lot | H112: 1 | I112: 1 | J112: 50 | K112: 95 | L112: 4750 | M112: 0 | N112: 0 | O112: 0 | P112: 0 | Q112: 0 | R112: 0 | S112: 100 | T112: 5000 | U112: 0 | V112: 0 | W112: 9750 | X112: 9750
B113: Demolish hazardous wate Area | E113: x | F113: 1 | G113: Lot | H113: 1 | I113: 1 | J113: 50 | K113: 95 | L113: 4750 | M113: 0 | N113: 0 | O113: 0 | P113: 0 | Q113: 0 | R113: 0 | S113: 100 | T113: 5000 | U113: 0 | V113: 0 | W113: 9750 | X113: 9750
B114: Dismantle Fuel Storage | E114: x | F114: 1 | G114: Lot | H114: 1 | I114: 1 | J114: 1600 | K114: 95 | L114: 152000 | M114: 0 | N114: 0 | O114: 0 | P114: 0 | Q114: 0 | R114: 0 | S114: 100 | T114: =S114*J114/3 -> 53333.33333 | U114: 0 | V114: 0 | W114: 205333.3333 | X114: 205333.3333
B115: Goose Closure Camp
B116: Build 20 Person Camp | E116: x | F116: 1 | G116: Lot | H116: 1 | I116: 1 | J116: 150 | K116: 95 | L116: =J116*K116 -> 14250 | M116: 0 | N116: =F116*M116 -> 0 | P116: =F116*O116 -> 0 | Q116: 0 | R116: =F116*Q116 -> 0 | S116: 100 | T116: =J116*S116/3 -> 5000 | V116: =$F116*U116 -> 0 | W116: =IF(F116>0,X116/F116,0) -> 19250 | X116: =L116+N116+P116+R116+T116+V116 -> 19250
B117: Build 20 Person Power Plant | E117: x | F117: 1 | G117: Lot | H117: 1 | I117: 1 | J117: 150 | K117: 95 | L117: =J117*K117 -> 14250 | M117: 0 | N117: =F117*M117 -> 0 | P117: =F117*O117 -> 0 | Q117: 0 | R117: =F117*Q117 -> 0 | S117: 100 | T117: =J117*S117/3 -> 5000 | V117: =$F117*U117 -> 0 | W117: =IF(F117>0,X117/F117,0) -> 19250 | X117: =L117+N117+P117+R117+T117+V117 -> 19250
B118: Camp Operation | C118: Over 13 years of Closure and Post-Closure | E118: x | F118: 12000 | G118: Man Days | H118: 1 | I118: 1 | K118: =0 -> 0 | L118: =J118*K118 -> 0 | N118: =F118*M118 -> 0 | O118: 0 | P118: =F118*O118 -> 0 | Q118: 0 | R118: =F118*Q118 -> 0 | S118: 0 | T118: =F118*S118 -> 0 | U118: 110 | V118: =$F118*U118 -> 1320000 | W118: =IF(F118>0,X118/F118,0) -> 110 | X118: =L118+N118+P118+R118+T118+V118 -> 1320000
B119: Roads and Airstrips
B120: Main Haulroad
B121: Maintain Road Surface | E121: x | F121: 13 | G121: Yr | H121: 70 | I121: 1 | J121: =F121*H121*I121 -> 910 | K121: 95 | L121: =J121*K121 -> 86450 | M121: 0 | N121: =F121*M121 -> 0 | O121: 0 | P121: =F121*O121 -> 0 | Q121: 0 | R121: =F121*Q121 -> 0 | S121: 100 | T121: =S121*J121 -> 91000 | V121: =$F121*U121 -> 0 | W121: =IF(F121>0,X121/F121,0) -> 13650 | X121: =SUM(L121,N121,P121,R121,T121,V121) -> 177450
B122: Restore Drainage | C122: Remove Culverts | E122: x | F122: 1488 | G122: m3 | H122: 0.06 | I122: 1 | J122: =F122*H122*I122 -> 89.28 | L122: =J122*K122 -> 0 | M122: 0 | N122: =F122*M122 -> 0 | O122: 0 | P122: =F122*O122 -> 0 | Q122: 0 | R122: =F122*Q122 -> 0 | S122: 11 | T122: =S122*F122 -> 16368 | V122: =$F122*U122 -> 0 | W122: =IF(F122>0,X122/F122,0) -> 11 | X122: =T122 -> 16368
B123: Airstrips
B124: Maintain Airstrip Surface | E124: x | F124: 13 | G124: Yr | H124: 20 | I124: 1 | J124: =F124*H124*I124 -> 260 | K124: 95 | L124: =J124*K124 -> 24700 | M124: 0 | N124: =F124*M124 -> 0 | O124: 0 | P124: =F124*O124 -> 0 | Q124: 0 | R124: =F124*Q124 -> 0 | S124: 100 | T124: =S124*J124 -> 26000 | V124: =$F124*U124 -> 0 | W124: =IF(F124>0,X124/F124,0) -> 3900 | X124: =SUM(L124,N124,P124,R124,T124,V124) -> 50700
B125: Restore Drainage | E125: x | F125: 1020 | G125: m3 | H125: 0.06 | I125: 1 | J125: =F125*H125*I125 -> 61.2 | L125: =J125*K125 -> 0 | M125: 0 | N125: =F125*M125 -> 0 | O125: 0 | P125: =F125*O125 -> 0 | Q125: 0 | R125: =F125*Q125 -> 0 | S125: 12 | T125: =S125*F125 -> 12240 | V125: =$F125*U125 -> 0 | W125: =IF(F125>0,X125/F125,0) -> 12 | X125: =T125 -> 12240
B126: Water Treatment
B127: WTP Pipelines and Treatment Plant
B128: Pump from Goose Main TF to WTP | C128: Pump and treat water in TF at WTP for 7 years, open water season | E128: x | F128: 7500000 | G128: m3 | I128: 1 | L128: =J128*K128 -> 0 | M128: 0 | N128: =F128*M128 -> 0 | O128: 0 | P128: =F128*O128 -> 0 | Q128: 0 | R128: =F128*Q128 -> 0 | S128: 0 | T128: =S128*F128 -> 0 | U128: 0.11 | V128: =$F128*U128 -> 825000 | W128: =IF(F128>0,X128/F128,0) -> 0.11 | X128: =L128+N128+P128+R128+T128+V128 -> 825000
B129: Treat water from Goose Main TF in TWP | E129: x | F129: 7500000 | G129: m3 | I129: 1 | J129: =365*5.25 -> 1916.25 | L129: 0 | M129: 0 | N129: 0 | O129: 0 | P129: 0 | Q129: 0 | R129: 0 | S129: 0 | T129: 0 | U129: 0.35 | V129: 2625000 | W129: =IF(F129>0,X129/F129,0) -> 0.35 | X129: 2625000
B130: Pump from WTP recirc. into Goose Main TF | E130: x | F130: 7500000 | G130: m3 | I130: 1 | J130: =F130*H130*I130 -> 0 | L130: 0 | M130: 0 | N130: 0 | O130: 0 | P130: 0 | Q130: 0 | R130: 0 | S130: 0 | T130: 0 | U130: 0.11 | V130: 825000 | W130: 0.11 | X130: 825000
B131: Decommission WTP pump and pipeline | E131: x | F131: 6700 | G131: m | H131: 0.04 | I131: 1 | J131: =F131*H131*I131+24 -> 292 | K131: 95 | L131: 27740 | M131: 0 | N131: 0 | O131: 0 | P131: 0 | Q131: 0 | R131: 0 | S131: 155 | T131: =S131*J131 -> 45260 | V131: 0 | W131: 10.89552239 | X131: =L131+N131+P131+R131+T131+V131 -> 73000
B132: Decommission WTP pump and return pipeline | E132: x | F132: 820 | G132: m | H132: 0.04 | I132: 1 | J132: =F132*H132*I132+24 -> 56.8 | K132: 95 | L132: 5396 | M132: 0 | N132: 0 | O132: 0 | P132: 0 | Q132: 0 | R132: 0 | S132: 155 | T132: =S132*J132 -> 8804 | V132: 0 | W132: 17.31707317 | X132: =L132+N132+P132+R132+T132+V132 -> 14200
B133: Decommission WTP | E133: x | F133: 1 | G133: Lot | I133: 1 | J133: 50 | K133: 95 | L133: 4750 | M133: 0 | N133: 0 | O133: 0 | P133: 0 | Q133: 0 | R133: 0 | S133: 100 | T133: 5000 | V133: 0 | W133: 9750 | X133: 9750
B134: Contaminated Soil
B135: Sitewide Investigation
B136: Site Investigation to estimate quantity of contaminated soil | C136: Testpit program with excavator in all parking, fuel storage, washbays truck and maintenance shops and generator areas. | E136: x | F136: 1 | G136: Lot | H136: 1 | I136: 1 | L136: =J136*K136 -> 0 | M136: 0 | N136: =F136*M136 -> 0 | O136: 0 | P136: =F136*O136 -> 0 | Q136: 0 | R136: =F136*Q136 -> 0 | S136: 0 | T136: =S136*F136 -> 0 | V136: 50000 | W136: =IF(F136>0,X136/F136,0) -> 50000 | X136: =L136+N136+P136+R136+T136+V136 -> 50000
B137: Treatment
B138: Transport contaminated soil | E138: x | F138: 10000 | G138: m3 | H138: 0.05 | I138: 1 | J138: =F138*H138*I138 -> 500 | L138: =J138*K138 -> 0 | M138: 0 | N138: =F138*M138 -> 0 | O138: 0 | P138: =F138*O138 -> 0 | Q138: 0 | R138: =F138*Q138 -> 0 | S138: 7.3 | T138: =S138*F138 -> 73000 | V138: =$F138*U138 -> 0 | W138: =IF(F138>0,X138/F138,0) -> 7.3 | X138: =L138+N138+P138+R138+T138+V138 -> 73000
B139: Separation plant | C139: Purchase seperation equipment | E139: x | F139: 1 | G139: Lot | H139: 1 | I139: 1 | L139: =J139*K139 -> 0 | M139: 0 | N139: =F139*M139 -> 0 | O139: 0 | P139: =F139*O139 -> 0 | Q139: 0 | R139: =F139*Q139 -> 0 | S139: 0 | T139: =S139*F139 -> 0 | V139: 100000 | W139: =IF(F139>0,X139/F139,0) -> 100000 | X139: =L139+N139+P139+R139+T139+V139 -> 100000
B140: Closure / Post-Closure Monitoring
B141: Geotechnical Inspections
B142: TSF embankments | E142: x | F142: 8 | G142: Units | H142: 20 | I142: 1 | J142: =F142*H142*I142 -> 160 | L142: =J142*K142 -> 0 | M142: 0 | N142: =F142*M142 -> 0 | O142: 0 | P142: =F142*O142 -> 0 | Q142: 0 | R142: =F142*Q142 -> 0 | S142: 0 | T142: =S142*F142 -> 0 | U142: 10000 | V142: =$F142*U142 -> 80000 | W142: =IF(F142>0,X142/F142,0) -> 10000 | X142: =L142+N142+P142+R142+T142+V142 -> 80000
B143: WR piles | E143: x | F143: 13 | G143: Units | H143: 20 | I143: 1 | J143: =F143*H143*I143 -> 260 | L143: =J143*K143 -> 0 | M143: 0 | N143: =F143*M143 -> 0 | O143: 0 | P143: =F143*O143 -> 0 | Q143: 0 | R143: =F143*Q143 -> 0 | S143: 0 | T143: =S143*F143 -> 0 | U143: 8300 | V143: =$F143*U143 -> 107900 | W143: =IF(F143>0,X143/F143,0) -> 8300 | X143: =(L143+N143+P143+R143+T143+V143) -> 107900
B144: Pit walls | E144: x | F144: 13 | G144: Units | H144: 20 | I144: 1 | J144: =F144*H144*I144 -> 260 | L144: =J144*K144 -> 0 | M144: 0 | N144: =F144*M144 -> 0 | O144: 0 | P144: =F144*O144 -> 0 | Q144: 0 | R144: =F144*Q144 -> 0 | S144: 0 | T144: =S144*F144 -> 0 | U144: 4000 | V144: =$F144*U144 -> 52000 | W144: =IF(F144>0,X144/F144,0) -> 4000 | X144: =(L144+N144+P144+R144+T144+V144) -> 52000
B145: Ground Temperature Monitoring
B146: Umwelt WRSA GTC Monitoring after Closure | C146: Monthly | E146: x | F146: 13 | G146: Years | H146: 24 | I146: 1 | J146: =F146*H146*I146 -> 312 | K146: 200 | L146: =J146*K146 -> 62400 | M146: 0 | N146: =F146*M146 -> 0 | O146: 0 | P146: =F146*O146 -> 0 | Q146: 0 | R146: =F146*Q146 -> 0 | S146: 0 | T146: =S146*F146 -> 0 | V146: =F146*U146 -> 0 | W146: =IF(F146>0,X146/F146,0) -> 4800 | X146: =L146+N146+P146+R146+T146+V146 -> 62400
B147: LLama WRSA GTC Monitoring after Closure | C147: Monthly | E147: x | F147: 13 | G147: Years | H147: 24 | I147: 1 | J147: 312 | K147: 200 | L147: 62400 | M147: 0 | N147: 0 | O147: 0 | P147: 0 | Q147: 0 | R147: 0 | S147: 0 | T147: 0 | V147: 0 | W147: 4800 | X147: 62400
B148: TSF WRSA GTC Monitoring after Closure | C148: Monthly | E148: x | F148: 13 | G148: Years | H148: 24 | I148: 1 | J148: 312 | K148: 200 | L148: 62400 | M148: 0 | N148: 0 | O148: 0 | P148: 0 | Q148: 0 | R148: 0 | S148: 0 | T148: 0 | V148: 0 | W148: 4800 | X148: 62400
B149: WQ Monitoring - Closure
B150: Llama pit | C150: Depends on Breech | E150: x | F150: 13 | G150: Years | H150: 12 | I150: 1 | J150: 156 | K150: 95 | L150: =J150*K150 -> 14820 | M150: 0 | N150: =F150*M150 -> 0 | O150: 0 | P150: =F150*O150 -> 0 | Q150: 0 | R150: =F150*Q150 -> 0 | S150: 0 | T150: =S150*F150 -> 0 | V150: =F150*U150 -> 0 | W150: =IF(F150>0,X150/F150,0) -> 1140 | X150: =L150+N150+P150+R150+T150+V150 -> 14820
B151: Llama WR Pile | E151: x | F151: 13 | G151: Years | H151: 12 | I151: 1 | J151: =F151*H151*I151 -> 156 | K151: 95 | L151: =J151*K151 -> 14820 | M151: 0 | N151: =F151*M151 -> 0 | O151: 0 | P151: =F151*O151 -> 0 | Q151: 0 | R151: =F151*Q151 -> 0 | S151: 0 | T151: =S151*F151 -> 0 | V151: =F151*U151 -> 0 | W151: =IF(F151>0,X151/F151,0) -> 1140 | X151: =L151+N151+P151+R151+T151+V151 -> 14820
B152: Umwelt pit | C152: Depends on Breach | E152: x | F152: 13 | G152: Years | H152: 12 | I152: 1 | J152: 156 | K152: 95 | L152: 14820 | M152: 0 | N152: 0 | O152: 0 | P152: 0 | Q152: 0 | R152: 0 | S152: 0 | T152: 0 | V152: 0 | W152: 1140 | X152: 14820
B153: Umwelt WR Pile | E153: x | F153: 13 | G153: Years | H153: 12 | I153: 1 | J153: 156 | K153: 95 | L153: 14820 | M153: 0 | N153: 0 | O153: 0 | P153: 0 | Q153: 0 | R153: 0 | S153: 0 | T153: 0 | V153: 0 | W153: 1140 | X153: 14820
B154: Echo pit | C154: Depends on Breach | E154: x | F154: 13 | G154: Years | H154: 12 | I154: 1 | J154: 156 | K154: 95 | L154: 14820 | M154: 0 | N154: 0 | O154: 0 | P154: 0 | Q154: 0 | R154: 0 | S154: 0 | T154: 0 | V154: 0 | W154: 1140 | X154: 14820
B155: Echo WR pile | E155: x | F155: 13 | G155: Years | H155: 12 | I155: 1 | J155: 156 | K155: 95 | L155: 14820 | M155: 0 | N155: 0 | O155: 0 | P155: 0 | Q155: 0 | R155: 0 | S155: 0 | T155: 0 | V155: 0 | W155: 1140 | X155: 14820
B156: Goose pit | C156: Depends on Breach | E156: x | F156: 13 | G156: Years | H156: 12 | I156: 1 | J156: 156 | K156: 95 | L156: 14820 | M156: 0 | N156: 0 | O156: 0 | P156: 0 | Q156: 0 | R156: 0 | S156: 0 | T156: 0 | V156: 0 | W156: 1140 | X156: 14820
B157: TSF WR Pile | E157: x | F157: 13 | G157: Years | H157: 12 | I157: 1 | J157: 156 | K157: 95 | L157: 14820 | M157: 0 | N157: 0 | O157: 0 | P157: 0 | Q157: 0 | R157: 0 | S157: 0 | T157: 0 | V157: 0 | W157: 1140 | X157: 14820
B158: Aquatic Effects monitoring
B159: Aquatic effects monitoring | C159: Non-contact Water Basins | E159: x | F159: 10 | G159: Years | H159: 60 | I159: 1 | J159: 600 | K159: 80 | L159: =J159*K159 -> 48000 | M159: 0 | N159: =F159*M159 -> 0 | O159: 0 | P159: =F159*O159 -> 0 | Q159: 0 | R159: =F159*Q159 -> 0 | S159: 0 | T159: =S159*F159 -> 0 | V159: =$F159*U159 -> 0 | W159: =IF(F159>0,X159/F159,0) -> 4800 | X159: =(L159+N159+P159+R159+T159+V159) -> 48000
B160: Terrestrial Animal Monitoring
B161: Terrestrial Animal Monitoring | E161: x | F161: 10 | G161: Years | H161: 300 | I161: 1 | J161: 3000 | K161: 80 | L161: =J161*K161 -> 240000 | M161: 0 | N161: =F161*M161 -> 0 | O161: 0 | P161: =F161*O161 -> 0 | Q161: 0 | R161: =F161*Q161 -> 0 | S161: 0 | T161: =S161*F161 -> 0 | V161: =$F161*U161 -> 0 | W161: =IF(F161>0,X161/F161,0) -> 24000 | X161: =(L161+N161+P161+R161+T161+V161) -> 240000
B162: Total Direct Costs | X162: =SUM(X5:X161) -> 30471385.28
B163: CONSTRUCTION INDIRECTS
B164: Freight & Transport
B165: Food & Freight | C165: Total Mandays factored | E165: x | F165: =F118*2.3 -> 27600 | G165: kg | I165: 1 | K165: =0 -> 0 | L165: =J165*K165 -> 0 | P165: =F165*O165 -> 0 | R165: =F165*Q165 -> 0 | T165: =F165*S165 -> 0 | U165: 12 | V165: =$F165*U165 -> 331200 | W165: =IF(F165>0,X165/F165,0) -> 12 | X165: =(L165+N165+P165+R165+T165+V165) -> 331200
B166: Freight | C166: Rental equip, offices, etc.. | E166: x | F166: 1 | G166: Lot | H166: 0 | I166: 1 | J166: =F166*H166*I166 -> 0 | K166: =0 -> 0 | L166: =J166*K166 -> 0 | M166: 0 | N166: =F166*M166 -> 0 | O166: 0 | P166: =F166*O166 -> 0 | Q166: 0 | R166: =F166*Q166 -> 0 | S166: 0 | T166: =F166*S166 -> 0 | U166: 500000 | V166: =$F166*U166 -> 500000 | W166: =IF(F166>0,X166/F166,0) -> 500000 | X166: =(L166+N166+P166+R166+T166+V166) -> 500000
B167: Mobilization | E167: x | F167: 500 | G167: Tonnes | U167: 1500 | V167: =$F167*U167 -> 750000 | W167: =IF(F167>0,X167/F167,0) -> 1500 | X167: =V167 -> 750000
B168: General Construction Indirects
B169: Site Services Labour | E169: x | F169: 16000 | G169: HRS | H169: 1 | I169: 1 | J169: =F169*H169*I169 -> 16000 | K169: 65 | L169: =J169*K169 -> 1040000 | M169: 0 | N169: =F169*M169 -> 0 | O169: 0 | P169: =F169*O169 -> 0 | Q169: 0 | R169: =F169*Q169 -> 0 | S169: 0 | T169: =F169*S169 -> 0 | U169: 0 | V169: =$F169*U169 -> 0 | W169: =IF(F169>0,X169/F169,0) -> 65 | X169: =(L169+N169+P169+R169+T169+V169) -> 1040000
B170: Accomodations & Travel
B171: Camp Accomodations/Operation | E171: x | F171: =F118 -> 12000 | G171: Man Days | H171: 1 | I171: 1 | K171: =0 -> 0 | L171: =J171*K171 -> 0 | N171: =F171*M171 -> 0 | O171: 0 | P171: =F171*O171 -> 0 | Q171: 0 | R171: =F171*Q171 -> 0 | S171: 0 | T171: =F171*S171 -> 0 | U171: 110 | V171: =$F171*U171 -> 1320000 | W171: =IF(F171>0,X171/F171,0) -> 110 | X171: =(L171+N171+P171+R171+T171+V171) -> 1320000
B172: Airfare & Transportation | E172: x | F172: =ROUNDUP(F118/28,0) -> 429 | G172: Each | H172: 0 | I172: 1 | K172: =0 -> 0 | L172: =J172*K172 -> 0 | M172: 0 | N172: =F172*M172 -> 0 | O172: 0 | P172: =F172*O172 -> 0 | Q172: 0 | R172: =F172*Q172 -> 0 | S172: 0 | T172: =F172*S172 -> 0 | U172: =51521/90 -> 572.4555556 | V172: =$F172*U172 -> 245583.4333 | W172: =IF(F172>0,X172/F172,0) -> 572.4555556 | X172: =(L172+N172+P172+R172+T172+V172) -> 245583.4333
B173: Contractor Profit
B174: Total Component Estimate | X174: =SUM(X163:X173)+X162 -> 34658168.71

Sheet Unit_Costs
A1: Unit Cost Table (for refining unit costs see "Estimator" worksheet)
D2: Filter by unit
A4: ITEM | B4: Detail | D4: COST CODE | E4: UNITS | F4: LOW $ | G4: HIGH $ | H4: SPECIFIED $ | J4: COMMENTS
A6: Accomodation
D7: ACCM | E7: manday | F7: 100 | G7: 175
A8: Buildings - Decontaminate
B9: Asbestos | D9: BDA | E9: m2 | F9: 25.6 | G9: 51.2 | J9: Low: removal of asbestos siding & flooring; High: removal of insulated pipes, friable asbestos
A10: Buildings - Remove | J10: Unit costs are based on 3m high, single storey building. Scale areas accordingly.
B11: Wood | D11: BRW | E11: m2 | F11: 27.5 | G11: 41
B12: Concrete | D12: BRC | E12: m2 | F12: 40 | G12: 65 | H12: 6 | J12: Specified: puncture concrete foundation slabs
B13: Steel - teardown | D13: BRS1 | E13: m2 | F13: 45 | G13: 65
B14: Steel - for salvage | D14: BRS2 | E14: m2 | F14: 67 | G14: 100
A15: Concrete work
B16: Small pour | D16: CSF | E16: m3 | F16: 426.5 | G16: 639.75 | J16: Low: YK; High=1.5xLow
B17: Large pour | D17: CLF | E17: m3 | F17: 353.5 | G17: 530.25 | H17: 2130 | J17: Specified: concrete crown pillar
A18: Contaminated Soils
B19: ESA Phase 1 | D19: CS1 | E19: each | F19: 7500 | J19: Low: small, "clean" site
B20: ESA Phase 1 | D20: CS2 | E20: each | F20: 50000 | J20: Low: small, "clean" site
B21: Remediate on site | D21: CSR | E21: m3 | F21: 47 | G21: 146
A22: Dozing
B23: doze rock piles | D23: DR | E23: m3 | F23: 1.05 | G23: 2.4 | J23: Low cost: doze crest off dump
B24: doze overburden/soil piles | D24: DS | E24: m3 | F24: 0.95 | G24: 3.8 | J24: High cost: push up to 300 m
A25: Excavate Rock; Low Spec's and QA/QC
B26: drill/blast/load/short haul | D26: RB1 | E26: m3 | F26: 11.4 | G26: 17.05 | J26: Low:quarry operations for bulk fill
B27: drill/blast/load/long haul | D27: RB2 | E27: m3 | F27: 12.05 | G27: 17.8
B28: RB1 + spread and compact | D28: RB3 | E28: m3 | F28: 12.05 | G28: 17.8
B29: RB2 + spread and compact | D29: RB4 | E29: m3 | F29: 12.5 | G29: 30.75
B30: Specified activity | D30: RBS | E30: m3
A31: Excavate Rock; High Spec's and QA/QC | J31: (e.g. ditch/spillway excavation)
B32: drill/blast/load/short haul | D32: RC1 | E32: m3 | F32: 12.05 | G32: 17.8 | J32: Low:foundation excavation;High:spillway excavation
B33: drill/blast/load/long haul | D33: RC2 | E33: m3 | F33: 12.7 | G33: 18.4
B34: RC1 + spread and compact | D34: RC3 | E34: m3 | F34: 12.7 | G34: 18.4 | J34: e,g, cover construction
B35: RC2 + spread and compact | D35: RC4 | E35: m3 | F35: 13.5 | G35: 19.2 | J35: e,g, cover construction
B36: Specified activity | D36: RCS | E36: m3 | H36: 175 | J36: Specified-drift excavation
A37: Excavate Rip Rap
B38: drill/blast/load/short haul/place | D38: RR1 | E38: m3 | F38: 13.5 | G38: 17.75 | J38: High: quarry & place rip rap in channel
B39: drill/blast/load/long haul/place | D39: RR2 | E39: m3 | F39: 14.2 | G39: 20.65
B40: source is waste dump/short haul | D40: RR3 | E40: m3 | F40: 7 | J40: cost includes sorting
B41: source is waste dump/long haul | D41: RR4 | E41: m3 | F41: 7.6
B42: Specified activity | D42: RRS | E42: m3
A43: Excavate Soil; Low Spec's and QA/QC
B44: clear & grub | D44: SBC | E44: m2 | F44: 3.4 | G44: 5
B45: excavate/load/short haul | D45: SB1 | E45: m3 | F45: 4.3 | G45: 5.9
B46: excavate/load/long haul | D46: SB2 | E46: m3 | F46: 4.6 | G46: 7.3
B47: SB1 + spread and compact | D47: SB3 | E47: m3 | F47: 5.1 | G47: 8.9 | J47: Low: non-engineered; High:engineered
B48: SB2 + spread and compact | D48: SB4 | E48: m3 | F48: 5.5 | G48: 11 | J48: Low: non-engineered; High:engineered
B49: Specified activity | D49: SBS | E49: m3 | F49: 3.2 | G49: 6.3 | J49: Low: rehandle waste rock dump by dozing; High:rehandle waste rock by hauling
B50: Tailings | D50: SBT | E50: m3 | F50: 1.35 | G50: 3.7 | H50: 15.5 | J50: High:contour surface - wet or frozen; Specified:haul/place wet infill
A51: Excavate Soil, High Spec's and QA/QC
B52: excavate/load/short haul | D52: SC1 | E52: m3 | F52: 6.8 | G52: 9.3
B53: excavate/load/long haul | D53: SC2 | E53: m3 | F53: 7.1 | G53: 11.75
B54: SC1 + spread and compact | D54: SC3 | E54: m3 | F54: 8.9 | G54: 14.2 | J54: Low: non-engineered; High:engineered
B55: SC2 + spread and compact | D55: SC4 | E55: m3 | F55: 9.3 | G55: 23.2 | J55: Low: non-engineered; High:engineered (e.g. complex covers, low volume dam construction)
B56: Specified activity | D56: SCS | E56: m3 | H56: 18.8 | J56: Backfill adit with waste rock
A57: Fence
D58: FNC | E58: m | F58: 13.55 | G58: 203
A59: Fuel and Electricity
B60: Fuel cost - gas | D60: FCG | E60: litre | F60: 1.05 | G60: 1.4
B61: Fuel cost - diesel | D61: FCD | E61: litre | F61: 0.99 | G61: 1.39
B62: Fuel mobilization | D62: FCM | E62: litre | F62: 0.22 | G62: 0.42 | J62: High: winter road usage
B63: Electricity | D63: FCE | E63: kW-h | F63: 0.17 | G63: 0.19 | H63: 0.49 | J63: Low and High:Yellowknife; Specified:diesel generator
A64: Geo-Synthetics
B65: geotextile | D65: GST | E65: m2 | F65: 3.44 | J65: Supply and install
B66: geogrid | D66: GSG | E66: m2 | F66: 5.75
B67: liner, HDPE | D67: GSHDPE | E67: m2 | F67: 7.95 | J67: Supply and install; large quantity
B68: liner, ES3 | D68: GSES3 | E68: m2 | F68: 20.2 | J68: FOB Yellowknife
B69: geosynthetic installation | D69: GSI | E69: m2 | F69: 3.16 | G69: 14 | J69: Low:geotextile; High:ES3 or HDPE
B70: bentonite soil ammendment | D70: GSBA | E70: tonne | F70: 308.3 | G70: 348.5 | J70: FOB Edmonton, add shipping & mixing
A71: Grouting (/m3 of rock grouted)
D72: grout | E72: m3 | F72: 236.55 | G72: 286.75 | J72: High: cement, FOB Yellowknife
A73: Labour & Equipment Rates
B74: Site manager | D74: sman | E74: $/hr | F74: 125 | G74: 152
B75: Supervisor | D75: super | E75: $/hr | F75: 52 | G75: 91.84
B76: Registered engineer | D76: eng | E76: $/hr | F76: 95 | G76: 220
B77: Environmental coordinator | D77: envco | E77: $/hr | F77: 74.16 | G77: 130
B78: Evironmental technologist | D78: envtech | E78: $/hr | F78: 36
B79: Electrician | D79: elec | E79: $/hr | F79: 74 | G79: 95
B80: Journeyman - various | D80: journey | E80: $/hr | F80: 44 | G80: 71.79
B81: Labour - skilled | D81: lab-s | E81: $/hr | F81: 41 | G81: 49.6
B82: Labour - unskilled | D82: lab-us | E82: $/hr | F82: 31 | G82: 43.98
B83: Equipment operator | D83: oper | E83: $/hr | F83: 41 | G83: 65
B84: Heavy duty mechanic | D84: mech | E84: $/hr | F84: 49 | G84: 72.85
B85: Water treatment plant operator | D85: oper-wt | E85: $/hr | F85: 41 | G85: 59.86
B86: Security / first aid | D86: safety | E86: $/hr | F86: 36 | G86: 66.97
B87: Administative staff | D87: admin | E87: $/hr | F87: 38 | G87: 57.89
B89: Equipment rates include operator and fuel
B90: Loader - 4 cu.yd (3.06m3) | D90: load-s | E90: $/hr | F90: 175
B91: Loader - 7 cu.yd (5.35m3) | D91: load-l | E91: $/hr | F91: 315
B92: Excavator - 26.76-30.84 tonnes | D92: exc-s | E92: $/hr | F92: 190
B93: Excavator - 68.95+tonnes | D93: exc-l | E93: $/hr | F93: 420
B94: Grader | D94: grad | E94: $/hr | F94: 190
B95: Dump truck off hwy 30-50 tonnes | D95: truck-s | E95: $/hr | F95: 225
B96: Dump truck off hwy 55-75 tonnes | D96: truck-l | E96: $/hr | F96: 300
B97: dozer, small | D97: dozers | E97: $/hr | F97: 205 | G97: 260
B98: dozer, large | D98: dozerl | E98: $/hr | F98: 490 | G98: 565
B99: smooth drum compactor | D99: comp | E99: $/hr | F99: 155
B100: scooptram, 6 yd3 bucket | D100: scoop | E100: $/hr | F100: 170
B101: flat bed truck with hiab | D101: hiab | E101: $/hr | F101: 155
B102: fuel truck | D102: ftruck | E102: $/hr | F102: 150
B103: water truck | D103: wtruck | E103: $/hr | F103: 58 | G103: 150
A104: Mobilize Heavy Equipment
B105: Road access | D105: MHER | E105: kmtonne | F105: 3.4 | G105: 10.25
B106: Air access | D106: MHEA | E106: kmtonne | F106: 12 | J106: cargo rate>500lb
A107: Mobilize Camp
B108: Road access | D108: MCR | E108: each | F108: 50000 | J108: refurbish existing camp
A109: Mobilize Workers
B110: flight | D110: MW | E110: each | F110: 4500 | G110: 9100 | J110: Low:e.g. 8 passenger; High: Dash 7
A111: Oil Removal
B112: oil removal | D112: OR | E112: litre | F112: 0.43 | G112: 1.2 | J112: Low:waste oil heater; High: ship offsite
A113: PCB Removal
B114: Remove from site | D114: PCBR | E114: litre | F114: 40.2 | G114: 46.9 | J114: Low: shipping, handling & disposal from Yellowknife
A115: Pipes, small (<6in dia.)
B116: remove/dispose on site | D116: PSR | E116: m | F116: 1 | G116: 24 | J116: Low: remove/dispose on site; High: remove/re-use
B117: supply | D117: PSS | E117: m | F117: 6.1 | G117: 11.1 | J117: Low:supply; High:supply and ship
B118: install | D118: PSI | E118: m | F118: 25
A119: Pipes, large (>6in dia.)
B120: remove/dispose on site | D120: PLR | E120: m | F120: 22 | G120: 72 | J120: Low: remove/dispose on site; High: remove/re-use
B121: supply | D121: PLS | E121: m | F121: 129 | G121: 143 | J121: Low:supply; High:supply and ship
B122: install | D122: PLI | E122: m | F122: 50
A123: Power Lines
B124: remove/dispose on site | D124: POWR | E124: m | F124: 25.5
A125: Process Chemicals
B126: Remove from site | D126: PCR | E126: kg | F126: 0.45 | G126: 2.5 | J126: Low: shipping, handling & disposal from Yellowknife
A127: Pumps
B128: Pump capital cost | D128: PC | E128: each | F128: 195000
B129: Pump shipping | D129: PS | E129: each | F129: 2500
B130: Pump operating cost | D130: POC | E130: m3 | F130: 0.12 | J130: pump operating costs should be calculated based on pump capacity, fuel costs, etc.
B131: Pump maintenance | D131: PM | E131: allow | F131: 25000
A132: Pump sand BackFill
D133: PBF | E133: m3 | F133: 85 | G133: 300
A134: Scarify - road/mine site
D135: SCFY | E135: ha | F135: 4300 | G135: 6030 | H135: 2150
A136: Shaft, Raise & Portal Closures
B137: Shaft & Raises | D137: SR | E137: m2 | F137: 645 | G137: 2132 | J137: Low:pre-cast concrete slabs, little site prep. Area=shaft+>1m all around
B138: Portals | D138: POR | E138: m3 | F138: 18.8 | G138: 250 | H138: 1200 | J138: Low:unit cost code SCS;High:excavate & backfill collapsed portal;Spec: installed pressure plug
A139: Site Inspection Report
D140: RPT | E140: each | F140: 10000 | G140: 20000
A141: SpillWay - Clear
D142: SW | E142: each | F142: 3000 | G142: 7000
A143: Survey/Instrumentation
D144: SI | E144: each | F144: 1800 | G144: 3600 | J144: 2 person crew
A145: Treatment Plant - Construct
B146: Small (< 1000 m3/d) | D146: TPS | E146: lump sum | F146: 9000000 | G146: 15000000
B147: Large (> 1000 m3/d) | D147: TPL | E147: lump sum | F147: 15000000 | G147: 46000000
B148: Constructed Wetland | D148: CWTS | E148: ha | F148: 200000 | G148: 300000
A149: Treatment Plant - Operate
D150: TPO | E150: m3 | F150: 0.35 | G150: 2
A151: Treatment Chemicals
B152: ferric sulphate | D152: ferric | E152: kg | F152: 1.19
B153: ferrous sulphate | D153: ferrous | E153: kg | F153: 1.32
B154: lime | D154: lime | E154: kg | F154: 0.56
B155: hydrogen peroxide, 35% | D155: hperox | E155: kg | F155: 1.5
B156: Sodium Metabisulfate | D156: Nametab | E156: kg | F156: 1.18
B157: Caustic soda, 50% | D157: caustic | E157: kg | F157: 0.74
B158: Sulfuric acid, 93% | D158: sulfuric | E158: kg | F158: 0.31
B159: flocculant | D159: flocc | E159: kg | F159: 6
B160: copper sulphate | D160: copper | E160: kg
B161: shipping | D161: shipping | E161: kg | F161: 0.2
A162: Vegetation
B163: Hydroseed, Flat | D163: VHF | E163: ha | F163: 4000
B164: Hydroseed, Sloped | D164: VHS | E164: ha | F164: 4500
B165: Veg. blanket/erosion mat | D165: VB | E165: ha | F165: 13000
B166: Tree planting | D166: VT | E166: ha | F166: 2600 | G166: 6000
B167: Wetland species | D167: VW | E167: ha | H167: 47.72 | J167: Specified= /m3, Wetland Growth Media Substrate mixed and installed (sand, biochar and fertilizer, woodchips)
A168: Water Sampling/Analysis/Reporting
D169: WS | E169: each | F169: 7000 | G169: 10000
A170: Winter Road
B171: Construction | D171: WRC | E171: km | F171: 2000 | G171: 11500
B172: Usage | D172: WRU | E172: kmtonne | F172: 0.29

Sheet Estimator
B1: Unit Cost Estimator | D1: 1 | E1: Equipment Productivity Figures and Graphs have been reproduced from Caterpillar Performance Handbook - Edition 42
B2: EXCAVATION | G2: HAUL AND DUMPING | L2: SPREADING/DOZING
B3: Productivity | G3: Productivity | L3: Productivity
B4: Machine | C4: Cat 336EL | G4: Machine | H4: Cat 770 | L4: Machine | M4: Cat D8
B5: bucket capacity | D5: 3.16 | E5: m3 | G5: truck capacity | I5: 25.1 | J5: m3 | L5: Estimate production using example curves provided or | N5: 600 | O5: m3/hr
B6: fill factor | D6: 0.75 | E6: % | G6: fill factor | I6: 0.8 | J6: % | L6: equivalent from other supplier
B7: cycle time | D7: 45 | E7: seconds | L7: Correction factors (see table provided)
B8: operator skill | D8: 0.8 | E8: % | G8: load time | I8: 6 | J8: min. | L8: operator skill | N8: 0.75
B9: machine availability | D9: 0.83 | E9: % | G9: haul distance | I9: 1.5 | J9: km | L9: material type, see table | N9: 0.8
B10: altitude adjustment | D10: 1 | E10: % | G10: average velocity | I10: 20 | J10: km/hr | L10: slot dozing | N10: 1
B11: Hourly productivity | D11: =D5*D6*(60*60/D7)*D8*D9*D10 -> 125.8944 | E11: m3/hr | G11: haul time + return time | I11: =+I9/I10*60*2 -> 9 | J11: min. | L11: side by side dozing | N11: 1
G12: wait time | I12: 0.5 | J12: min. | L12: visibility | N12: 1
G13: dump time | I13: 1 | J13: min. | L13: job efficiency | N13: 0.83
G14: cycle time | I14: =I8+SUM(I11:I13) -> 16.5 | J14: min. | L14: altitude adjustment | N14: 1
G15: machine availability | I15: 0.83 | J15: % | L15: slope adjustment | N15: 1
G16: altitude adjustment | I16: 1 | J16: % | L16: Hourly productivity | N16: =+N5*N8*N9*N10*N11*N12*N13*N14*N15 -> 298.8 | O16: m3/hr
I17: =I14*I15*I16 -> 13.695 | J17: ave. min/cycle
G18: Hourly productivity | I18: =I5*I6*60/I17 -> 87.97371303 | J18: m3/hr
B19: Operating Costs | G19: Operating Costs | L19: Operating Costs
B20: - Contractor | G20: - Contractor | L20: - Contractor
B21: Contractor hourly rate | D21: 180 | E21: $/hr | G21: Contractor hourly rate | I21: 225 | J21: $/hr | L21: Hourly rate - contractor supplied | N21: 260 | O21: $/hr
B22: Excavation cost - contractor rate | D22: =D21/D11 -> 1.429769712 | E22: $/m3 | G22: Haul and Dump - contractor rate | I22: =I21/I18 -> 2.557582171 | J22: $/m3 | L22: Dozing - contractor rate | N22: =N21/N16 -> 0.8701472557 | O22: $/m3
B24: - Owner | G24: - Owner | L24: - Owner
B25: ownership, daily | E25: $/day | G25: ownership, daily | J25: $/day | L25: ownership, daily | O25: $/day
B26: maintenance | E26: $/hr | G26: maintenance | J26: $/hr | L26: maintenance | O26: $/hr
B27: fuel | E27: $/hr | G27: fuel | J27: $/hr | L27: fuel | O27: $/hr
B28: consumables (cutters, tires) | E28: $/hr | G28: consumables (cutters, tires) | J28: $/hr | L28: consumables (cutters, tires) | O28: $/hr
B29: operator | E29: $/hr | G29: operator | J29: $/hr | L29: operator | O29: $/hr
B30: Owner hourly rate | D30: =D25/10+SUM(D26:D29) -> 0 | E30: $/hr | G30: Owner hourly rate | I30: =I25/10+SUM(I26:I29) -> 0 | J30: $/hr | L30: Owner hourly rate | N30: =N25/10+SUM(N26:N29) -> 0
B31: Excavation cost - owner rate | D31: =D30/D11 -> 0 | E31: $/m3 | G31: Haul/Dumping Cost - owner rate | I31: =I30/I18 -> 0 | J31: $/m3 | L31: Spreading/Dozing Cost - owner rate | N31: =N30/N16 -> 0 | O31: $/hr
B32: Excavation cost - select contractor or owner rate (D22 or D31) | E32: $/m3 | G32: Haul/Dumping Cost - select contractor or owner rate (I22 or I31 | J32: $/m3 | L32: Spreading/Dozing Cost - select contractor or owner rate (N22 or N31) | O32: $/m3
B36: Excavator | G36: Trucking | L36: Dozing
C37: Cat 320 | D37: Cat 325B | E37: Cat 375 | H37: Cat 771 D | I37: Cat 777D | J37: Cat 789C
B38: heaped bucket capacity, m3 | C38: 1.5 | D38: 2.2 | E38: 5.4 | G38: Truck capacity - heaped, m3 | H38: 27.5 | I38: 60.5 | J38: 137
D39: Typical Cycle Times (seconds)
B40: easy digging, shallow digging, small swing angle | C40: 16 | D40: 18 | E40: 20
B41: med. to hard digging, rocky soil, swing angle to 90 deg. | C41: 23 | D41: 23 | E41: 25
B42: tough digging, sandstone, caliche, at max. machine depth, swing angle > 120 deg. | C42: 27 | D42: 29 | E42: 35
B44: Material | C44: Fill Factor (% of heaped bucket capacity
B45: Moist loam or sandy clay | D45: 100 - 110
B46: sand and gravel (not till) | D46: 95 - 110
B47: hard tough clay | D47: 80 - 90
B48: rock - will blasted | D48: 60 - 75
B49: rock - poorly blasted | D49: 40 -60
B51: Operator Skill | C51: poor | D51: average | E51: good
B52: Correction factor | C52: 0.6 | D52: 0.75 | E52: 1
B54: Machine availability | C54: poor | D54: average | E54: good
B55: Correction factor | C55: 0.9 | D55: 0.95 | E55: 1

Sheet Tools
A1: The functions in this worksheet serve as a back up in the event that the menu item "Add-Ins" is not shown in Excel menu bar
C4: Save file before clearing all data
L6: These functions duplicate components within worksheet
C9: Shows both active worksheet as well as table of Unit Costs in a separate window
C12: Prints all worksheets having non-zero sums
